Workbook

Sheet Cover Page
B2: Energy Efficiency Opportunity Assessment
C6: Navigating the Calculator
C7: - | D7: The tabs for the tool have been color coded so that input tabs are blue,
D8: output tabs are red, and back-end calculation tabs are grey.
C9: - | D9: Use the "Next" and "Back" buttons on each page to navigate through the calculator.
C10: - | D10: The boxes on the navigation bar are also clickable to switch between steps.
C11: - | D11: Cells are shaded to show whether values are able to input by the user, or are calculated:
D12: Sample | E12: Gray Background, Blue Text - Updates Automatically, Not User Input
D13: Sample | E13: Gray Background, Black Text - Static, Not User Input
D14: Sample | E14: Blue Background - User Input
C15: - | D15: Do not cut and paste data into the tool, or from one field to another within the tool.
D16: Instead, always use the copy and paste method for both inputting data into the tool
D17: and moving data from one field to another within the tool.
C18: - | D18: All of the properites for the charts on the output tabs can be edited
D19: by copying and pasting the chart to an unprotected excel workbook.
C21: Calculator Uses
C22: - | D22: Assess energy efficiency opportunities specific to an individual country or region within a country
C23: - | D23: Aid in decision-making process in fostering policies or incentives to promote energy efficiency.
C25: Information Required
C26: - | D26: Working knowledge of the current market environment for energy efficiency in-country
C27: - | D27: Country-specific data such as electricity use by sector, market payback acceptance and electricity tariffs
C28: - | D28: Energy efficiency measure data such as existing market baselines and incremental measure costs
C29: - | D29: Energy efficiency program-specific data such as past in-country program performance and obstacles
C31: Tool Disclaimer
D32: All Energy Efficiency (EE) Opportunities Assessment materials and content are intended for use by USAID operating units, implementing partners, and stakeholders to prioritize the most effective activities to scale up energy efficiency as a clean energy resource. Unless otherwise noted, all EE Opportunities Assessment materials are owned and licensed by USAID, controlled by ICF Incorporated, L.L.C. (ICF) under the Energy Efficiency for Clean Development Program (EECDP), and protected by worldwide copyright laws. EE Opportunities Assessment content may be downloaded and shared for use by USAID or for general use, without altering or removing any trademark, copyright, or other notice from such material. No modification, reproduction, or creation of derivative work based on data, equations, or formulas within the EE Opportunities Assessment materials is permitted, without the express written consent of both USAID and ICF. All results acquired from using EE Opportunities Assessment methods and tools should reference “USAID EE Opportunities Assessment” as the source. On occasion, ICF, in collaboration with USAID, may change, update, or discontinue EE Opportunities Assessment content as is necessary.
C38: Calculator Developers and Funders
O39: ="Calculator Version: "&Version -> Calculator Version: A4

Sheet Country Information
B2: Energy Efficiency Opportunity Assessment
D6: Country
D7: Uganda | G7: ← Select Country
F10: Countries currently available in this tool
O23: ="Calculator Version: "&Version -> Calculator Version: A4

Sheet EE Building Block Assessment
B2: Energy Efficiency Opportunity Assessment
C6: ="Energy Efficiency Building Blocks Assessment for "&CountrySelect -> Energy Efficiency Building Blocks Assessment for Uganda
D8: Background
D9: Six (6) energy efficiency building blocks have been established to represent areas of the market that enable and support the scaling up of energy efficiency. The assessment of activities in these areas helps to:
D10: (1) Identify policies that can be put into place to foster the growth of energy efficiency, and;
D11: (2) Guide the selection of energy efficiency opportunities applicable to the country studied.
D16: How to Use This Assessment
D17: To determine where a location falls in terms of its market readiness to support energy efficiency, questions related to specific activities, policies, and resources that support implementation of energy efficiency have been created. To update the status of building blocks, use the drop-down menus in the “Building Block Present?” column below. Select whether an activity is present (Yes), not present (no), unknown, or not applicable.
D20: # | E20: Building Block Present? | F20: Building Block Description | K20: ="Calculator Version: "&Version -> Calculator Version: A4
D21: Skilled Workforce | K21: Set / Reset Assessment
D22: 1 | F22: Trained professionals that focus on identifying energy efficiency opportunities (Ex: energy auditors or home energy raters)
D23: 2 | F23: Network of actors in government, utility, and private sector are well connected and able to work together to deliver energy efficiency programs
D24: 3 | F24: Energy Services Companies (ESCOs) exist and energy performance contracts are able to be contractually upheld under current regulatory framework
D25: 4 | F25: Government and/or industry effort to collect and maintain inventory of energy efficient technologies exists
D26: 5 | F26: Standard training or certification exists for performing energy efficiency assessments in buildings
D27: 6 | F27: Standard training and certification for performing energy efficiency assessments is widely adhered to
D28: 7 | F28: Tools and models to analyze energy efficiency opportunities are available to energy professionals
D29: 8 | F29: Tools and models to analyze energy efficiency opportunities are available to financial professionals
D30: Financing Support
D31: 9 | F31: Significant funding for energy efficiency measures
D32: 10 | F32: Consumers are not discouraged by high initial cost of implementation of energy efficiency measures
D33: 11 | F33: Energy efficiency perceived as low risk/high return investment
D34: 12 | F34: Government incentives to buy down first cost of new technologies exists
D35: 13
D36: 14
D37: Public Awareness
D38: 15 | F38: Customer awareness level of energy efficiency programs (incentive offerings) already in place is high
D39: 16 | F39: Consumers have previous positive experience with energy-efficient products achieving marketed claims
D40: 17 | F40: High consumer/purchaser knowledge of energy efficiency - allows customer to make informed decisions when purchasing products
D41: 18 | F41: Current energy efficiency programs are accessible to and positively affect all levels of income
D42: 19
D43: 20
D44: Regulatory Mechanisms
D45: 21 | F45: EE legislation to leverage municipalities and companies to implement energy efficiency
D46: 22 | F46: Country/utilities have clear short and long term goals for energy development/expansion
D47: 23 | F47: Building energy codes for commercial/residential buildings have compliance mechanisms in place
D48: 24 | F48: Building energy codes for commercial/residential buildings exist
D49: 25 | F49: Energy Efficiency contributes to local/regional plans such as Low Emission Development plans (LEDs)
D50: 26 | F50: Energy prices reflect true cost of production, procurement, and transmission (i.e. not subsidized)
D51: 27 | F51: Mechanisms in place to assist on this issue of those financing the energy efficiency measures (e.g. building owners) paying cost, but only users benefiting (e.g. tenets)
D52: 28 | F52: Limited taxes or tariffs are collected on the import of energy-efficient products, keeping prices reasonable
D53: 29 | F53: Governmental functions operate independently of energy sales (i.e. municipalities and governements are not depenent on energy sales)
D54: Smart Incentives
D55: 30 | F55: Residential demand side management programs with incentives exist
D56: 31 | F56: Commercial demand side management programs with incentives exist
D57: 32 | F57: Industrial demand side management programs with incentives exist
D58: 33 | F58: Tax incentives for purchasing specific energy-efficient products exist
D59: 34
D60: 35
D61: Technology Development
D62: 36 | F62: Testing facilities for energy-efficient products exist in country/region
D63: 37 | F63: Appliance energy rating standards exist and are complied with
D64: 38 | F64: Non-energy benefits (i.e. cascading benefits of utility bill reduction, avoided emissions, job creation) are included in EE planning and cost-effectiveness
D65: 39 | F65: EE measures capable of modifying market behavior even after incentives are removed
D66: 40
D67: 41

Sheet EE Building Block Data (hidden)
A1: Default Value Table
A3: Country | B3: South Africa | D3: Mozambique | F3: Uganda | H3: El Salvador | J3: Kazakhstan | L3: Mexico | N3: Tajikistan | P3: India - Telangana | R3: India - Andhra Pradesh
A4: Capacity Building
A5: 1 | B5: No | C5: Trained professionals that focus on identifying energy efficiency opportunities (Ex: energy auditors or home energy raters) | D5: No | E5: Trained professionals that focus on identifying energy efficiency opportunities (Ex: energy auditors or home energy raters) | G5: Trained professionals that focus on identifying energy efficiency opportunities (Ex: energy auditors or home energy raters) | H5: No | I5: Trained professionals that focus on identifying energy efficiency opportunities (Ex: energy auditors or home energy raters) | J5: Emerging | K5: Trained professionals that focus on identifying energy efficiency opportunities (Ex: energy auditors or home energy raters) | L5: No | M5: Trained professionals that focus on identifying energy efficiency opportunities (Ex: energy auditors or home energy raters) | O5: Trained professionals that focus on identifying energy efficiency opportunities (Ex: energy auditors or home energy raters) | Q5: Trained professionals that focus on identifying energy efficiency opportunities (Ex: energy auditors or home energy raters) | S5: Trained professionals that focus on identifying energy efficiency opportunities (Ex: energy auditors or home energy raters) | U5: Trained professionals that focus on identifying energy efficiency opportunities (Ex: energy auditors or home energy raters) | W5: Trained professionals that focus on identifying energy efficiency opportunities (Ex: energy auditors or home energy raters) | Y5: Trained professionals that focus on identifying energy efficiency opportunities (Ex: energy auditors or home energy raters) | AA5: Trained professionals that focus on identifying energy efficiency opportunities (Ex: energy auditors or home energy raters) | AC5: Trained professionals that focus on identifying energy efficiency opportunities (Ex: energy auditors or home energy raters) | AE5: Trained professionals that focus on identifying energy efficiency opportunities (Ex: energy auditors or home energy raters)
A6: 2 | B6: Yes | C6: Network of actors in government, utility, and private sector are well connected and able to work together to deliver energy efficiency programs | D6: No | E6: Network of actors in government, utility, and private sector are well connected and able to work together to deliver energy efficiency programs | G6: Network of actors in government, utility, and private sector are well connected and able to work together to deliver energy efficiency programs | H6: Yes | I6: Network of actors in government, utility, and private sector are well connected and able to work together to deliver energy efficiency programs | J6: Emerging | K6: Network of actors in government, utility, and private sector are well connected and able to work together to deliver energy efficiency programs | L6: Yes | M6: Network of actors in government, utility, and private sector are well connected and able to work together to deliver energy efficiency programs | O6: Network of actors in government, utility, and private sector are well connected and able to work together to deliver energy efficiency programs | Q6: Network of actors in government, utility, and private sector are well connected and able to work together to deliver energy efficiency programs | S6: Network of actors in government, utility, and private sector are well connected and able to work together to deliver energy efficiency programs | U6: Network of actors in government, utility, and private sector are well connected and able to work together to deliver energy efficiency programs | W6: Network of actors in government, utility, and private sector are well connected and able to work together to deliver energy efficiency programs | Y6: Network of actors in government, utility, and private sector are well connected and able to work together to deliver energy efficiency programs | AA6: Network of actors in government, utility, and private sector are well connected and able to work together to deliver energy efficiency programs | AC6: Network of actors in government, utility, and private sector are well connected and able to work together to deliver energy efficiency programs | AE6: Network of actors in government, utility, and private sector are well connected and able to work together to deliver energy efficiency programs
A7: 3 | B7: No | C7: Energy Services Companies (ESCOs) exist and energy performance contracts are able to be contractually upheld under current regulatory framework | D7: No | E7: Energy Services Companies (ESCOs) exist and energy performance contracts are able to be contractually upheld under current regulatory framework | G7: Energy Services Companies (ESCOs) exist and energy performance contracts are able to be contractually upheld under current regulatory framework | H7: Emerging | I7: Energy Services Companies (ESCOs) exist and energy performance contracts are able to be contractually upheld under current regulatory framework | J7: Yes | K7: Energy Services Companies (ESCOs) exist and energy performance contracts are able to be contractually upheld under current regulatory framework | L7: No | M7: Energy Services Companies (ESCOs) exist and energy performance contracts are able to be contractually upheld under current regulatory framework | O7: Energy Services Companies (ESCOs) exist and energy performance contracts are able to be contractually upheld under current regulatory framework | Q7: Energy Services Companies (ESCOs) exist and energy performance contracts are able to be contractually upheld under current regulatory framework | S7: Energy Services Companies (ESCOs) exist and energy performance contracts are able to be contractually upheld under current regulatory framework | U7: Energy Services Companies (ESCOs) exist and energy performance contracts are able to be contractually upheld under current regulatory framework | W7: Energy Services Companies (ESCOs) exist and energy performance contracts are able to be contractually upheld under current regulatory framework | Y7: Energy Services Companies (ESCOs) exist and energy performance contracts are able to be contractually upheld under current regulatory framework | AA7: Energy Services Companies (ESCOs) exist and energy performance contracts are able to be contractually upheld under current regulatory framework | AC7: Energy Services Companies (ESCOs) exist and energy performance contracts are able to be contractually upheld under current regulatory framework | AE7: Energy Services Companies (ESCOs) exist and energy performance contracts are able to be contractually upheld under current regulatory framework
A8: 4 | B8: Yes | C8: Government and/or industry effort to collect and maintain inventory of energy efficient technologies exists | D8: No | E8: Government and/or industry effort to collect and maintain inventory of energy efficient technologies exists | G8: Government and/or industry effort to collect and maintain inventory of energy efficient technologies exists | H8: No | I8: Government and/or industry effort to collect and maintain inventory of energy efficient technologies exists | J8: Emerging | K8: Government and/or industry effort to collect and maintain inventory of energy efficient technologies exists | L8: Yes | M8: Government and/or industry effort to collect and maintain inventory of energy efficient technologies exists | O8: Government and/or industry effort to collect and maintain inventory of energy efficient technologies exists | Q8: Government and/or industry effort to collect and maintain inventory of energy efficient technologies exists | S8: Government and/or industry effort to collect and maintain inventory of energy efficient technologies exists | U8: Government and/or industry effort to collect and maintain inventory of energy efficient technologies exists | W8: Government and/or industry effort to collect and maintain inventory of energy efficient technologies exists | Y8: Government and/or industry effort to collect and maintain inventory of energy efficient technologies exists | AA8: Government and/or industry effort to collect and maintain inventory of energy efficient technologies exists | AC8: Government and/or industry effort to collect and maintain inventory of energy efficient technologies exists | AE8: Government and/or industry effort to collect and maintain inventory of energy efficient technologies exists
A9: 5 | B9: No | C9: Standard training or certification exists for performing energy efficiency assessments in buildings | D9: No | E9: Standard training or certification exists for performing energy efficiency assessments in buildings | G9: Standard training or certification exists for performing energy efficiency assessments in buildings | H9: No | I9: Standard training or certification exists for performing energy efficiency assessments in buildings | J9: No | K9: Standard training or certification exists for performing energy efficiency assessments in buildings | L9: No | M9: Standard training or certification exists for performing energy efficiency assessments in buildings | O9: Standard training or certification exists for performing energy efficiency assessments in buildings | Q9: Standard training or certification exists for performing energy efficiency assessments in buildings | S9: Standard training or certification exists for performing energy efficiency assessments in buildings | U9: Standard training or certification exists for performing energy efficiency assessments in buildings | W9: Standard training or certification exists for performing energy efficiency assessments in buildings | Y9: Standard training or certification exists for performing energy efficiency assessments in buildings | AA9: Standard training or certification exists for performing energy efficiency assessments in buildings | AC9: Standard training or certification exists for performing energy efficiency assessments in buildings | AE9: Standard training or certification exists for performing energy efficiency assessments in buildings
A10: 6 | B10: No | C10: Standard training and certification for performing energy efficiency assessments is widely adhered to | D10: No | E10: Standard training and certification for performing energy efficiency assessments is widely adhered to | G10: Standard training and certification for performing energy efficiency assessments is widely adhered to | H10: No | I10: Standard training and certification for performing energy efficiency assessments is widely adhered to | J10: No | K10: Standard training and certification for performing energy efficiency assessments is widely adhered to | L10: No | M10: Standard training and certification for performing energy efficiency assessments is widely adhered to | O10: Standard training and certification for performing energy efficiency assessments is widely adhered to | Q10: Standard training and certification for performing energy efficiency assessments is widely adhered to | S10: Standard training and certification for performing energy efficiency assessments is widely adhered to | U10: Standard training and certification for performing energy efficiency assessments is widely adhered to | W10: Standard training and certification for performing energy efficiency assessments is widely adhered to | Y10: Standard training and certification for performing energy efficiency assessments is widely adhered to | AA10: Standard training and certification for performing energy efficiency assessments is widely adhered to | AC10: Standard training and certification for performing energy efficiency assessments is widely adhered to | AE10: Standard training and certification for performing energy efficiency assessments is widely adhered to
A11: 7 | B11: Yes | C11: Tools and models to analyze energy efficiency opportunities are available to energy professionals | D11: No | E11: Tools and models to analyze energy efficiency opportunities are available to energy professionals | G11: Tools and models to analyze energy efficiency opportunities are available to energy professionals | H11: Emerging | I11: Tools and models to analyze energy efficiency opportunities are available to energy professionals | J11: No | K11: Tools and models to analyze energy efficiency opportunities are available to energy professionals | L11: Yes | M11: Tools and models to analyze energy efficiency opportunities are available to energy professionals | O11: Tools and models to analyze energy efficiency opportunities are available to energy professionals | Q11: Tools and models to analyze energy efficiency opportunities are available to energy professionals | S11: Tools and models to analyze energy efficiency opportunities are available to energy professionals | U11: Tools and models to analyze energy efficiency opportunities are available to energy professionals | W11: Tools and models to analyze energy efficiency opportunities are available to energy professionals | Y11: Tools and models to analyze energy efficiency opportunities are available to energy professionals | AA11: Tools and models to analyze energy efficiency opportunities are available to energy professionals | AC11: Tools and models to analyze energy efficiency opportunities are available to energy professionals | AE11: Tools and models to analyze energy efficiency opportunities are available to energy professionals
A12: 8 | B12: No | C12: Tools and models to analyze energy efficiency opportunities are available to financial professionals | D12: No | E12: Tools and models to analyze energy efficiency opportunities are available to financial professionals | G12: Tools and models to analyze energy efficiency opportunities are available to financial professionals | H12: Emerging | I12: Tools and models to analyze energy efficiency opportunities are available to financial professionals | J12: No | K12: Tools and models to analyze energy efficiency opportunities are available to financial professionals | L12: Emerging | M12: Tools and models to analyze energy efficiency opportunities are available to financial professionals | O12: Tools and models to analyze energy efficiency opportunities are available to financial professionals | Q12: Tools and models to analyze energy efficiency opportunities are available to financial professionals | S12: Tools and models to analyze energy efficiency opportunities are available to financial professionals | U12: Tools and models to analyze energy efficiency opportunities are available to financial professionals | W12: Tools and models to analyze energy efficiency opportunities are available to financial professionals | Y12: Tools and models to analyze energy efficiency opportunities are available to financial professionals | AA12: Tools and models to analyze energy efficiency opportunities are available to financial professionals | AC12: Tools and models to analyze energy efficiency opportunities are available to financial professionals | AE12: Tools and models to analyze energy efficiency opportunities are available to financial professionals
A13: Financing Support
A14: 9 | B14: Yes | C14: Significant funding for energy efficiency measures | D14: No | E14: Significant funding for energy efficiency measures | G14: Significant funding for energy efficiency measures | H14: Emerging | I14: Significant funding for energy efficiency measures | J14: Yes | K14: Significant funding for energy efficiency measures | L14: No | M14: Significant funding for energy efficiency measures | O14: Significant funding for energy efficiency measures | Q14: Significant funding for energy efficiency measures | S14: Significant funding for energy efficiency measures | U14: Significant funding for energy efficiency measures | W14: Significant funding for energy efficiency measures | Y14: Significant funding for energy efficiency measures | AA14: Significant funding for energy efficiency measures | AC14: Significant funding for energy efficiency measures | AE14: Significant funding for energy efficiency measures
A15: 10 | B15: No | C15: Consumers are not discouraged by high initial cost of implementation of energy efficiency measures | D15: No | E15: Consumers are not discouraged by high initial cost of implementation of energy efficiency measures | G15: Consumers are not discouraged by high initial cost of implementation of energy efficiency measures | H15: No | I15: Consumers are not discouraged by high initial cost of implementation of energy efficiency measures | J15: No | K15: Consumers are not discouraged by high initial cost of implementation of energy efficiency measures | L15: Yes | M15: Consumers are not discouraged by high initial cost of implementation of energy efficiency measures | O15: Consumers are not discouraged by high initial cost of implementation of energy efficiency measures | Q15: Consumers are not discouraged by high initial cost of implementation of energy efficiency measures | S15: Consumers are not discouraged by high initial cost of implementation of energy efficiency measures | U15: Consumers are not discouraged by high initial cost of implementation of energy efficiency measures | W15: Consumers are not discouraged by high initial cost of implementation of energy efficiency measures | Y15: Consumers are not discouraged by high initial cost of implementation of energy efficiency measures | AA15: Consumers are not discouraged by high initial cost of implementation of energy efficiency measures | AC15: Consumers are not discouraged by high initial cost of implementation of energy efficiency measures | AE15: Consumers are not discouraged by high initial cost of implementation of energy efficiency measures
A16: 11 | B16: No | C16: Energy efficiency perceived as low risk/high return investment | D16: No | E16: Energy efficiency perceived as low risk/high return investment | G16: Energy efficiency perceived as low risk/high return investment | H16: No | I16: Energy efficiency perceived as low risk/high return investment | J16: No | K16: Energy efficiency perceived as low risk/high return investment | L16: No | M16: Energy efficiency perceived as low risk/high return investment | O16: Energy efficiency perceived as low risk/high return investment | Q16: Energy efficiency perceived as low risk/high return investment | S16: Energy efficiency perceived as low risk/high return investment | U16: Energy efficiency perceived as low risk/high return investment | W16: Energy efficiency perceived as low risk/high return investment | Y16: Energy efficiency perceived as low risk/high return investment | AA16: Energy efficiency perceived as low risk/high return investment | AC16: Energy efficiency perceived as low risk/high return investment | AE16: Energy efficiency perceived as low risk/high return investment
A17: 12 | B17: Yes | C17: Government incentives to buy down first cost of new technologies exists | D17: No | E17: Government incentives to buy down first cost of new technologies exists | G17: Government incentives to buy down first cost of new technologies exists | H17: No | I17: Government incentives to buy down first cost of new technologies exists | J17: No | K17: Government incentives to buy down first cost of new technologies exists | L17: Yes | M17: Government incentives to buy down first cost of new technologies exists | O17: Government incentives to buy down first cost of new technologies exists | Q17: Government incentives to buy down first cost of new technologies exists | S17: Government incentives to buy down first cost of new technologies exists | U17: Government incentives to buy down first cost of new technologies exists | W17: Government incentives to buy down first cost of new technologies exists | Y17: Government incentives to buy down first cost of new technologies exists | AA17: Government incentives to buy down first cost of new technologies exists | AC17: Government incentives to buy down first cost of new technologies exists | AE17: Government incentives to buy down first cost of new technologies exists
A18: 13
A19: 14
A20: Public Awareness
A21: 15 | B21: No | C21: Customer awareness level of energy efficiency programs (incentive offerings) already in place is high | D21: No | E21: Customer awareness level of energy efficiency programs (incentive offerings) already in place is high | G21: Customer awareness level of energy efficiency programs (incentive offerings) already in place is high | H21: No | I21: Customer awareness level of energy efficiency programs (incentive offerings) already in place is high | J21: No | K21: Customer awareness level of energy efficiency programs (incentive offerings) already in place is high | L21: No | M21: Customer awareness level of energy efficiency programs (incentive offerings) already in place is high | O21: Customer awareness level of energy efficiency programs (incentive offerings) already in place is high | Q21: Customer awareness level of energy efficiency programs (incentive offerings) already in place is high | S21: Customer awareness level of energy efficiency programs (incentive offerings) already in place is high | U21: Customer awareness level of energy efficiency programs (incentive offerings) already in place is high | W21: Customer awareness level of energy efficiency programs (incentive offerings) already in place is high | Y21: Customer awareness level of energy efficiency programs (incentive offerings) already in place is high | AA21: Customer awareness level of energy efficiency programs (incentive offerings) already in place is high | AC21: Customer awareness level of energy efficiency programs (incentive offerings) already in place is high | AE21: Customer awareness level of energy efficiency programs (incentive offerings) already in place is high
A22: 16 | B22: No | C22: Consumers have previous positive experience with energy-efficient products achieving marketed claims | D22: No | E22: Consumers have previous positive experience with energy-efficient products achieving marketed claims | G22: Consumers have previous positive experience with energy-efficient products achieving marketed claims | H22: Emerging | I22: Consumers have previous positive experience with energy-efficient products achieving marketed claims | L22: Yes | M22: Consumers have previous positive experience with energy-efficient products achieving marketed claims | O22: Consumers have previous positive experience with energy-efficient products achieving marketed claims | Q22: Consumers have previous positive experience with energy-efficient products achieving marketed claims | S22: Consumers have previous positive experience with energy-efficient products achieving marketed claims | U22: Consumers have previous positive experience with energy-efficient products achieving marketed claims | W22: Consumers have previous positive experience with energy-efficient products achieving marketed claims | Y22: Consumers have previous positive experience with energy-efficient products achieving marketed claims | AA22: Consumers have previous positive experience with energy-efficient products achieving marketed claims | AC22: Consumers have previous positive experience with energy-efficient products achieving marketed claims | AE22: Consumers have previous positive experience with energy-efficient products achieving marketed claims
A23: 17 | B23: No | C23: High consumer/purchaser knowledge of energy efficiency - allows customer to make informed decisions when purchasing products | D23: No | E23: High consumer/purchaser knowledge of energy efficiency - allows customer to make informed decisions when purchasing products | G23: High consumer/purchaser knowledge of energy efficiency - allows customer to make informed decisions when purchasing products | H23: No | I23: High consumer/purchaser knowledge of energy efficiency - allows customer to make informed decisions when purchasing products | J23: No | K23: High consumer/purchaser knowledge of energy efficiency - allows customer to make informed decisions when purchasing products | L23: No | M23: High consumer/purchaser knowledge of energy efficiency - allows customer to make informed decisions when purchasing products | O23: High consumer/purchaser knowledge of energy efficiency - allows customer to make informed decisions when purchasing products | Q23: High consumer/purchaser knowledge of energy efficiency - allows customer to make informed decisions when purchasing products | S23: High consumer/purchaser knowledge of energy efficiency - allows customer to make informed decisions when purchasing products | U23: High consumer/purchaser knowledge of energy efficiency - allows customer to make informed decisions when purchasing products | W23: High consumer/purchaser knowledge of energy efficiency - allows customer to make informed decisions when purchasing products | Y23: High consumer/purchaser knowledge of energy efficiency - allows customer to make informed decisions when purchasing products | AA23: High consumer/purchaser knowledge of energy efficiency - allows customer to make informed decisions when purchasing products | AC23: High consumer/purchaser knowledge of energy efficiency - allows customer to make informed decisions when purchasing products | AE23: High consumer/purchaser knowledge of energy efficiency - allows customer to make informed decisions when purchasing products
A24: 18 | B24: No | C24: Current energy efficiency programs are accessible to and positively affect all levels of income | D24: Yes | E24: Current energy efficiency programs are accessible to and positively affect all levels of income | G24: Current energy efficiency programs are accessible to and positively affect all levels of income | H24: No | I24: Current energy efficiency programs are accessible to and positively affect all levels of income | J24: Emerging | K24: Current energy efficiency programs are accessible to and positively affect all levels of income | L24: Yes | M24: Current energy efficiency programs are accessible to and positively affect all levels of income | O24: Current energy efficiency programs are accessible to and positively affect all levels of income | Q24: Current energy efficiency programs are accessible to and positively affect all levels of income | S24: Current energy efficiency programs are accessible to and positively affect all levels of income | U24: Current energy efficiency programs are accessible to and positively affect all levels of income | W24: Current energy efficiency programs are accessible to and positively affect all levels of income | Y24: Current energy efficiency programs are accessible to and positively affect all levels of income | AA24: Current energy efficiency programs are accessible to and positively affect all levels of income | AC24: Current energy efficiency programs are accessible to and positively affect all levels of income | AE24: Current energy efficiency programs are accessible to and positively affect all levels of income
A25: 19
A26: 20
A27: Regulatory Mechanisms
A28: 21 | B28: Yes | C28: EE legislation to leverage municipalities and companies to implement energy efficiency | D28: No | E28: EE legislation to leverage municipalities and companies to implement energy efficiency | G28: EE legislation to leverage municipalities and companies to implement energy efficiency | H28: No | I28: EE legislation to leverage municipalities and companies to implement energy efficiency | J28: Yes | K28: EE legislation to leverage municipalities and companies to implement energy efficiency | L28: No | M28: EE legislation to leverage municipalities and companies to implement energy efficiency | O28: EE legislation to leverage municipalities and companies to implement energy efficiency | Q28: EE legislation to leverage municipalities and companies to implement energy efficiency | S28: EE legislation to leverage municipalities and companies to implement energy efficiency | U28: EE legislation to leverage municipalities and companies to implement energy efficiency | W28: EE legislation to leverage municipalities and companies to implement energy efficiency | Y28: EE legislation to leverage municipalities and companies to implement energy efficiency | AA28: EE legislation to leverage municipalities and companies to implement energy efficiency | AC28: EE legislation to leverage municipalities and companies to implement energy efficiency | AE28: EE legislation to leverage municipalities and companies to implement energy efficiency
A29: 22 | B29: Yes | C29: Country/utilities have clear short and long term goals for energy development/expansion | D29: Yes | E29: Country/utilities have clear short and long term goals for energy development/expansion | G29: Country/utilities have clear short and long term goals for energy development/expansion | H29: Emerging | I29: Country/utilities have clear short and long term goals for energy development/expansion | J29: Emerging | K29: Country/utilities have clear short and long term goals for energy development/expansion | L29: Emerging | M29: Country/utilities have clear short and long term goals for energy development/expansion | O29: Country/utilities have clear short and long term goals for energy development/expansion | Q29: Country/utilities have clear short and long term goals for energy development/expansion | S29: Country/utilities have clear short and long term goals for energy development/expansion | U29: Country/utilities have clear short and long term goals for energy development/expansion | W29: Country/utilities have clear short and long term goals for energy development/expansion | Y29: Country/utilities have clear short and long term goals for energy development/expansion | AA29: Country/utilities have clear short and long term goals for energy development/expansion | AC29: Country/utilities have clear short and long term goals for energy development/expansion | AE29: Country/utilities have clear short and long term goals for energy development/expansion
A30: 23 | B30: Yes | C30: Building energy codes for commercial/residential buildings have compliance mechanisms in place | D30: No | E30: Building energy codes for commercial/residential buildings have compliance mechanisms in place | G30: Building energy codes for commercial/residential buildings have compliance mechanisms in place | H30: No | I30: Building energy codes for commercial/residential buildings have compliance mechanisms in place | J30: No | K30: Building energy codes for commercial/residential buildings have compliance mechanisms in place | L30: No | M30: Building energy codes for commercial/residential buildings have compliance mechanisms in place | O30: Building energy codes for commercial/residential buildings have compliance mechanisms in place | Q30: Building energy codes for commercial/residential buildings have compliance mechanisms in place | S30: Building energy codes for commercial/residential buildings have compliance mechanisms in place | U30: Building energy codes for commercial/residential buildings have compliance mechanisms in place | W30: Building energy codes for commercial/residential buildings have compliance mechanisms in place | Y30: Building energy codes for commercial/residential buildings have compliance mechanisms in place | AA30: Building energy codes for commercial/residential buildings have compliance mechanisms in place | AC30: Building energy codes for commercial/residential buildings have compliance mechanisms in place | AE30: Building energy codes for commercial/residential buildings have compliance mechanisms in place
A31: 24 | B31: Yes | C31: Building energy codes for commercial/residential buildings exist | D31: No | E31: Building energy codes for commercial/residential buildings exist | G31: Building energy codes for commercial/residential buildings exist | H31: No | I31: Building energy codes for commercial/residential buildings exist | J31: Emerging | K31: Building energy codes for commercial/residential buildings exist | L31: Yes | M31: Building energy codes for commercial/residential buildings exist | O31: Building energy codes for commercial/residential buildings exist | Q31: Building energy codes for commercial/residential buildings exist | S31: Building energy codes for commercial/residential buildings exist | U31: Building energy codes for commercial/residential buildings exist | W31: Building energy codes for commercial/residential buildings exist | Y31: Building energy codes for commercial/residential buildings exist | AA31: Building energy codes for commercial/residential buildings exist | AC31: Building energy codes for commercial/residential buildings exist | AE31: Building energy codes for commercial/residential buildings exist
A32: 25 | B32: Yes | C32: Energy Efficiency contributes to local/regional plans such as Low Emission Development plans (LEDs) | D32: No | E32: Energy Efficiency contributes to local/regional plans such as Low Emission Development plans (LEDs) | G32: Energy Efficiency contributes to local/regional plans such as Low Emission Development plans (LEDs) | H32: Yes | I32: Energy Efficiency contributes to local/regional plans such as Low Emission Development plans (LEDs) | J32: Yes | K32: Energy Efficiency contributes to local/regional plans such as Low Emission Development plans (LEDs) | L32: Yes | M32: Energy Efficiency contributes to local/regional plans such as Low Emission Development plans (LEDs) | O32: Energy Efficiency contributes to local/regional plans such as Low Emission Development plans (LEDs) | Q32: Energy Efficiency contributes to local/regional plans such as Low Emission Development plans (LEDs) | S32: Energy Efficiency contributes to local/regional plans such as Low Emission Development plans (LEDs) | U32: Energy Efficiency contributes to local/regional plans such as Low Emission Development plans (LEDs) | W32: Energy Efficiency contributes to local/regional plans such as Low Emission Development plans (LEDs) | Y32: Energy Efficiency contributes to local/regional plans such as Low Emission Development plans (LEDs) | AA32: Energy Efficiency contributes to local/regional plans such as Low Emission Development plans (LEDs) | AC32: Energy Efficiency contributes to local/regional plans such as Low Emission Development plans (LEDs) | AE32: Energy Efficiency contributes to local/regional plans such as Low Emission Development plans (LEDs)
A33: 26 | B33: Yes | C33: Energy prices reflect true cost of production, procurement, and transmission (i.e. not subsidized) | D33: No | E33: Energy prices reflect true cost of production, procurement, and transmission (i.e. not subsidized) | G33: Energy prices reflect true cost of production, procurement, and transmission (i.e. not subsidized) | H33: No | I33: Energy prices reflect true cost of production, procurement, and transmission (i.e. not subsidized) | J33: No | K33: Energy prices reflect true cost of production, procurement, and transmission (i.e. not subsidized) | L33: No | M33: Energy prices reflect true cost of production, procurement, and transmission (i.e. not subsidized) | O33: Energy prices reflect true cost of production, procurement, and transmission (i.e. not subsidized) | Q33: Energy prices reflect true cost of production, procurement, and transmission (i.e. not subsidized) | S33: Energy prices reflect true cost of production, procurement, and transmission (i.e. not subsidized) | U33: Energy prices reflect true cost of production, procurement, and transmission (i.e. not subsidized) | W33: Energy prices reflect true cost of production, procurement, and transmission (i.e. not subsidized) | Y33: Energy prices reflect true cost of production, procurement, and transmission (i.e. not subsidized) | AA33: Energy prices reflect true cost of production, procurement, and transmission (i.e. not subsidized) | AC33: Energy prices reflect true cost of production, procurement, and transmission (i.e. not subsidized) | AE33: Energy prices reflect true cost of production, procurement, and transmission (i.e. not subsidized)
A34: 27 | B34: No | C34: Mechanisms in place to assist on this issue of those financing the energy efficiency measures (e.g. building owners) paying cost, but only users benefiting (e.g. tenets) | D34: No | E34: Mechanisms in place to assist on this issue of those financing the energy efficiency measures (e.g. building owners) paying cost, but only users benefiting (e.g. tenets) | G34: Mechanisms in place to assist on this issue of those financing the energy efficiency measures (e.g. building owners) paying cost, but only users benefiting (e.g. tenets) | H34: No | I34: Mechanisms in place to assist on this issue of those financing the energy efficiency measures (e.g. building owners) paying cost, but only users benefiting (e.g. tenets) | J34: No | K34: Mechanisms in place to assist on this issue of those financing the energy efficiency measures (e.g. building owners) paying cost, but only users benefiting (e.g. tenets) | M34: Mechanisms in place to assist on this issue of those financing the energy efficiency measures (e.g. building owners) paying cost, but only users benefiting (e.g. tenets) | O34: Mechanisms in place to assist on this issue of those financing the energy efficiency measures (e.g. building owners) paying cost, but only users benefiting (e.g. tenets) | Q34: Mechanisms in place to assist on this issue of those financing the energy efficiency measures (e.g. building owners) paying cost, but only users benefiting (e.g. tenets) | S34: Mechanisms in place to assist on this issue of those financing the energy efficiency measures (e.g. building owners) paying cost, but only users benefiting (e.g. tenets) | U34: Mechanisms in place to assist on this issue of those financing the energy efficiency measures (e.g. building owners) paying cost, but only users benefiting (e.g. tenets) | W34: Mechanisms in place to assist on this issue of those financing the energy efficiency measures (e.g. building owners) paying cost, but only users benefiting (e.g. tenets) | Y34: Mechanisms in place to assist on this issue of those financing the energy efficiency measures (e.g. building owners) paying cost, but only users benefiting (e.g. tenets) | AA34: Mechanisms in place to assist on this issue of those financing the energy efficiency measures (e.g. building owners) paying cost, but only users benefiting (e.g. tenets) | AC34: Mechanisms in place to assist on this issue of those financing the energy efficiency measures (e.g. building owners) paying cost, but only users benefiting (e.g. tenets) | AE34: Mechanisms in place to assist on this issue of those financing the energy efficiency measures (e.g. building owners) paying cost, but only users benefiting (e.g. tenets)
A35: 28 | B35: Yes | C35: Limited taxes or tariffs are collected on the import of energy-efficient products, keeping prices reasonable | D35: No | E35: Limited taxes or tariffs are collected on the import of energy-efficient products, keeping prices reasonable | G35: Limited taxes or tariffs are collected on the import of energy-efficient products, keeping prices reasonable | H35: No | I35: Limited taxes or tariffs are collected on the import of energy-efficient products, keeping prices reasonable | J35: Yes | K35: Limited taxes or tariffs are collected on the import of energy-efficient products, keeping prices reasonable | L35: Yes | M35: Limited taxes or tariffs are collected on the import of energy-efficient products, keeping prices reasonable | O35: Limited taxes or tariffs are collected on the import of energy-efficient products, keeping prices reasonable | Q35: Limited taxes or tariffs are collected on the import of energy-efficient products, keeping prices reasonable | S35: Limited taxes or tariffs are collected on the import of energy-efficient products, keeping prices reasonable | U35: Limited taxes or tariffs are collected on the import of energy-efficient products, keeping prices reasonable | W35: Limited taxes or tariffs are collected on the import of energy-efficient products, keeping prices reasonable | Y35: Limited taxes or tariffs are collected on the import of energy-efficient products, keeping prices reasonable | AA35: Limited taxes or tariffs are collected on the import of energy-efficient products, keeping prices reasonable | AC35: Limited taxes or tariffs are collected on the import of energy-efficient products, keeping prices reasonable | AE35: Limited taxes or tariffs are collected on the import of energy-efficient products, keeping prices reasonable
A36: 29 | B36: No | C36: Governmental functions operate independently of energy sales (i.e. municipalities and governements are not depenent on energy sales) | D36: Yes | E36: Governmental functions operate independently of energy sales (i.e. municipalities and governements are not depenent on energy sales) | G36: Governmental functions operate independently of energy sales (i.e. municipalities and governements are not depenent on energy sales) | H36: Emerging | I36: Governmental functions operate independently of energy sales (i.e. municipalities and governements are not depenent on energy sales) | J36: Emerging | K36: Governmental functions operate independently of energy sales (i.e. municipalities and governements are not depenent on energy sales) | L36: Yes | M36: Governmental functions operate independently of energy sales (i.e. municipalities and governements are not depenent on energy sales) | O36: Governmental functions operate independently of energy sales (i.e. municipalities and governements are not depenent on energy sales) | Q36: Governmental functions operate independently of energy sales (i.e. municipalities and governements are not depenent on energy sales) | S36: Governmental functions operate independently of energy sales (i.e. municipalities and governements are not depenent on energy sales) | U36: Governmental functions operate independently of energy sales (i.e. municipalities and governements are not depenent on energy sales) | W36: Governmental functions operate independently of energy sales (i.e. municipalities and governements are not depenent on energy sales) | Y36: Governmental functions operate independently of energy sales (i.e. municipalities and governements are not depenent on energy sales) | AA36: Governmental functions operate independently of energy sales (i.e. municipalities and governements are not depenent on energy sales) | AC36: Governmental functions operate independently of energy sales (i.e. municipalities and governements are not depenent on energy sales) | AE36: Governmental functions operate independently of energy sales (i.e. municipalities and governements are not depenent on energy sales)
A37: Smart Incentives
A38: 30 | B38: Yes | C38: Residential demand side management programs with incentives exist | D38: No | E38: Residential demand side management programs with incentives exist | G38: Residential demand side management programs with incentives exist | H38: No | I38: Residential demand side management programs with incentives exist | J38: No | K38: Residential demand side management programs with incentives exist | L38: Yes | M38: Residential demand side management programs with incentives exist | O38: Residential demand side management programs with incentives exist | Q38: Residential demand side management programs with incentives exist | S38: Residential demand side management programs with incentives exist | U38: Residential demand side management programs with incentives exist | W38: Residential demand side management programs with incentives exist | Y38: Residential demand side management programs with incentives exist | AA38: Residential demand side management programs with incentives exist | AC38: Residential demand side management programs with incentives exist | AE38: Residential demand side management programs with incentives exist
A39: 31 | B39: Yes | C39: Commercial demand side management programs with incentives exist | D39: No | E39: Commercial demand side management programs with incentives exist | G39: Commercial demand side management programs with incentives exist | H39: Yes | I39: Commercial demand side management programs with incentives exist | J39: No | K39: Commercial demand side management programs with incentives exist | L39: Yes | M39: Commercial demand side management programs with incentives exist | O39: Commercial demand side management programs with incentives exist | Q39: Commercial demand side management programs with incentives exist | S39: Commercial demand side management programs with incentives exist | U39: Commercial demand side management programs with incentives exist | W39: Commercial demand side management programs with incentives exist | Y39: Commercial demand side management programs with incentives exist | AA39: Commercial demand side management programs with incentives exist | AC39: Commercial demand side management programs with incentives exist | AE39: Commercial demand side management programs with incentives exist
A40: 32 | B40: No | C40: Industrial demand side management programs with incentives exist | D40: No | E40: Industrial demand side management programs with incentives exist | G40: Industrial demand side management programs with incentives exist | H40: No | I40: Industrial demand side management programs with incentives exist | J40: No | K40: Industrial demand side management programs with incentives exist | L40: Yes | M40: Industrial demand side management programs with incentives exist | O40: Industrial demand side management programs with incentives exist | Q40: Industrial demand side management programs with incentives exist | S40: Industrial demand side management programs with incentives exist | U40: Industrial demand side management programs with incentives exist | W40: Industrial demand side management programs with incentives exist | Y40: Industrial demand side management programs with incentives exist | AA40: Industrial demand side management programs with incentives exist | AC40: Industrial demand side management programs with incentives exist | AE40: Industrial demand side management programs with incentives exist
A41: 33 | B41: No | C41: Tax incentives for purchasing specific energy-efficient products exist | D41: No | E41: Tax incentives for purchasing specific energy-efficient products exist | G41: Tax incentives for purchasing specific energy-efficient products exist | H41: No | I41: Tax incentives for purchasing specific energy-efficient products exist | J41: No | K41: Tax incentives for purchasing specific energy-efficient products exist | L41: Emerging | M41: Tax incentives for purchasing specific energy-efficient products exist | O41: Tax incentives for purchasing specific energy-efficient products exist | Q41: Tax incentives for purchasing specific energy-efficient products exist | S41: Tax incentives for purchasing specific energy-efficient products exist | U41: Tax incentives for purchasing specific energy-efficient products exist | W41: Tax incentives for purchasing specific energy-efficient products exist | Y41: Tax incentives for purchasing specific energy-efficient products exist | AA41: Tax incentives for purchasing specific energy-efficient products exist | AC41: Tax incentives for purchasing specific energy-efficient products exist | AE41: Tax incentives for purchasing specific energy-efficient products exist
A42: 34
A43: 35
A44: Technology Development
A45: 36 | B45: Yes | C45: Testing facilities for energy-efficient products exist in country/region | D45: No | E45: Testing facilities for energy-efficient products exist in country/region | G45: Testing facilities for energy-efficient products exist in country/region | H45: No | I45: Testing facilities for energy-efficient products exist in country/region | J45: No | K45: Testing facilities for energy-efficient products exist in country/region | L45: Yes | M45: Testing facilities for energy-efficient products exist in country/region | O45: Testing facilities for energy-efficient products exist in country/region | Q45: Testing facilities for energy-efficient products exist in country/region | S45: Testing facilities for energy-efficient products exist in country/region | U45: Testing facilities for energy-efficient products exist in country/region | W45: Testing facilities for energy-efficient products exist in country/region | Y45: Testing facilities for energy-efficient products exist in country/region | AA45: Testing facilities for energy-efficient products exist in country/region | AC45: Testing facilities for energy-efficient products exist in country/region | AE45: Testing facilities for energy-efficient products exist in country/region
A46: 37 | B46: Yes | C46: Appliance energy rating standards exist and are complied with | D46: No | E46: Appliance energy rating standards exist and are complied with | G46: Appliance energy rating standards exist and are complied with | H46: Yes | I46: Appliance energy rating standards exist and are complied with | J46: No | K46: Appliance energy rating standards exist and are complied with | L46: Yes | M46: Appliance energy rating standards exist and are complied with | O46: Appliance energy rating standards exist and are complied with | Q46: Appliance energy rating standards exist and are complied with | S46: Appliance energy rating standards exist and are complied with | U46: Appliance energy rating standards exist and are complied with | W46: Appliance energy rating standards exist and are complied with | Y46: Appliance energy rating standards exist and are complied with | AA46: Appliance energy rating standards exist and are complied with | AC46: Appliance energy rating standards exist and are complied with | AE46: Appliance energy rating standards exist and are complied with
A47: 38 | B47: Yes | C47: Non-energy benefits (i.e. cascading benefits of utility bill reduction, avoided emissions, job creation) are included in EE planning and cost-effectiveness | D47: No | E47: Non-energy benefits (i.e. cascading benefits of utility bill reduction, avoided emissions, job creation) are included in EE planning and cost-effectiveness | G47: Non-energy benefits (i.e. cascading benefits of utility bill reduction, avoided emissions, job creation) are included in EE planning and cost-effectiveness | H47: No | I47: Non-energy benefits (i.e. cascading benefits of utility bill reduction, avoided emissions, job creation) are included in EE planning and cost-effectiveness | J47: Emerging | K47: Non-energy benefits (i.e. cascading benefits of utility bill reduction, avoided emissions, job creation) are included in EE planning and cost-effectiveness | L47: Emerging | M47: Non-energy benefits (i.e. cascading benefits of utility bill reduction, avoided emissions, job creation) are included in EE planning and cost-effectiveness | O47: Non-energy benefits (i.e. cascading benefits of utility bill reduction, avoided emissions, job creation) are included in EE planning and cost-effectiveness | Q47: Non-energy benefits (i.e. cascading benefits of utility bill reduction, avoided emissions, job creation) are included in EE planning and cost-effectiveness | S47: Non-energy benefits (i.e. cascading benefits of utility bill reduction, avoided emissions, job creation) are included in EE planning and cost-effectiveness | U47: Non-energy benefits (i.e. cascading benefits of utility bill reduction, avoided emissions, job creation) are included in EE planning and cost-effectiveness | W47: Non-energy benefits (i.e. cascading benefits of utility bill reduction, avoided emissions, job creation) are included in EE planning and cost-effectiveness | Y47: Non-energy benefits (i.e. cascading benefits of utility bill reduction, avoided emissions, job creation) are included in EE planning and cost-effectiveness | AA47: Non-energy benefits (i.e. cascading benefits of utility bill reduction, avoided emissions, job creation) are included in EE planning and cost-effectiveness | AC47: Non-energy benefits (i.e. cascading benefits of utility bill reduction, avoided emissions, job creation) are included in EE planning and cost-effectiveness | AE47: Non-energy benefits (i.e. cascading benefits of utility bill reduction, avoided emissions, job creation) are included in EE planning and cost-effectiveness
A48: 39 | B48: No | C48: EE measures capable of modifying market behavior even after incentives are removed | D48: Yes | E48: EE measures capable of modifying market behavior even after incentives are removed | G48: EE measures capable of modifying market behavior even after incentives are removed | H48: No | I48: EE measures capable of modifying market behavior even after incentives are removed | J48: No | K48: EE measures capable of modifying market behavior even after incentives are removed | L48: Emerging | M48: EE measures capable of modifying market behavior even after incentives are removed | O48: EE measures capable of modifying market behavior even after incentives are removed | Q48: EE measures capable of modifying market behavior even after incentives are removed | S48: EE measures capable of modifying market behavior even after incentives are removed | U48: EE measures capable of modifying market behavior even after incentives are removed | W48: EE measures capable of modifying market behavior even after incentives are removed | Y48: EE measures capable of modifying market behavior even after incentives are removed | AA48: EE measures capable of modifying market behavior even after incentives are removed | AC48: EE measures capable of modifying market behavior even after incentives are removed | AE48: EE measures capable of modifying market behavior even after incentives are removed
A49: 40
A50: 41
A53: User Modified Value Table
A55: Country | B55: South Africa | D55: Mozambique | F55: Uganda | H55: El Salvador | J55: Kazakhstan | L55: Mexico | N55: Tajikistan | P55: India - Telangana | R55: India - Andhra Pradesh
A56: Capacity Building
A57: 1 | B57: No | C57: Trained professionals that focus on identifying energy efficiency opportunities (Ex: energy auditors or home energy raters) | D57: No | E57: Trained professionals that focus on identifying energy efficiency opportunities (Ex: energy auditors or home energy raters) | G57: Trained professionals that focus on identifying energy efficiency opportunities (Ex: energy auditors or home energy raters) | H57: No | I57: Trained professionals that focus on identifying energy efficiency opportunities (Ex: energy auditors or home energy raters) | J57: Emerging | K57: Trained professionals that focus on identifying energy efficiency opportunities (Ex: energy auditors or home energy raters) | L57: No | M57: Trained professionals that focus on identifying energy efficiency opportunities (Ex: energy auditors or home energy raters) | O57: Trained professionals that focus on identifying energy efficiency opportunities (Ex: energy auditors or home energy raters) | P57: Yes | Q57: Trained professionals that focus on identifying energy efficiency opportunities (Ex: energy auditors or home energy raters) | R57: Yes | S57: Trained professionals that focus on identifying energy efficiency opportunities (Ex: energy auditors or home energy raters) | U57: Trained professionals that focus on identifying energy efficiency opportunities (Ex: energy auditors or home energy raters) | W57: Trained professionals that focus on identifying energy efficiency opportunities (Ex: energy auditors or home energy raters) | Y57: Trained professionals that focus on identifying energy efficiency opportunities (Ex: energy auditors or home energy raters) | AA57: Trained professionals that focus on identifying energy efficiency opportunities (Ex: energy auditors or home energy raters) | AC57: Trained professionals that focus on identifying energy efficiency opportunities (Ex: energy auditors or home energy raters) | AE57: Trained professionals that focus on identifying energy efficiency opportunities (Ex: energy auditors or home energy raters)
A58: 2 | B58: Yes | C58: Network of actors in government, utility, and private sector are well connected and able to work together to deliver energy efficiency programs | D58: No | E58: Network of actors in government, utility, and private sector are well connected and able to work together to deliver energy efficiency programs | G58: Network of actors in government, utility, and private sector are well connected and able to work together to deliver energy efficiency programs | H58: Yes | I58: Network of actors in government, utility, and private sector are well connected and able to work together to deliver energy efficiency programs | J58: Emerging | K58: Network of actors in government, utility, and private sector are well connected and able to work together to deliver energy efficiency programs | L58: Yes | M58: Network of actors in government, utility, and private sector are well connected and able to work together to deliver energy efficiency programs | O58: Network of actors in government, utility, and private sector are well connected and able to work together to deliver energy efficiency programs | P58: Emerging | Q58: Network of actors in government, utility, and private sector are well connected and able to work together to deliver energy efficiency programs | R58: Yes | S58: Network of actors in government, utility, and private sector are well connected and able to work together to deliver energy efficiency programs | U58: Network of actors in government, utility, and private sector are well connected and able to work together to deliver energy efficiency programs | W58: Network of actors in government, utility, and private sector are well connected and able to work together to deliver energy efficiency programs | Y58: Network of actors in government, utility, and private sector are well connected and able to work together to deliver energy efficiency programs | AA58: Network of actors in government, utility, and private sector are well connected and able to work together to deliver energy efficiency programs | AC58: Network of actors in government, utility, and private sector are well connected and able to work together to deliver energy efficiency programs | AE58: Network of actors in government, utility, and private sector are well connected and able to work together to deliver energy efficiency programs
A59: 3 | B59: No | C59: Energy Services Companies (ESCOs) exist and energy performance contracts are able to be contractually upheld under current regulatory framework | D59: No | E59: Energy Services Companies (ESCOs) exist and energy performance contracts are able to be contractually upheld under current regulatory framework | G59: Energy Services Companies (ESCOs) exist and energy performance contracts are able to be contractually upheld under current regulatory framework | H59: Emerging | I59: Energy Services Companies (ESCOs) exist and energy performance contracts are able to be contractually upheld under current regulatory framework | J59: Yes | K59: Energy Services Companies (ESCOs) exist and energy performance contracts are able to be contractually upheld under current regulatory framework | L59: No | M59: Energy Services Companies (ESCOs) exist and energy performance contracts are able to be contractually upheld under current regulatory framework | O59: Energy Services Companies (ESCOs) exist and energy performance contracts are able to be contractually upheld under current regulatory framework | P59: Yes | Q59: Energy Services Companies (ESCOs) exist and energy performance contracts are able to be contractually upheld under current regulatory framework | R59: Yes | S59: Energy Services Companies (ESCOs) exist and energy performance contracts are able to be contractually upheld under current regulatory framework | U59: Energy Services Companies (ESCOs) exist and energy performance contracts are able to be contractually upheld under current regulatory framework | W59: Energy Services Companies (ESCOs) exist and energy performance contracts are able to be contractually upheld under current regulatory framework | Y59: Energy Services Companies (ESCOs) exist and energy performance contracts are able to be contractually upheld under current regulatory framework | AA59: Energy Services Companies (ESCOs) exist and energy performance contracts are able to be contractually upheld under current regulatory framework | AC59: Energy Services Companies (ESCOs) exist and energy performance contracts are able to be contractually upheld under current regulatory framework | AE59: Energy Services Companies (ESCOs) exist and energy performance contracts are able to be contractually upheld under current regulatory framework
A60: 4 | B60: Yes | C60: Government and/or industry effort to collect and maintain inventory of energy efficient technologies exists | D60: No | E60: Government and/or industry effort to collect and maintain inventory of energy efficient technologies exists | G60: Government and/or industry effort to collect and maintain inventory of energy efficient technologies exists | H60: No | I60: Government and/or industry effort to collect and maintain inventory of energy efficient technologies exists | J60: Emerging | K60: Government and/or industry effort to collect and maintain inventory of energy efficient technologies exists | L60: Yes | M60: Government and/or industry effort to collect and maintain inventory of energy efficient technologies exists | O60: Government and/or industry effort to collect and maintain inventory of energy efficient technologies exists | P60: Emerging | Q60: Government and/or industry effort to collect and maintain inventory of energy efficient technologies exists | R60: Yes | S60: Government and/or industry effort to collect and maintain inventory of energy efficient technologies exists | U60: Government and/or industry effort to collect and maintain inventory of energy efficient technologies exists | W60: Government and/or industry effort to collect and maintain inventory of energy efficient technologies exists | Y60: Government and/or industry effort to collect and maintain inventory of energy efficient technologies exists | AA60: Government and/or industry effort to collect and maintain inventory of energy efficient technologies exists | AC60: Government and/or industry effort to collect and maintain inventory of energy efficient technologies exists | AE60: Government and/or industry effort to collect and maintain inventory of energy efficient technologies exists
A61: 5 | B61: No | C61: Standard training or certification exists for performing energy efficiency assessments in buildings | D61: No | E61: Standard training or certification exists for performing energy efficiency assessments in buildings | G61: Standard training or certification exists for performing energy efficiency assessments in buildings | H61: No | I61: Standard training or certification exists for performing energy efficiency assessments in buildings | J61: No | K61: Standard training or certification exists for performing energy efficiency assessments in buildings | L61: No | M61: Standard training or certification exists for performing energy efficiency assessments in buildings | O61: Standard training or certification exists for performing energy efficiency assessments in buildings | P61: No | Q61: Standard training or certification exists for performing energy efficiency assessments in buildings | R61: Yes | S61: Standard training or certification exists for performing energy efficiency assessments in buildings | U61: Standard training or certification exists for performing energy efficiency assessments in buildings | W61: Standard training or certification exists for performing energy efficiency assessments in buildings | Y61: Standard training or certification exists for performing energy efficiency assessments in buildings | AA61: Standard training or certification exists for performing energy efficiency assessments in buildings | AC61: Standard training or certification exists for performing energy efficiency assessments in buildings | AE61: Standard training or certification exists for performing energy efficiency assessments in buildings
A62: 6 | B62: No | C62: Standard training and certification for performing energy efficiency assessments is widely adhered to | D62: No | E62: Standard training and certification for performing energy efficiency assessments is widely adhered to | G62: Standard training and certification for performing energy efficiency assessments is widely adhered to | H62: No | I62: Standard training and certification for performing energy efficiency assessments is widely adhered to | J62: No | K62: Standard training and certification for performing energy efficiency assessments is widely adhered to | L62: No | M62: Standard training and certification for performing energy efficiency assessments is widely adhered to | O62: Standard training and certification for performing energy efficiency assessments is widely adhered to | P62: Yes | Q62: Standard training and certification for performing energy efficiency assessments is widely adhered to | R62: Yes | S62: Standard training and certification for performing energy efficiency assessments is widely adhered to | U62: Standard training and certification for performing energy efficiency assessments is widely adhered to | W62: Standard training and certification for performing energy efficiency assessments is widely adhered to | Y62: Standard training and certification for performing energy efficiency assessments is widely adhered to | AA62: Standard training and certification for performing energy efficiency assessments is widely adhered to | AC62: Standard training and certification for performing energy efficiency assessments is widely adhered to | AE62: Standard training and certification for performing energy efficiency assessments is widely adhered to
A63: 7 | B63: Yes | C63: Tools and models to analyze energy efficiency opportunities are available to energy professionals | D63: No | E63: Tools and models to analyze energy efficiency opportunities are available to energy professionals | G63: Tools and models to analyze energy efficiency opportunities are available to energy professionals | H63: Emerging | I63: Tools and models to analyze energy efficiency opportunities are available to energy professionals | J63: No | K63: Tools and models to analyze energy efficiency opportunities are available to energy professionals | L63: Yes | M63: Tools and models to analyze energy efficiency opportunities are available to energy professionals | O63: Tools and models to analyze energy efficiency opportunities are available to energy professionals | P63: Emerging | Q63: Tools and models to analyze energy efficiency opportunities are available to energy professionals | R63: No | S63: Tools and models to analyze energy efficiency opportunities are available to energy professionals | U63: Tools and models to analyze energy efficiency opportunities are available to energy professionals | W63: Tools and models to analyze energy efficiency opportunities are available to energy professionals | Y63: Tools and models to analyze energy efficiency opportunities are available to energy professionals | AA63: Tools and models to analyze energy efficiency opportunities are available to energy professionals | AC63: Tools and models to analyze energy efficiency opportunities are available to energy professionals | AE63: Tools and models to analyze energy efficiency opportunities are available to energy professionals
A64: 8 | B64: No | C64: Tools and models to analyze energy efficiency opportunities are available to financial professionals | D64: No | E64: Tools and models to analyze energy efficiency opportunities are available to financial professionals | G64: Tools and models to analyze energy efficiency opportunities are available to financial professionals | H64: Emerging | I64: Tools and models to analyze energy efficiency opportunities are available to financial professionals | J64: No | K64: Tools and models to analyze energy efficiency opportunities are available to financial professionals | L64: Emerging | M64: Tools and models to analyze energy efficiency opportunities are available to financial professionals | O64: Tools and models to analyze energy efficiency opportunities are available to financial professionals | P64: No | Q64: Tools and models to analyze energy efficiency opportunities are available to financial professionals | R64: No | S64: Tools and models to analyze energy efficiency opportunities are available to financial professionals | U64: Tools and models to analyze energy efficiency opportunities are available to financial professionals | W64: Tools and models to analyze energy efficiency opportunities are available to financial professionals | Y64: Tools and models to analyze energy efficiency opportunities are available to financial professionals | AA64: Tools and models to analyze energy efficiency opportunities are available to financial professionals | AC64: Tools and models to analyze energy efficiency opportunities are available to financial professionals | AE64: Tools and models to analyze energy efficiency opportunities are available to financial professionals
A65: Financing Support
A66: 9 | B66: Yes | C66: Significant funding for energy efficiency measures | D66: No | E66: Significant funding for energy efficiency measures | G66: Significant funding for energy efficiency measures | H66: Emerging | I66: Significant funding for energy efficiency measures | J66: Yes | K66: Significant funding for energy efficiency measures | L66: No | M66: Significant funding for energy efficiency measures | O66: Significant funding for energy efficiency measures | P66: Emerging | Q66: Significant funding for energy efficiency measures | R66: No | S66: Significant funding for energy efficiency measures | U66: Significant funding for energy efficiency measures | W66: Significant funding for energy efficiency measures | Y66: Significant funding for energy efficiency measures | AA66: Significant funding for energy efficiency measures | AC66: Significant funding for energy efficiency measures | AE66: Significant funding for energy efficiency measures
A67: 10 | B67: No | C67: Consumers are not discouraged by high initial cost of implementation of energy efficiency measures | D67: No | E67: Consumers are not discouraged by high initial cost of implementation of energy efficiency measures | G67: Consumers are not discouraged by high initial cost of implementation of energy efficiency measures | H67: No | I67: Consumers are not discouraged by high initial cost of implementation of energy efficiency measures | J67: No | K67: Consumers are not discouraged by high initial cost of implementation of energy efficiency measures | L67: Yes | M67: Consumers are not discouraged by high initial cost of implementation of energy efficiency measures | O67: Consumers are not discouraged by high initial cost of implementation of energy efficiency measures | P67: Emerging | Q67: Consumers are not discouraged by high initial cost of implementation of energy efficiency measures | R67: Emerging | S67: Consumers are not discouraged by high initial cost of implementation of energy efficiency measures | U67: Consumers are not discouraged by high initial cost of implementation of energy efficiency measures | W67: Consumers are not discouraged by high initial cost of implementation of energy efficiency measures | Y67: Consumers are not discouraged by high initial cost of implementation of energy efficiency measures | AA67: Consumers are not discouraged by high initial cost of implementation of energy efficiency measures | AC67: Consumers are not discouraged by high initial cost of implementation of energy efficiency measures | AE67: Consumers are not discouraged by high initial cost of implementation of energy efficiency measures
A68: 11 | B68: No | C68: Energy efficiency perceived as low risk/high return investment | D68: No | E68: Energy efficiency perceived as low risk/high return investment | G68: Energy efficiency perceived as low risk/high return investment | H68: No | I68: Energy efficiency perceived as low risk/high return investment | J68: No | K68: Energy efficiency perceived as low risk/high return investment | L68: No | M68: Energy efficiency perceived as low risk/high return investment | O68: Energy efficiency perceived as low risk/high return investment | P68: Emerging | Q68: Energy efficiency perceived as low risk/high return investment | R68: Emerging | S68: Energy efficiency perceived as low risk/high return investment | U68: Energy efficiency perceived as low risk/high return investment | W68: Energy efficiency perceived as low risk/high return investment | Y68: Energy efficiency perceived as low risk/high return investment | AA68: Energy efficiency perceived as low risk/high return investment | AC68: Energy efficiency perceived as low risk/high return investment | AE68: Energy efficiency perceived as low risk/high return investment
A69: 12 | B69: Yes | C69: Government incentives to buy down first cost of new technologies exists | D69: No | E69: Government incentives to buy down first cost of new technologies exists | G69: Government incentives to buy down first cost of new technologies exists | H69: No | I69: Government incentives to buy down first cost of new technologies exists | J69: No | K69: Government incentives to buy down first cost of new technologies exists | L69: Yes | M69: Government incentives to buy down first cost of new technologies exists | O69: Government incentives to buy down first cost of new technologies exists | P69: Yes | Q69: Government incentives to buy down first cost of new technologies exists | R69: Yes | S69: Government incentives to buy down first cost of new technologies exists | U69: Government incentives to buy down first cost of new technologies exists | W69: Government incentives to buy down first cost of new technologies exists | Y69: Government incentives to buy down first cost of new technologies exists | AA69: Government incentives to buy down first cost of new technologies exists | AC69: Government incentives to buy down first cost of new technologies exists | AE69: Government incentives to buy down first cost of new technologies exists
A70: 13
A71: 14
A72: Public Awareness
A73: 15 | B73: No | C73: Customer awareness level of energy efficiency programs (incentive offerings) already in place is high | D73: No | E73: Customer awareness level of energy efficiency programs (incentive offerings) already in place is high | G73: Customer awareness level of energy efficiency programs (incentive offerings) already in place is high | H73: No | I73: Customer awareness level of energy efficiency programs (incentive offerings) already in place is high | J73: No | K73: Customer awareness level of energy efficiency programs (incentive offerings) already in place is high | L73: No | M73: Customer awareness level of energy efficiency programs (incentive offerings) already in place is high | O73: Customer awareness level of energy efficiency programs (incentive offerings) already in place is high | P73: Emerging | Q73: Customer awareness level of energy efficiency programs (incentive offerings) already in place is high | R73: Emerging | S73: Customer awareness level of energy efficiency programs (incentive offerings) already in place is high | U73: Customer awareness level of energy efficiency programs (incentive offerings) already in place is high | W73: Customer awareness level of energy efficiency programs (incentive offerings) already in place is high | Y73: Customer awareness level of energy efficiency programs (incentive offerings) already in place is high | AA73: Customer awareness level of energy efficiency programs (incentive offerings) already in place is high | AC73: Customer awareness level of energy efficiency programs (incentive offerings) already in place is high | AE73: Customer awareness level of energy efficiency programs (incentive offerings) already in place is high
A74: 16 | B74: No | C74: Consumers have previous positive experience with energy-efficient products achieving marketed claims | D74: No | E74: Consumers have previous positive experience with energy-efficient products achieving marketed claims | G74: Consumers have previous positive experience with energy-efficient products achieving marketed claims | H74: Emerging | I74: Consumers have previous positive experience with energy-efficient products achieving marketed claims | L74: Yes | M74: Consumers have previous positive experience with energy-efficient products achieving marketed claims | O74: Consumers have previous positive experience with energy-efficient products achieving marketed claims | P74: Emerging | Q74: Consumers have previous positive experience with energy-efficient products achieving marketed claims | R74: Yes | S74: Consumers have previous positive experience with energy-efficient products achieving marketed claims | U74: Consumers have previous positive experience with energy-efficient products achieving marketed claims | W74: Consumers have previous positive experience with energy-efficient products achieving marketed claims | Y74: Consumers have previous positive experience with energy-efficient products achieving marketed claims | AA74: Consumers have previous positive experience with energy-efficient products achieving marketed claims | AC74: Consumers have previous positive experience with energy-efficient products achieving marketed claims | AE74: Consumers have previous positive experience with energy-efficient products achieving marketed claims
A75: 17 | B75: No | C75: High consumer/purchaser knowledge of energy efficiency - allows customer to make informed decisions when purchasing products | D75: No | E75: High consumer/purchaser knowledge of energy efficiency - allows customer to make informed decisions when purchasing products | G75: High consumer/purchaser knowledge of energy efficiency - allows customer to make informed decisions when purchasing products | H75: No | I75: High consumer/purchaser knowledge of energy efficiency - allows customer to make informed decisions when purchasing products | J75: No | K75: High consumer/purchaser knowledge of energy efficiency - allows customer to make informed decisions when purchasing products | L75: No | M75: High consumer/purchaser knowledge of energy efficiency - allows customer to make informed decisions when purchasing products | O75: High consumer/purchaser knowledge of energy efficiency - allows customer to make informed decisions when purchasing products | P75: Emerging | Q75: High consumer/purchaser knowledge of energy efficiency - allows customer to make informed decisions when purchasing products | R75: Yes | S75: High consumer/purchaser knowledge of energy efficiency - allows customer to make informed decisions when purchasing products | U75: High consumer/purchaser knowledge of energy efficiency - allows customer to make informed decisions when purchasing products | W75: High consumer/purchaser knowledge of energy efficiency - allows customer to make informed decisions when purchasing products | Y75: High consumer/purchaser knowledge of energy efficiency - allows customer to make informed decisions when purchasing products | AA75: High consumer/purchaser knowledge of energy efficiency - allows customer to make informed decisions when purchasing products | AC75: High consumer/purchaser knowledge of energy efficiency - allows customer to make informed decisions when purchasing products | AE75: High consumer/purchaser knowledge of energy efficiency - allows customer to make informed decisions when purchasing products
A76: 18 | B76: No | C76: Current energy efficiency programs are accessible to and positively affect all levels of income | D76: Yes | E76: Current energy efficiency programs are accessible to and positively affect all levels of income | G76: Current energy efficiency programs are accessible to and positively affect all levels of income | H76: No | I76: Current energy efficiency programs are accessible to and positively affect all levels of income | J76: Emerging | K76: Current energy efficiency programs are accessible to and positively affect all levels of income | L76: Yes | M76: Current energy efficiency programs are accessible to and positively affect all levels of income | O76: Current energy efficiency programs are accessible to and positively affect all levels of income | P76: Yes | Q76: Current energy efficiency programs are accessible to and positively affect all levels of income | R76: Yes | S76: Current energy efficiency programs are accessible to and positively affect all levels of income | U76: Current energy efficiency programs are accessible to and positively affect all levels of income | W76: Current energy efficiency programs are accessible to and positively affect all levels of income | Y76: Current energy efficiency programs are accessible to and positively affect all levels of income | AA76: Current energy efficiency programs are accessible to and positively affect all levels of income | AC76: Current energy efficiency programs are accessible to and positively affect all levels of income | AE76: Current energy efficiency programs are accessible to and positively affect all levels of income
A77: 19
A78: 20
A79: Regulatory Mechanisms
A80: 21 | B80: Yes | C80: EE legislation to leverage municipalities and companies to implement energy efficiency | D80: No | E80: EE legislation to leverage municipalities and companies to implement energy efficiency | G80: EE legislation to leverage municipalities and companies to implement energy efficiency | H80: No | I80: EE legislation to leverage municipalities and companies to implement energy efficiency | J80: Yes | K80: EE legislation to leverage municipalities and companies to implement energy efficiency | L80: No | M80: EE legislation to leverage municipalities and companies to implement energy efficiency | O80: EE legislation to leverage municipalities and companies to implement energy efficiency | P80: Yes | Q80: EE legislation to leverage municipalities and companies to implement energy efficiency | R80: Yes | S80: EE legislation to leverage municipalities and companies to implement energy efficiency | U80: EE legislation to leverage municipalities and companies to implement energy efficiency | W80: EE legislation to leverage municipalities and companies to implement energy efficiency | Y80: EE legislation to leverage municipalities and companies to implement energy efficiency | AA80: EE legislation to leverage municipalities and companies to implement energy efficiency | AC80: EE legislation to leverage municipalities and companies to implement energy efficiency | AE80: EE legislation to leverage municipalities and companies to implement energy efficiency
A81: 22 | B81: Yes | C81: Country/utilities have clear short and long term goals for energy development/expansion | D81: Yes | E81: Country/utilities have clear short and long term goals for energy development/expansion | G81: Country/utilities have clear short and long term goals for energy development/expansion | H81: Emerging | I81: Country/utilities have clear short and long term goals for energy development/expansion | J81: Emerging | K81: Country/utilities have clear short and long term goals for energy development/expansion | L81: Emerging | M81: Country/utilities have clear short and long term goals for energy development/expansion | O81: Country/utilities have clear short and long term goals for energy development/expansion | P81: Emerging | Q81: Country/utilities have clear short and long term goals for energy development/expansion | R81: Yes | S81: Country/utilities have clear short and long term goals for energy development/expansion | U81: Country/utilities have clear short and long term goals for energy development/expansion | W81: Country/utilities have clear short and long term goals for energy development/expansion | Y81: Country/utilities have clear short and long term goals for energy development/expansion | AA81: Country/utilities have clear short and long term goals for energy development/expansion | AC81: Country/utilities have clear short and long term goals for energy development/expansion | AE81: Country/utilities have clear short and long term goals for energy development/expansion
A82: 23 | B82: Yes | C82: Building energy codes for commercial/residential buildings have compliance mechanisms in place | D82: No | E82: Building energy codes for commercial/residential buildings have compliance mechanisms in place | G82: Building energy codes for commercial/residential buildings have compliance mechanisms in place | H82: No | I82: Building energy codes for commercial/residential buildings have compliance mechanisms in place | J82: No | K82: Building energy codes for commercial/residential buildings have compliance mechanisms in place | L82: No | M82: Building energy codes for commercial/residential buildings have compliance mechanisms in place | O82: Building energy codes for commercial/residential buildings have compliance mechanisms in place | P82: No | Q82: Building energy codes for commercial/residential buildings have compliance mechanisms in place | R82: No | S82: Building energy codes for commercial/residential buildings have compliance mechanisms in place | U82: Building energy codes for commercial/residential buildings have compliance mechanisms in place | W82: Building energy codes for commercial/residential buildings have compliance mechanisms in place | Y82: Building energy codes for commercial/residential buildings have compliance mechanisms in place | AA82: Building energy codes for commercial/residential buildings have compliance mechanisms in place | AC82: Building energy codes for commercial/residential buildings have compliance mechanisms in place | AE82: Building energy codes for commercial/residential buildings have compliance mechanisms in place
A83: 24 | B83: Yes | C83: Building energy codes for commercial/residential buildings exist | D83: No | E83: Building energy codes for commercial/residential buildings exist | G83: Building energy codes for commercial/residential buildings exist | H83: No | I83: Building energy codes for commercial/residential buildings exist | J83: Emerging | K83: Building energy codes for commercial/residential buildings exist | L83: Yes | M83: Building energy codes for commercial/residential buildings exist | O83: Building energy codes for commercial/residential buildings exist | P83: Yes | Q83: Building energy codes for commercial/residential buildings exist | R83: Yes | S83: Building energy codes for commercial/residential buildings exist | U83: Building energy codes for commercial/residential buildings exist | W83: Building energy codes for commercial/residential buildings exist | Y83: Building energy codes for commercial/residential buildings exist | AA83: Building energy codes for commercial/residential buildings exist | AC83: Building energy codes for commercial/residential buildings exist | AE83: Building energy codes for commercial/residential buildings exist
A84: 25 | B84: Yes | C84: Energy Efficiency contributes to local/regional plans such as Low Emission Development plans (LEDs) | D84: No | E84: Energy Efficiency contributes to local/regional plans such as Low Emission Development plans (LEDs) | G84: Energy Efficiency contributes to local/regional plans such as Low Emission Development plans (LEDs) | H84: Yes | I84: Energy Efficiency contributes to local/regional plans such as Low Emission Development plans (LEDs) | J84: Yes | K84: Energy Efficiency contributes to local/regional plans such as Low Emission Development plans (LEDs) | L84: Yes | M84: Energy Efficiency contributes to local/regional plans such as Low Emission Development plans (LEDs) | O84: Energy Efficiency contributes to local/regional plans such as Low Emission Development plans (LEDs) | P84: Emerging | Q84: Energy Efficiency contributes to local/regional plans such as Low Emission Development plans (LEDs) | R84: Emerging | S84: Energy Efficiency contributes to local/regional plans such as Low Emission Development plans (LEDs) | U84: Energy Efficiency contributes to local/regional plans such as Low Emission Development plans (LEDs) | W84: Energy Efficiency contributes to local/regional plans such as Low Emission Development plans (LEDs) | Y84: Energy Efficiency contributes to local/regional plans such as Low Emission Development plans (LEDs) | AA84: Energy Efficiency contributes to local/regional plans such as Low Emission Development plans (LEDs) | AC84: Energy Efficiency contributes to local/regional plans such as Low Emission Development plans (LEDs) | AE84: Energy Efficiency contributes to local/regional plans such as Low Emission Development plans (LEDs)
A85: 26 | B85: Yes | C85: Energy prices reflect true cost of production, procurement, and transmission (i.e. not subsidized) | D85: No | E85: Energy prices reflect true cost of production, procurement, and transmission (i.e. not subsidized) | G85: Energy prices reflect true cost of production, procurement, and transmission (i.e. not subsidized) | H85: No | I85: Energy prices reflect true cost of production, procurement, and transmission (i.e. not subsidized) | J85: No | K85: Energy prices reflect true cost of production, procurement, and transmission (i.e. not subsidized) | L85: No | M85: Energy prices reflect true cost of production, procurement, and transmission (i.e. not subsidized) | O85: Energy prices reflect true cost of production, procurement, and transmission (i.e. not subsidized) | P85: Emerging | Q85: Energy prices reflect true cost of production, procurement, and transmission (i.e. not subsidized) | R85: Emerging | S85: Energy prices reflect true cost of production, procurement, and transmission (i.e. not subsidized) | U85: Energy prices reflect true cost of production, procurement, and transmission (i.e. not subsidized) | W85: Energy prices reflect true cost of production, procurement, and transmission (i.e. not subsidized) | Y85: Energy prices reflect true cost of production, procurement, and transmission (i.e. not subsidized) | AA85: Energy prices reflect true cost of production, procurement, and transmission (i.e. not subsidized) | AC85: Energy prices reflect true cost of production, procurement, and transmission (i.e. not subsidized) | AE85: Energy prices reflect true cost of production, procurement, and transmission (i.e. not subsidized)
A86: 27 | B86: No | C86: Mechanisms in place to assist on this issue of those financing the energy efficiency measures (e.g. building owners) paying cost, but only users benefiting (e.g. tenets) | D86: No | E86: Mechanisms in place to assist on this issue of those financing the energy efficiency measures (e.g. building owners) paying cost, but only users benefiting (e.g. tenets) | G86: Mechanisms in place to assist on this issue of those financing the energy efficiency measures (e.g. building owners) paying cost, but only users benefiting (e.g. tenets) | H86: No | I86: Mechanisms in place to assist on this issue of those financing the energy efficiency measures (e.g. building owners) paying cost, but only users benefiting (e.g. tenets) | J86: No | K86: Mechanisms in place to assist on this issue of those financing the energy efficiency measures (e.g. building owners) paying cost, but only users benefiting (e.g. tenets) | M86: Mechanisms in place to assist on this issue of those financing the energy efficiency measures (e.g. building owners) paying cost, but only users benefiting (e.g. tenets) | O86: Mechanisms in place to assist on this issue of those financing the energy efficiency measures (e.g. building owners) paying cost, but only users benefiting (e.g. tenets) | P86: Not Applicable | Q86: Mechanisms in place to assist on this issue of those financing the energy efficiency measures (e.g. building owners) paying cost, but only users benefiting (e.g. tenets) | R86: Not Applicable | S86: Mechanisms in place to assist on this issue of those financing the energy efficiency measures (e.g. building owners) paying cost, but only users benefiting (e.g. tenets) | U86: Mechanisms in place to assist on this issue of those financing the energy efficiency measures (e.g. building owners) paying cost, but only users benefiting (e.g. tenets) | W86: Mechanisms in place to assist on this issue of those financing the energy efficiency measures (e.g. building owners) paying cost, but only users benefiting (e.g. tenets) | Y86: Mechanisms in place to assist on this issue of those financing the energy efficiency measures (e.g. building owners) paying cost, but only users benefiting (e.g. tenets) | AA86: Mechanisms in place to assist on this issue of those financing the energy efficiency measures (e.g. building owners) paying cost, but only users benefiting (e.g. tenets) | AC86: Mechanisms in place to assist on this issue of those financing the energy efficiency measures (e.g. building owners) paying cost, but only users benefiting (e.g. tenets) | AE86: Mechanisms in place to assist on this issue of those financing the energy efficiency measures (e.g. building owners) paying cost, but only users benefiting (e.g. tenets)
A87: 28 | B87: Yes | C87: Limited taxes or tariffs are collected on the import of energy-efficient products, keeping prices reasonable | D87: No | E87: Limited taxes or tariffs are collected on the import of energy-efficient products, keeping prices reasonable | G87: Limited taxes or tariffs are collected on the import of energy-efficient products, keeping prices reasonable | H87: No | I87: Limited taxes or tariffs are collected on the import of energy-efficient products, keeping prices reasonable | J87: Yes | K87: Limited taxes or tariffs are collected on the import of energy-efficient products, keeping prices reasonable | L87: Yes | M87: Limited taxes or tariffs are collected on the import of energy-efficient products, keeping prices reasonable | O87: Limited taxes or tariffs are collected on the import of energy-efficient products, keeping prices reasonable | P87: Not Applicable | Q87: Limited taxes or tariffs are collected on the import of energy-efficient products, keeping prices reasonable | R87: Not Applicable | S87: Limited taxes or tariffs are collected on the import of energy-efficient products, keeping prices reasonable | U87: Limited taxes or tariffs are collected on the import of energy-efficient products, keeping prices reasonable | W87: Limited taxes or tariffs are collected on the import of energy-efficient products, keeping prices reasonable | Y87: Limited taxes or tariffs are collected on the import of energy-efficient products, keeping prices reasonable | AA87: Limited taxes or tariffs are collected on the import of energy-efficient products, keeping prices reasonable | AC87: Limited taxes or tariffs are collected on the import of energy-efficient products, keeping prices reasonable | AE87: Limited taxes or tariffs are collected on the import of energy-efficient products, keeping prices reasonable
A88: 29 | B88: No | C88: Governmental functions operate independently of energy sales (i.e. municipalities and governements are not depenent on energy sales) | D88: Yes | E88: Governmental functions operate independently of energy sales (i.e. municipalities and governements are not depenent on energy sales) | G88: Governmental functions operate independently of energy sales (i.e. municipalities and governements are not depenent on energy sales) | H88: Emerging | I88: Governmental functions operate independently of energy sales (i.e. municipalities and governements are not depenent on energy sales) | J88: Emerging | K88: Governmental functions operate independently of energy sales (i.e. municipalities and governements are not depenent on energy sales) | L88: Yes | M88: Governmental functions operate independently of energy sales (i.e. municipalities and governements are not depenent on energy sales) | O88: Governmental functions operate independently of energy sales (i.e. municipalities and governements are not depenent on energy sales) | P88: Yes | Q88: Governmental functions operate independently of energy sales (i.e. municipalities and governements are not depenent on energy sales) | R88: Yes | S88: Governmental functions operate independently of energy sales (i.e. municipalities and governements are not depenent on energy sales) | U88: Governmental functions operate independently of energy sales (i.e. municipalities and governements are not depenent on energy sales) | W88: Governmental functions operate independently of energy sales (i.e. municipalities and governements are not depenent on energy sales) | Y88: Governmental functions operate independently of energy sales (i.e. municipalities and governements are not depenent on energy sales) | AA88: Governmental functions operate independently of energy sales (i.e. municipalities and governements are not depenent on energy sales) | AC88: Governmental functions operate independently of energy sales (i.e. municipalities and governements are not depenent on energy sales) | AE88: Governmental functions operate independently of energy sales (i.e. municipalities and governements are not depenent on energy sales)
A89: Smart Incentives
A90: 30 | B90: Yes | C90: Residential demand side management programs with incentives exist | D90: No | E90: Residential demand side management programs with incentives exist | G90: Residential demand side management programs with incentives exist | H90: No | I90: Residential demand side management programs with incentives exist | J90: No | K90: Residential demand side management programs with incentives exist | L90: Yes | M90: Residential demand side management programs with incentives exist | O90: Residential demand side management programs with incentives exist | P90: No | Q90: Residential demand side management programs with incentives exist | R90: Yes | S90: Residential demand side management programs with incentives exist | U90: Residential demand side management programs with incentives exist | W90: Residential demand side management programs with incentives exist | Y90: Residential demand side management programs with incentives exist | AA90: Residential demand side management programs with incentives exist | AC90: Residential demand side management programs with incentives exist | AE90: Residential demand side management programs with incentives exist
A91: 31 | B91: Yes | C91: Commercial demand side management programs with incentives exist | D91: No | E91: Commercial demand side management programs with incentives exist | G91: Commercial demand side management programs with incentives exist | H91: Yes | I91: Commercial demand side management programs with incentives exist | J91: No | K91: Commercial demand side management programs with incentives exist | L91: Yes | M91: Commercial demand side management programs with incentives exist | O91: Commercial demand side management programs with incentives exist | P91: Emerging | Q91: Commercial demand side management programs with incentives exist | R91: No | S91: Commercial demand side management programs with incentives exist | U91: Commercial demand side management programs with incentives exist | W91: Commercial demand side management programs with incentives exist | Y91: Commercial demand side management programs with incentives exist | AA91: Commercial demand side management programs with incentives exist | AC91: Commercial demand side management programs with incentives exist | AE91: Commercial demand side management programs with incentives exist
A92: 32 | B92: No | C92: Industrial demand side management programs with incentives exist | D92: No | E92: Industrial demand side management programs with incentives exist | G92: Industrial demand side management programs with incentives exist | H92: No | I92: Industrial demand side management programs with incentives exist | J92: No | K92: Industrial demand side management programs with incentives exist | L92: Yes | M92: Industrial demand side management programs with incentives exist | O92: Industrial demand side management programs with incentives exist | P92: No | Q92: Industrial demand side management programs with incentives exist | R92: No | S92: Industrial demand side management programs with incentives exist | U92: Industrial demand side management programs with incentives exist | W92: Industrial demand side management programs with incentives exist | Y92: Industrial demand side management programs with incentives exist | AA92: Industrial demand side management programs with incentives exist | AC92: Industrial demand side management programs with incentives exist | AE92: Industrial demand side management programs with incentives exist
A93: 33 | B93: No | C93: Tax incentives for purchasing specific energy-efficient products exist | D93: No | E93: Tax incentives for purchasing specific energy-efficient products exist | G93: Tax incentives for purchasing specific energy-efficient products exist | H93: No | I93: Tax incentives for purchasing specific energy-efficient products exist | J93: No | K93: Tax incentives for purchasing specific energy-efficient products exist | L93: Emerging | M93: Tax incentives for purchasing specific energy-efficient products exist | O93: Tax incentives for purchasing specific energy-efficient products exist | P93: No | Q93: Tax incentives for purchasing specific energy-efficient products exist | R93: No | S93: Tax incentives for purchasing specific energy-efficient products exist | U93: Tax incentives for purchasing specific energy-efficient products exist | W93: Tax incentives for purchasing specific energy-efficient products exist | Y93: Tax incentives for purchasing specific energy-efficient products exist | AA93: Tax incentives for purchasing specific energy-efficient products exist | AC93: Tax incentives for purchasing specific energy-efficient products exist | AE93: Tax incentives for purchasing specific energy-efficient products exist
A94: 34
A95: 35
A96: Technology Development
A97: 36 | B97: Yes | C97: Testing facilities for energy-efficient products exist in country/region | D97: No | E97: Testing facilities for energy-efficient products exist in country/region | G97: Testing facilities for energy-efficient products exist in country/region | H97: No | I97: Testing facilities for energy-efficient products exist in country/region | J97: No | K97: Testing facilities for energy-efficient products exist in country/region | L97: Yes | M97: Testing facilities for energy-efficient products exist in country/region | O97: Testing facilities for energy-efficient products exist in country/region | P97: Yes | Q97: Testing facilities for energy-efficient products exist in country/region | R97: Yes | S97: Testing facilities for energy-efficient products exist in country/region | U97: Testing facilities for energy-efficient products exist in country/region | W97: Testing facilities for energy-efficient products exist in country/region | Y97: Testing facilities for energy-efficient products exist in country/region | AA97: Testing facilities for energy-efficient products exist in country/region | AC97: Testing facilities for energy-efficient products exist in country/region | AE97: Testing facilities for energy-efficient products exist in country/region
A98: 37 | B98: Yes | C98: Appliance energy rating standards exist and are complied with | D98: No | E98: Appliance energy rating standards exist and are complied with | G98: Appliance energy rating standards exist and are complied with | H98: Yes | I98: Appliance energy rating standards exist and are complied with | J98: No | K98: Appliance energy rating standards exist and are complied with | L98: Yes | M98: Appliance energy rating standards exist and are complied with | O98: Appliance energy rating standards exist and are complied with | P98: Yes | Q98: Appliance energy rating standards exist and are complied with | R98: Yes | S98: Appliance energy rating standards exist and are complied with | U98: Appliance energy rating standards exist and are complied with | W98: Appliance energy rating standards exist and are complied with | Y98: Appliance energy rating standards exist and are complied with | AA98: Appliance energy rating standards exist and are complied with | AC98: Appliance energy rating standards exist and are complied with | AE98: Appliance energy rating standards exist and are complied with
A99: 38 | B99: Yes | C99: Non-energy benefits (i.e. cascading benefits of utility bill reduction, avoided emissions, job creation) are included in EE planning and cost-effectiveness | D99: No | E99: Non-energy benefits (i.e. cascading benefits of utility bill reduction, avoided emissions, job creation) are included in EE planning and cost-effectiveness | G99: Non-energy benefits (i.e. cascading benefits of utility bill reduction, avoided emissions, job creation) are included in EE planning and cost-effectiveness | H99: No | I99: Non-energy benefits (i.e. cascading benefits of utility bill reduction, avoided emissions, job creation) are included in EE planning and cost-effectiveness | J99: Emerging | K99: Non-energy benefits (i.e. cascading benefits of utility bill reduction, avoided emissions, job creation) are included in EE planning and cost-effectiveness | L99: Emerging | M99: Non-energy benefits (i.e. cascading benefits of utility bill reduction, avoided emissions, job creation) are included in EE planning and cost-effectiveness | O99: Non-energy benefits (i.e. cascading benefits of utility bill reduction, avoided emissions, job creation) are included in EE planning and cost-effectiveness | P99: Yes | Q99: Non-energy benefits (i.e. cascading benefits of utility bill reduction, avoided emissions, job creation) are included in EE planning and cost-effectiveness | R99: Yes | S99: Non-energy benefits (i.e. cascading benefits of utility bill reduction, avoided emissions, job creation) are included in EE planning and cost-effectiveness | U99: Non-energy benefits (i.e. cascading benefits of utility bill reduction, avoided emissions, job creation) are included in EE planning and cost-effectiveness | W99: Non-energy benefits (i.e. cascading benefits of utility bill reduction, avoided emissions, job creation) are included in EE planning and cost-effectiveness | Y99: Non-energy benefits (i.e. cascading benefits of utility bill reduction, avoided emissions, job creation) are included in EE planning and cost-effectiveness | AA99: Non-energy benefits (i.e. cascading benefits of utility bill reduction, avoided emissions, job creation) are included in EE planning and cost-effectiveness | AC99: Non-energy benefits (i.e. cascading benefits of utility bill reduction, avoided emissions, job creation) are included in EE planning and cost-effectiveness | AE99: Non-energy benefits (i.e. cascading benefits of utility bill reduction, avoided emissions, job creation) are included in EE planning and cost-effectiveness
A100: 39 | B100: No | C100: EE measures capable of modifying market behavior even after incentives are removed | D100: Yes | E100: EE measures capable of modifying market behavior even after incentives are removed | G100: EE measures capable of modifying market behavior even after incentives are removed | H100: No | I100: EE measures capable of modifying market behavior even after incentives are removed | J100: No | K100: EE measures capable of modifying market behavior even after incentives are removed | L100: Emerging | M100: EE measures capable of modifying market behavior even after incentives are removed | O100: EE measures capable of modifying market behavior even after incentives are removed | P100: Yes | Q100: EE measures capable of modifying market behavior even after incentives are removed | R100: Yes | S100: EE measures capable of modifying market behavior even after incentives are removed | U100: EE measures capable of modifying market behavior even after incentives are removed | W100: EE measures capable of modifying market behavior even after incentives are removed | Y100: EE measures capable of modifying market behavior even after incentives are removed | AA100: EE measures capable of modifying market behavior even after incentives are removed | AC100: EE measures capable of modifying market behavior even after incentives are removed | AE100: EE measures capable of modifying market behavior even after incentives are removed
A101: 40
A102: 41

Sheet EE Building Block Calculations (hidden)
B2: ="Energy Efficiency Building Block Assessment for " & CountrySelect -> Energy Efficiency Building Block Assessment for Uganda
V3: Energy Efficiency Building Block Assessment Results
AE4: Question Description | AF4: Applicable EE Building Block
H5: EE Building Block Achievement | M5: Weaker | N5: Stronger | V5: EE Building Block | W5: Maximum | X5: % Achieved | Y5: Rank | AA5: Ranked by Achievement | AB5: Achievement | AC5: Not Applicable
H6: ='EE Building Block Assessment'!D21 -> Skilled Workforce | I6: =$X6 -> 1 | J6: 1 | K6: 1 | L6: 1 | M6: 1 | N6: 1 | O6: 1 | P6: 1 | Q6: 1 | R6: 1 | S6: 1 | V6: =H6 -> Skilled Workforce | W6: =COUNTIFS('EE Building Block Calculations'!AF:AF,V6)-AC6 -> 0 | X6: =IFERROR(IF((COUNTIFS('EE Building Block Calculations'!$AF$5:$AF$51,V6,'EE Building Block Assessment'!$E$21:$E$67,"Yes")*1+COUNTIFS('EE Building Block Calculations'!$AF$5:$AF$51,V6,'EE Building Block Assessment'!$E$21:$E$67,"Emerging")*0.5+COUNTIFS('EE Building Block Calculations'!$AF$5:$AF$51,V6,'EE Building Block Assessment'!$E$21:$E$67,"No")*0)/W6 = 0, 10%, (COUNTIFS('EE Building Block Calculations'!$AF$5:$AF$51,V6,'EE Building Block Assessment'!$E$21:$E$67,"Yes")*1+COUNTIFS('EE Building Block Calculations'!$AF$5:$AF$51,V6,'EE Building Block Assessment'!$E$21:$E$67,"Emerging")*0.5+COUNTIFS('EE Building Block Calculations'!$AF$5:$AF$51,V6,'EE Building Block Assessment'!$E$21:$E$67,"No")*0)/W6),100%) -> 1 | Y6: =RANK(X6,$X$6:$X$11)+COUNTIF($X6:X$6,X6)-1 -> 1 | Z6: 6 | AA6: =INDEX($V$6:$V$11,MATCH(Z6,$Y$6:$Y$11,0)) -> Technology Development | AB6: =INDEX($X$6:$X$11,MATCH(Z6,$Y$6:$Y$11,0)) -> 1 | AC6: =COUNTIFS('EE Building Block Calculations'!$AF$5:$AF$51,V6,'EE Building Block Assessment'!$E$21:$E$67,$AC$5)+COUNTIFS('EE Building Block Calculations'!$AF$5:$AF$51,V6,'EE Building Block Assessment'!$E$21:$E$67,"") -> 8 | AE6: Workforce capabilities | AF6: Skilled Workforce
H7: ='EE Building Block Assessment'!D30 -> Financing Support | I7: 1 | J7: 1 | K7: 1 | L7: 1 | M7: 1 | N7: 1 | O7: 1 | P7: 1 | Q7: 1 | R7: 1 | S7: 1 | V7: Financing Support | W7: =COUNTIFS('EE Building Block Calculations'!AF:AF,V7)-AC7 -> 0 | X7: =IFERROR(IF((COUNTIFS('EE Building Block Calculations'!$AF$5:$AF$51,V7,'EE Building Block Assessment'!$E$21:$E$67,"Yes")*1+COUNTIFS('EE Building Block Calculations'!$AF$5:$AF$51,V7,'EE Building Block Assessment'!$E$21:$E$67,"Emerging")*0.5+COUNTIFS('EE Building Block Calculations'!$AF$5:$AF$51,V7,'EE Building Block Assessment'!$E$21:$E$67,"No")*0)/W7 = 0, 10%, (COUNTIFS('EE Building Block Calculations'!$AF$5:$AF$51,V7,'EE Building Block Assessment'!$E$21:$E$67,"Yes")*1+COUNTIFS('EE Building Block Calculations'!$AF$5:$AF$51,V7,'EE Building Block Assessment'!$E$21:$E$67,"Emerging")*0.5+COUNTIFS('EE Building Block Calculations'!$AF$5:$AF$51,V7,'EE Building Block Assessment'!$E$21:$E$67,"No")*0)/W7),100%) -> 1 | Y7: =RANK(X7,$X$6:$X$11)+COUNTIF($X$6:X7,X7)-1 -> 2 | Z7: 5 | AA7: Smart Incentives | AB7: 1 | AC7: =COUNTIFS('EE Building Block Calculations'!$AF$5:$AF$51,V7,'EE Building Block Assessment'!$E$21:$E$67,$AC$5)+COUNTIFS('EE Building Block Calculations'!$AF$5:$AF$51,V7,'EE Building Block Assessment'!$E$21:$E$67,"") -> 6 | AE7: Technical capacity | AF7: Skilled Workforce
C8: ="To determine where "&CountrySelect -> To determine where Uganda | H8: ='EE Building Block Assessment'!D37 -> Public Awareness | I8: 1 | J8: 1 | K8: 1 | L8: 1 | M8: 1 | N8: 1 | O8: 1 | P8: 1 | Q8: 1 | R8: 1 | S8: 1 | V8: Public Awareness | W8: =COUNTIFS('EE Building Block Calculations'!AF:AF,V8)-AC8 -> 0 | X8: =IFERROR(IF((COUNTIFS('EE Building Block Calculations'!$AF$5:$AF$51,V8,'EE Building Block Assessment'!$E$21:$E$67,"Yes")*1+COUNTIFS('EE Building Block Calculations'!$AF$5:$AF$51,V8,'EE Building Block Assessment'!$E$21:$E$67,"Emerging")*0.5+COUNTIFS('EE Building Block Calculations'!$AF$5:$AF$51,V8,'EE Building Block Assessment'!$E$21:$E$67,"No")*0)/W8 = 0, 10%, (COUNTIFS('EE Building Block Calculations'!$AF$5:$AF$51,V8,'EE Building Block Assessment'!$E$21:$E$67,"Yes")*1+COUNTIFS('EE Building Block Calculations'!$AF$5:$AF$51,V8,'EE Building Block Assessment'!$E$21:$E$67,"Emerging")*0.5+COUNTIFS('EE Building Block Calculations'!$AF$5:$AF$51,V8,'EE Building Block Assessment'!$E$21:$E$67,"No")*0)/W8),100%) -> 1 | Y8: =RANK(X8,$X$6:$X$11)+COUNTIF($X$6:X8,X8)-1 -> 3 | Z8: 4 | AA8: Regulatory Mechanisms | AB8: 1 | AC8: =COUNTIFS('EE Building Block Calculations'!$AF$5:$AF$51,V8,'EE Building Block Assessment'!$E$21:$E$67,$AC$5)+COUNTIFS('EE Building Block Calculations'!$AF$5:$AF$51,V8,'EE Building Block Assessment'!$E$21:$E$67,"") -> 6 | AE8: Institutional capacity | AF8: Skilled Workforce
C9: falls in terms of acheivement within these energy efficiency building blocks, questions related to specific barriers to the implementation of energy efficiency within each building block have been created. Using the drop down menus in 'Barrier Present' in the table below, note whether the listed barrier is present (Yes), not present (no), or unknown. | H9: ='EE Building Block Assessment'!D44 -> Regulatory Mechanisms | I9: 1 | J9: 1 | K9: 1 | L9: 1 | M9: 1 | N9: 1 | O9: 1 | P9: 1 | Q9: 1 | R9: 1 | S9: 1 | V9: Regulatory Mechanisms | W9: =COUNTIFS('EE Building Block Calculations'!AF:AF,V9)-AC9 -> 0 | X9: =IFERROR(IF((COUNTIFS('EE Building Block Calculations'!$AF$5:$AF$51,V9,'EE Building Block Assessment'!$E$21:$E$67,"Yes")*1+COUNTIFS('EE Building Block Calculations'!$AF$5:$AF$51,V9,'EE Building Block Assessment'!$E$21:$E$67,"Emerging")*0.5+COUNTIFS('EE Building Block Calculations'!$AF$5:$AF$51,V9,'EE Building Block Assessment'!$E$21:$E$67,"No")*0)/W9 = 0, 10%, (COUNTIFS('EE Building Block Calculations'!$AF$5:$AF$51,V9,'EE Building Block Assessment'!$E$21:$E$67,"Yes")*1+COUNTIFS('EE Building Block Calculations'!$AF$5:$AF$51,V9,'EE Building Block Assessment'!$E$21:$E$67,"Emerging")*0.5+COUNTIFS('EE Building Block Calculations'!$AF$5:$AF$51,V9,'EE Building Block Assessment'!$E$21:$E$67,"No")*0)/W9),100%) -> 1 | Y9: =RANK(X9,$X$6:$X$11)+COUNTIF($X$6:X9,X9)-1 -> 4 | Z9: 3 | AA9: Public Awareness | AB9: 1 | AC9: =COUNTIFS('EE Building Block Calculations'!$AF$5:$AF$51,V9,'EE Building Block Assessment'!$E$21:$E$67,$AC$5)+COUNTIFS('EE Building Block Calculations'!$AF$5:$AF$51,V9,'EE Building Block Assessment'!$E$21:$E$67,"") -> 9 | AE9: Data collection infrastructure | AF9: Skilled Workforce
H10: ='EE Building Block Assessment'!D54 -> Smart Incentives | I10: 1 | J10: 1 | K10: 1 | L10: 1 | M10: 1 | N10: 1 | O10: 1 | P10: 1 | Q10: 1 | R10: 1 | S10: 1 | V10: Smart Incentives | W10: =COUNTIFS('EE Building Block Calculations'!AF:AF,V10)-AC10 -> 0 | X10: =IFERROR(IF((COUNTIFS('EE Building Block Calculations'!$AF$5:$AF$51,V10,'EE Building Block Assessment'!$E$21:$E$67,"Yes")*1+COUNTIFS('EE Building Block Calculations'!$AF$5:$AF$51,V10,'EE Building Block Assessment'!$E$21:$E$67,"Emerging")*0.5+COUNTIFS('EE Building Block Calculations'!$AF$5:$AF$51,V10,'EE Building Block Assessment'!$E$21:$E$67,"No")*0)/W10 = 0, 10%, (COUNTIFS('EE Building Block Calculations'!$AF$5:$AF$51,V10,'EE Building Block Assessment'!$E$21:$E$67,"Yes")*1+COUNTIFS('EE Building Block Calculations'!$AF$5:$AF$51,V10,'EE Building Block Assessment'!$E$21:$E$67,"Emerging")*0.5+COUNTIFS('EE Building Block Calculations'!$AF$5:$AF$51,V10,'EE Building Block Assessment'!$E$21:$E$67,"No")*0)/W10),100%) -> 1 | Y10: =RANK(X10,$X$6:$X$11)+COUNTIF($X$6:X10,X10)-1 -> 5 | Z10: 2 | AA10: Financing Support | AB10: 1 | AC10: =COUNTIFS('EE Building Block Calculations'!$AF$5:$AF$51,V10,'EE Building Block Assessment'!$E$21:$E$67,$AC$5)+COUNTIFS('EE Building Block Calculations'!$AF$5:$AF$51,V10,'EE Building Block Assessment'!$E$21:$E$67,"") -> 6 | AE10: Training & certification | AF10: Skilled Workforce
H11: ='EE Building Block Assessment'!D61 -> Technology Development | I11: 1 | J11: 1 | K11: 1 | L11: 1 | M11: 1 | N11: 1 | O11: 1 | P11: 1 | Q11: 1 | R11: 1 | S11: 1 | V11: Technology Development | W11: =COUNTIFS('EE Building Block Calculations'!AF:AF,V11)-AC11 -> 0 | X11: =IFERROR(IF((COUNTIFS('EE Building Block Calculations'!$AF$5:$AF$51,V11,'EE Building Block Assessment'!$E$21:$E$67,"Yes")*1+COUNTIFS('EE Building Block Calculations'!$AF$5:$AF$51,V11,'EE Building Block Assessment'!$E$21:$E$67,"Emerging")*0.5+COUNTIFS('EE Building Block Calculations'!$AF$5:$AF$51,V11,'EE Building Block Assessment'!$E$21:$E$67,"No")*0)/W11 = 0, 10%, (COUNTIFS('EE Building Block Calculations'!$AF$5:$AF$51,V11,'EE Building Block Assessment'!$E$21:$E$67,"Yes")*1+COUNTIFS('EE Building Block Calculations'!$AF$5:$AF$51,V11,'EE Building Block Assessment'!$E$21:$E$67,"Emerging")*0.5+COUNTIFS('EE Building Block Calculations'!$AF$5:$AF$51,V11,'EE Building Block Assessment'!$E$21:$E$67,"No")*0)/W11),100%) -> 1 | Y11: =RANK(X11,$X$6:$X$11)+COUNTIF($X$6:X11,X11)-1 -> 6 | Z11: 1 | AA11: Skilled Workforce | AB11: 1 | AC11: =COUNTIFS('EE Building Block Calculations'!$AF$5:$AF$51,V11,'EE Building Block Assessment'!$E$21:$E$67,$AC$5)+COUNTIFS('EE Building Block Calculations'!$AF$5:$AF$51,V11,'EE Building Block Assessment'!$E$21:$E$67,"") -> 6 | AE11: Analytical tools | AF11: Skilled Workforce
I12: 0.1 | J12: 0.2 | K12: 0.2 | L12: 0.3 | M12: 0.4 | N12: 0.5 | O12: 0.6 | P12: 0.7 | Q12: 0.8 | R12: 0.9 | S12: 1 | V12: Total | W12: =SUM(W6:W11) -> 0 | X12: =(COUNTIFS('EE Building Block Assessment'!$E$21:$E$67,"Yes")*1+COUNTIFS('EE Building Block Assessment'!$E$21:$E$67,"Emerging")*0.5+COUNTIFS('EE Building Block Assessment'!$E$21:$E$67,"No")*0)/W12 ->  | AA12: Opportunity Line | AB12: 0.75 | AC12: =COUNTIFS('EE Building Block Calculations'!$AF$5:$AF$51,V12,'EE Building Block Assessment'!$E$21:$E$67,$AC$5) -> 0 | AF12: Skilled Workforce
H13: Total | I13: =$X12 ->  | J13: =$X12 ->  | K13: =$X12 ->  | L13: =$X12 ->  | AF13: Skilled Workforce
T14: Policies to Support each Building Block
T15: Regulatory Mechanisms | AE15: Timeliness of energy savings | AF15: Financing Support
G16: =IF('EE Building Block Calculations'!H16="","","-") ->  | T16: 4 | U16: - | V16: Compulsory activities, such as energy audits and energy management | AE16: Other investments more attractive | AF16: Financing Support
T17: 4 | U17: - | V17: Minimum energy performance standards (MEPS) | AE17: First costs | AF17: Financing Support
T18: 4 | U18: - | V18: Energy consumption reduction targets | AE18: Government incentives | AF18: Financing Support
T19: 4 | U19: - | V19: EE investment obligations on private companies | AF19: Financing Support
T20: Capacity Building | AF20: Financing Support
C21: =IF(D21="","","-") ->  | T21: 1 | U21: - | V21: Creation of energy service companies (ESCOs)
T22: 1 | U22: - | V22: Training programs | AE22: Assymetric Information | AF22: Public Awareness
AE23: Market Spoiling | AF23: Public Awareness
T24: Financing Support | AE24: Low awareness of EE programs | AF24: Public Awareness
T25: 2 | U25: - | V25: Revolving funds for EE investments | AE25: Applicability by income level | AF25: Public Awareness
T26: 2 | U26: - | V26: Project preparation facilities | AF26: Public Awareness
T27: 2 | U27: - | V27: Contingent financing facilities | AF27: Public Awareness
T28: 2 | U28: - | V28: Variable tariffs where higher consumption levels invoke higher unit prices
T29: Smart Incentives | AE29: Split Incentives | AF29: Regulatory Mechanisms
T30: 5 | U30: - | V30: Grants, subsidies and tax incentives for energy efficiency investments | AE30: Import duties on EE measures | AF30: Regulatory Mechanisms
T31: 5 | U31: - | V31: Direct procurement of EE goods and services | AE31: Building energy codes | AF31: Regulatory Mechanisms
T32: Public Awareness | AE32: Building energy codes | AF32: Regulatory Mechanisms
T33: 3 | U33: - | V33: Public information campaigns and promotions | AE33: Enivronmental planning | AF33: Regulatory Mechanisms
T34: 3 | U34: - | V34: Inclusion of energy efficiency in school curricula | AE34: Energy subsidies | AF34: Regulatory Mechanisms
T35: 3 | U35: - | V35: Appliance labeling and building certification | AE35: Country-wide planning | AF35: Regulatory Mechanisms
T36: Technology Development | AE36: Country-wide EE targets | AF36: Regulatory Mechanisms
T37: 6 | U37: - | V37: Development and demonstration of EE technologies | AE37: Competing priorities | AF37: Regulatory Mechanisms
T38: 6 | U38: - | V38: In-country testing facilities for EE technologies
T39: 6 | U39: - | V39: Establish clear evaluation methods for outcomes of EE programs | AE39: DSM incentive programs | AF39: Smart Incentives
AE40: Tax breaks for EE products | AF40: Smart Incentives
AF41: Smart Incentives
AF42: Smart Incentives
AF43: Smart Incentives
AF44: Smart Incentives
AE46: Testing facilities | AF46: Technology Development
AE47: Appliance standards | AF47: Technology Development
AE48: Negative externalities | AF48: Technology Development
AE49: Market transformation potential | AF49: Technology Development
AF50: Technology Development
AF51: Technology Development

Sheet Program Indicators
B2: Energy Efficiency Opportunity Assessment
C5: ="Energy Efficiency Indicators for "&CountrySelect -> Energy Efficiency Indicators for Uganda
C7: Background
C8: Six (6) indicators are used to rate each program included in this study. These indicators have a clear connection to the successful implementation and scaling up of energy efficiency. Descriptions for each indicator are provided by hovering over each column below.
C11: How to Use these Indicators
C12: To determine which energy efficiency opportunity is most applicable, rate each on a scale of 1 to 5 in the table below.
C14: Score of 5 = highest probability of achieving positive outcomes for a given indicator category. Notable success has been seen before.
C15: Score of 1 = low or no probability of achieving positive outcomes for a given indicator category.
C16: Program Name | D16: Market Transformation Potential | E16: Political Feasibility | F16: Program Complexity | G16: Environmental Aspects | H16: Economic Aspects | I16: Equity
C17: ='Advanced Inputs – Program'!D87 -> On-Grid Urban Lighting | J17: 5
C18: ='Advanced Inputs – Program'!D88 -> On-Grid Urban TV | J18: 3
C19: ='Advanced Inputs – Program'!D89 -> On-Grid Urban Fan | J19: 3
C20: ='Advanced Inputs – Program'!D90 -> On-Grid Urban Fridge | J20: 2
C21: ='Advanced Inputs – Program'!D91 -> On-Grid Urban AC | J21: 1 | O21: ="Calculator Version: "&Version -> Calculator Version: A4
C22: ='Advanced Inputs – Program'!D92 -> On-Grid Urban Water Heating | J22: 4
C23: ='Advanced Inputs – Program'!D93 -> On-Grid Rural Lighting | J23: 4 | O23: Set / Reset Indicator Values
C24: ='Advanced Inputs – Program'!D94 -> On-Grid Rural TV | J24: 4
C25: ='Advanced Inputs – Program'!D95 -> On-Grid Rural Fan | J25: 4
C26: ='Advanced Inputs – Program'!D96 -> On-Grid Rural Fridge | J26: 2
C27: ='Advanced Inputs – Program'!D97 -> On-Grid Rural AC | J27: 2
C28: ='Advanced Inputs – Program'!D98 -> On-Grid Rural Water Heating | J28: 1
C29: ='Advanced Inputs – Program'!D99 -> Commercial Computers | J29: 2
C30: ='Advanced Inputs – Program'!D100 -> Commercial Lighting | J30: 2
C31: ='Advanced Inputs – Program'!D101 -> 0 | J31: 3
C32: ='Advanced Inputs – Program'!D102 -> Commercial AC
C33: ='Advanced Inputs – Program'!D103 -> Commercial Water Heating
C34: ='Advanced Inputs – Program'!D104 -> Commercial Refrigeration
C35: ='Advanced Inputs – Program'!D105 -> Commercial Fans
C36: ='Advanced Inputs – Program'!D106 -> Commercial EMS
C37: ='Advanced Inputs – Program'!D107 -> Industrial EMS
C38: ='Advanced Inputs – Program'!D108 -> Industrial Compressed Air
C39: ='Advanced Inputs – Program'!D109 -> Industrial Lighting
C40: ='Advanced Inputs – Program'!D110 -> Industrial Motors
C41: ='Advanced Inputs – Program'!D111 -> Industrial Process Cooling
C42: ='Advanced Inputs – Program'!D112 -> Industrial Process Heating
C43: ='Advanced Inputs – Program'!D113 -> -
C44: ='Advanced Inputs – Program'!D114 -> -
C45: ='Advanced Inputs – Program'!D115 -> -
C46: ='Advanced Inputs – Program'!D116 -> -
C47: ='Advanced Inputs – Program'!D117 -> -
C48: ='Advanced Inputs – Program'!D118 -> -
C49: ='Advanced Inputs – Program'!D119 -> -
C50: ='Advanced Inputs – Program'!D120 -> -
C51: ='Advanced Inputs – Program'!D121 -> -
C52: ='Advanced Inputs – Program'!D122 -> -
C53: ='Advanced Inputs – Program'!D123 -> -
C54: ='Advanced Inputs – Program'!D124 -> -
C55: ='Advanced Inputs – Program'!D125 -> -
C56: ='Advanced Inputs – Program'!D126 -> -
C57: ='Advanced Inputs – Program'!D127 -> -
C58: ='Advanced Inputs – Program'!D128 -> -
C59: ='Advanced Inputs – Program'!D129 -> -
C60: ='Advanced Inputs – Program'!D130 -> -
C61: ='Advanced Inputs – Program'!D131 -> -
C62: ='Advanced Inputs – Program'!D132 -> -
C63: ='Advanced Inputs – Program'!D133 -> -
C64: ='Advanced Inputs – Program'!D134 -> -

Sheet Country Indicators Default (hidden)
A2: Country Name | B2: South Africa | K2: Country Name | L2: El Salvador | U2: Country Name | V2: Tajikistan | AE2: Country Name | AO2: Country Name | BA2: Mozambique
A4: Program Name | B4: Market Transformation Potential | C4: Political Feasibility | D4: Program Complexity | E4: Environmental Aspects | F4: Economic Aspects | G4: Equity | K4: Program Name | L4: Market Transformation Potential | M4: Political Feasibility | N4: Program Complexity | O4: Environmental Aspects | P4: Economic Aspects | Q4: Equity | U4: Program Name | V4: Market Transformation Potential | W4: Political Feasibility | X4: Program Complexity | Y4: Environmental Aspects | Z4: Economic Aspects | AA4: Equity | AE4: Program Name | AF4: Market Transformation Potential | AG4: Political Feasibility | AH4: Program Complexity | AI4: Environmental Aspects | AJ4: Economic Aspects | AK4: Equity | AO4: Program Name | AP4: Market Transformation Potential | AQ4: Political Feasibility | AR4: Program Complexity | AS4: Environmental Aspects | AT4: Economic Aspects | AU4: Equity
A5: High Efficiency Residential Lighting | B5: 3 | C5: 5 | D5: 5 | E5: 5 | F5: 5 | G5: 5 | K5: Commercial Custom and Prescriptive - HVAC | L5: 3 | M5: 4 | N5: 3 | O5: 2 | P5: 3 | Q5: 3 | U5: Residential Lighting | V5: 1 | W5: 1 | X5: 5 | Y5: 5 | Z5: 3 | AA5: 2 | AE5: On-Grid Urban Lighting | AO5: Residential Lighting
A6: Energy Star TV | B6: 2 | C6: 5 | D6: 4 | E6: 4 | F6: 5 | G6: 3 | K6: Commercial Custom and Prescriptive - Water Heating | L6: 2 | M6: 2 | N6: 2 | O6: 4 | P6: 3 | Q6: 3 | U6: Residential Water Heating | V6: 3 | W6: 3 | X6: 3 | Y6: 4 | Z6: 4 | AA6: 3 | AE6: On-Grid Urban TV | AO6: Residential Water Heating
A7: High Efficiency Fridge | B7: 3 | C7: 4 | D7: 3 | E7: 4 | F7: 5 | G7: 3 | K7: Commercial Lighting | L7: 3 | M7: 3 | N7: 4 | O7: 3 | P7: 3 | Q7: 4 | U7: Residential Heating/Cooling | V7: 4 | W7: 5 | X7: 3 | Y7: 2 | Z7: 4 | AA7: 2 | AE7: On-Grid Urban Fan | AO7: Residential Water Heating 2
A8: High Efficiency Radio | B8: 3 | C8: 5 | D8: 3 | E8: 3 | F8: 2 | G8: 2 | K8: Commercial Refrigeration | L8: 2 | M8: 4 | N8: 3 | O8: 3 | P8: 2 | Q8: 2 | U8: Residential Appliances | V8: 3 | W8: 3 | X8: 1 | Y8: 3 | Z8: 3 | AA8: 3 | AE8: On-Grid Urban Fridge | AO8: Residential HVAC
A9: High Efficiency AC | B9: 3 | C9: 2 | D9: 1 | E9: 3 | F9: 2 | G9: 1 | K9: Home audit and retrofit | L9: 3 | M9: 2 | N9: 2 | O9: 3 | P9: 4 | Q9: 4 | U9: Commercial Refrigeration | V9: 3 | W9: 3 | X9: 1 | Y9: 4 | Z9: 3 | AA9: 3 | AE9: On-Grid Urban AC | AO9: Residential Appliances
A10: High Efficiency Iron | B10: 3 | C10: 5 | D10: 4 | E10: 3 | F10: 4 | G10: 4 | K10: Industrial Custom and Prescriptive – Compressed Air | L10: 2 | M10: 2 | N10: 2 | O10: 3 | P10: 2 | Q10: 3 | U10: Commercial Lighting | V10: 3 | W10: 3 | X10: 2 | Y10: 4 | Z10: 3 | AA10: 3 | AE10: On-Grid Urban Water Heating | AO10: Commercial Refrigeration
A11: High Efficeincy Fan | B11: 3 | C11: 4 | D11: 3 | E11: 5 | F11: 4 | G11: 4 | K11: Industrial Lighting | L11: 3 | M11: 3 | N11: 3 | O11: 3 | P11: 3 | Q11: 4 | U11: Industrial Motor | V11: 3 | W11: 3 | X11: 3 | Y11: 4 | Z11: 3 | AA11: 3 | AE11: On-Grid Rural Lighting | AO11: Commercial Lighting
A12: LI: Steel Mill Estimated Savings Potential | B12: 3 | C12: 2 | D12: 3 | E12: 5 | F12: 3 | G12: 4 | K12: Industrial Motor | L12: 3 | M12: 4 | N12: 2 | O12: 3 | P12: 2 | Q12: 2 | U12: Industrial Compressed Air | V12: 3 | W12: 3 | X12: 4 | Y12: 4 | Z12: 3 | AA12: 3 | AE12: On-Grid Rural TV | AO12: Industrial Motor
A13: LI: Cement Factory Estimated Savings Potential | B13: 3 | C13: 4 | D13: 4 | E13: 3 | F13: 4 | G13: 4 | K13: Residential HVAC | L13: 3 | M13: 4 | N13: 3 | O13: 2 | P13: 3 | Q13: 2 | U13: Industrial Process Optimization | V13: 3 | W13: 3 | X13: 1 | Y13: 4 | Z13: 3 | AA13: 3 | AE13: On-Grid Rural Fan | AO13: Industrial Custom and Prescriptive - Compressed Air
A14: LI: Water/Sewage Facility Estimated Savings Potential | B14: 3 | C14: 2 | D14: 1 | E14: 3 | F14: 3 | G14: 2 | K14: Residential Appliances | L14: 4 | M14: 4 | N14: 2 | O14: 3 | P14: 3 | Q14: 4 | U14: Commercial Heating/Cooling | V14: 4 | W14: 5 | X14: 1 | Y14: 2 | Z14: 3 | AA14: 3 | AE14: On-Grid Rural Fridge | AO14: Industrial Custom and Prescriptive - Process Optimization
A15: LI: Food-Related Manufacturing Facility Savings Potential | B15: 3 | C15: 2 | D15: 1 | E15: 3 | F15: 3 | G15: 2 | K15: Residential Lighting | L15: 4 | M15: 4 | N15: 5 | O15: 3 | P15: 3 | Q15: 4 | U15: Commercial Water Heating | V15: 3 | W15: 3 | X15: 1 | Y15: 4 | Z15: 3 | AA15: 3 | AE15: On-Grid Rural AC | AO15: Commercial Custom and Prescriptive - HVAC
A16: LI: Beverage Manufacturing Facility Savings Potential | B16: 3 | C16: 1 | D16: 1 | E16: 1 | F16: 1 | G16: 1 | K16: Small Business Solution | L16: 2 | M16: 2 | N16: 1 | O16: 3 | P16: 1 | Q16: 2 | U16: Home Retrofit | V16: 3 | W16: 3 | X16: 3 | Y16: 4 | Z16: 3 | AA16: 3 | AE16: On-Grid Rural Water Heating | AO16: Commercial Custom and Prescriptive - Water Heating
A17: LI: Plastics Factory Estimated Savings Potential | B17: 3 | C17: 3 | D17: 3 | E17: 4 | F17: 4 | G17: 2 | K17: Street Lighting | L17: 4 | M17: 4 | N17: 4 | O17: 3 | P17: 3 | Q17: 5 | U17: Industrial Lighting | V17: 3 | W17: 3 | X17: 3 | Y17: 4 | Z17: 3 | AA17: 3 | AE17: Commercial Computers | AO17: Small Business Solution
A18: LI: Grain and Oil Seed Milling Factory Estimated Savings Potential | B18: 3 | C18: 2 | D18: 3 | E18: 2 | F18: 3 | G18: 2 | K18: 0 | U18: District Heating for Dushanbe | V18: 4 | W18: 5 | X18: 2 | Y18: 5 | Z18: 4 | AA18: 4 | AE18: Commercial Lighting | AO18: Home audit and retrofit
A19: LI: Hotel Estimated Savings Potential | B19: 3 | C19: 3 | D19: 3 | E19: 3 | F19: 3 | G19: 3 | K19: - | U19: 0 | AE19: Commercial AC | AO19: Industrial Lighting
A20: LI: Office Estimated Savings Potential | K20: - | U20: - | AE20: Commercial Water Heating
A21: LI: Police Facility Estimated Savings Potential | K21: - | U21: - | AE21: Commercial Refrigeration
A22: LI: Tea Factory Estimated Savings Potential | K22: - | U22: - | AE22: Commercial Fans
A23: LI: Shopping Mall Estimated Savings Potential | K23: - | U23: - | AE23: Commercial EMS
A24: MI: Office Estimated Savings Potential | K24: - | U24: - | AE24: Industrial EMS
A25: MI: Prison Facility Estimated Savings Potential | K25: - | U25: - | AE25: Industrial Compressed Air
A26: MI: Police Facility Estimated Savings Potential | K26: - | U26: - | AE26: Industrial Lighting
A27: MI: Water/Sewage Facility Estimated Savings Potential | K27: - | U27: - | AE27: Industrial Motors
A28: MI: Hotel Estimated Savings Potential | K28: - | U28: - | AE28: Industrial Process Cooling
A29: MI: Beverage Manufacturing Facility Savings Potential | K29: - | U29: - | AE29: Industrial Process Heating
A30: MI: Grain and Oil Seed Milling Factory Estimated Savings Potential | K30: - | U30: - | AE30: 0
A31: MI: Shopping Mall Estimated Savings Potential | K31: - | U31: - | AE31: -
A32: Commercial Lighting | K32: - | U32: - | AE32: -
A33: Commercial Plug Load | K33: - | U33: - | AE33: -
A34: Commercial AC | K34: - | U34: - | AE34: -
A35: Commercial Refrigeration | K35: - | U35: - | AE35: -
K36: - | U36: - | AE36: -
A37: - | K37: - | U37: - | AE37: -
A38: - | K38: - | U38: - | AE38: -
A39: - | K39: - | U39: - | AE39: -
A40: - | K40: - | U40: - | AE40: -
A41: - | K41: - | U41: - | AE41: -
A42: - | K42: - | U42: - | AE42: -
A43: - | K43: - | U43: - | AE43: -
A44: - | K44: - | U44: - | AE44: -
A45: - | K45: - | U45: - | AE45: -
A46: - | K46: - | U46: - | AE46: -
A47: - | K47: - | U47: - | AE47: -
A48: - | K48: - | U48: - | AE48: -
A49: - | K49: - | U49: - | AE49: -
A50: - | K50: - | U50: - | AE50: -
A51: - | K51: - | U51: - | AE51: -
A52: - | K52: - | U52: - | AE52: -
A55: Country Name | B55: Mozambique | K55: Country Name | L55: Kazakhstan | U55: Country Name | V55: India - Telangana | AE55: Country Name | AO55: Country Name
A57: Program Name | B57: Market Transformation Potential | C57: Political Feasibility | D57: Program Complexity | E57: Environmental Aspects | F57: Economic Aspects | G57: Equity | K57: Program Name | L57: Market Transformation Potential | M57: Political Feasibility | N57: Program Complexity | O57: Environmental Aspects | P57: Economic Aspects | Q57: Equity | U57: Program Name | V57: Market Transformation Potential | W57: Political Feasibility | X57: Program Complexity | Y57: Environmental Aspects | Z57: Economic Aspects | AA57: Equity | AE57: Program Name | AF57: Market Transformation Potential | AG57: Political Feasibility | AH57: Program Complexity | AI57: Environmental Aspects | AJ57: Economic Aspects | AK57: Equity | AO57: Program Name | AP57: Market Transformation Potential | AQ57: Political Feasibility | AR57: Program Complexity | AS57: Environmental Aspects | AT57: Economic Aspects | AU57: Equity
A58: Residential Lighting | B58: 2 | C58: 1 | D58: 1 | E58: 1 | F58: 3 | G58: 5 | K58: Residential Lighting | L58: 5 | M58: 4 | N58: 3 | O58: 3 | P58: 3 | Q58: 4 | U58: Residential Lighting | AE58: Residential Lighting | AO58: Residential Lighting
A59: Residential Water Heating | B59: 2 | C59: 5 | D59: 4 | E59: 4 | F59: 5 | G59: 3 | K59: Residential Water Heating | L59: 1 | M59: 3 | N59: 2 | O59: 4 | P59: 3 | Q59: 3 | U59: Residential Water Heating | AE59: Residential Water Heating | AO59: Residential Water Heating
A60: Residential Water Heating 2 | B60: 2 | C60: 4 | D60: 3 | E60: 4 | F60: 5 | G60: 3 | K60: Residential HVAC | L60: 1 | M60: 3 | N60: 3 | O60: 4 | P60: 3 | Q60: 3 | U60: Residential Heating/Cooling | AE60: Residential Water Heating 2 | AO60: Residential Water Heating 2
A61: Residential HVAC | B61: 2 | C61: 5 | D61: 3 | E61: 3 | F61: 2 | G61: 2 | K61: Residential Appliances | L61: 2 | M61: 5 | N61: 4 | O61: 3 | P61: 2 | Q61: 2 | U61: Residential Appliances | AE61: Residential HVAC | AO61: Residential HVAC
A62: Residential Appliances | B62: 2 | C62: 2 | D62: 1 | E62: 3 | F62: 2 | G62: 1 | K62: Home Envelope | L62: 2 | M62: 3 | N62: 1 | O62: 3 | P62: 3 | Q62: 2 | U62: Commercial Refrigeration | AE62: Residential Appliances | AO62: Residential Appliances
A63: Commercial Refrigeration | B63: 5 | C63: 5 | D63: 4 | E63: 3 | F63: 4 | G63: 4 | K63: Residential District Heating - EMS | L63: 4 | M63: 5 | N63: 3 | O63: 5 | P63: 4 | Q63: 5 | U63: Commercial Lighting | AE63: Commercial Refrigeration | AO63: Commercial Refrigeration
A64: Commercial Lighting | B64: 4 | C64: 4 | D64: 3 | E64: 5 | F64: 4 | G64: 4 | K64: Commercial Lighting | L64: 5 | M64: 3 | N64: 5 | O64: 3 | P64: 4 | Q64: 4 | U64: Industrial Motor | AE64: Commercial Lighting | AO64: Commercial Lighting
A65: Industrial Motor | B65: 4 | C65: 2 | D65: 3 | E65: 5 | F65: 3 | G65: 4 | K65: Commercial Refrigeration | L65: 3 | M65: 2 | N65: 2 | O65: 5 | P65: 3 | Q65: 2 | U65: Industrial Compressed Air | AE65: Industrial Motor | AO65: Industrial Motor
A66: Industrial Custom and Prescriptive - Compressed Air | B66: 5 | C66: 4 | D66: 4 | E66: 3 | F66: 4 | G66: 4 | K66: Commercial Heating/ Cooling | L66: 3 | M66: 2 | N66: 3 | O66: 4 | P66: 3 | Q66: 4 | U66: Industrial Process Optimization | AE66: Industrial Custom and Prescriptive - Compressed Air | AO66: Industrial Custom and Prescriptive - Compressed Air
A67: Industrial Custom and Prescriptive - Process Optimization | B67: 3 | C67: 2 | D67: 1 | E67: 3 | F67: 3 | G67: 2 | K67: Commercial Water Heating | L67: 3 | M67: 2 | N67: 3 | O67: 3 | P67: 3 | Q67: 3 | U67: Commercial Heating/Cooling | AE67: Industrial Custom and Prescriptive - Process Optimization | AO67: Industrial Custom and Prescriptive - Process Optimization
A68: Commercial Custom and Prescriptive - HVAC | B68: 3 | C68: 2 | D68: 1 | E68: 3 | F68: 3 | G68: 2 | K68: Commercial District Heating - EMS | L68: 4 | M68: 5 | N68: 3 | O68: 5 | P68: 4 | Q68: 5 | U68: Commercial Water Heating | AE68: Commercial Custom and Prescriptive - HVAC | AO68: Commercial Custom and Prescriptive - HVAC
A69: Commercial Custom and Prescriptive - Water Heating | B69: 1 | C69: 1 | D69: 1 | E69: 1 | F69: 1 | G69: 1 | K69: Industrial Lighting | L69: 4 | M69: 3 | N69: 4 | O69: 3 | P69: 4 | Q69: 2 | U69: Home Retrofit | AE69: Commercial Custom and Prescriptive - Water Heating | AO69: Commercial Custom and Prescriptive - Water Heating
A70: Small Business Solution | B70: 4 | C70: 3 | D70: 3 | E70: 4 | F70: 4 | G70: 2 | K70: Industrial Motors | L70: 4 | M70: 4 | N70: 4 | O70: 5 | P70: 3 | Q70: 2 | U70: Industrial Lighting | AE70: Small Business Solution | AO70: Small Business Solution
A71: Home audit and retrofit | B71: 3 | C71: 2 | D71: 3 | E71: 2 | F71: 3 | G71: 2 | K71: Industrial Compressed Air | L71: 4 | M71: 4 | N71: 4 | O71: 5 | P71: 3 | Q71: 2 | U71: Agricultural Efficiency | AE71: Home audit and retrofit | AO71: Home audit and retrofit
A72: Industrial Lighting | K72: Industrial Process Optimization | L72: 3 | M72: 4 | N72: 2 | O72: 4 | P72: 4 | Q72: 2 | U72: 0 | AE72: Industrial Lighting | AO72: Industrial Lighting
K73: Residential District Heating - Envelope | L73: 2 | M73: 4 | N73: 1 | O73: 3 | P73: 3 | Q73: 3 | U73: -
K74: 0 | U74: -
K75: - | U75: -
K76: - | U76: -
K77: - | U77: -
K78: - | U78: -
K79: - | U79: -
K80: - | U80: -
K81: - | U81: -
K82: - | U82: -
K83: - | U83: -
K84: - | U84: -
K85: - | U85: -
K86: - | U86: -
K87: - | U87: -
K88: - | U88: -
K89: - | U89: -
K90: - | U90: -
K91: - | U91: -
K92: - | U92: -
K93: - | U93: -
K94: - | U94: -
K95: - | U95: -
K96: - | U96: -
K97: - | U97: -
K98: - | U98: -
K99: - | U99: -
K100: - | U100: -
K101: - | U101: -
K102: - | U102: -
K103: - | U103: -
K104: - | U104: -
K105: - | U105: -
A110: Country Name | B110: Uganda | K110: Country Name | L110: Mexico | U110: Country Name | V110: India - Andhra Pradesh | AE110: Country Name | AO110: Country Name
A112: Program Name | B112: Market Transformation Potential | C112: Political Feasibility | D112: Program Complexity | E112: Environmental Aspects | F112: Economic Aspects | G112: Equity | K112: Program Name | L112: Market Transformation Potential | M112: Political Feasibility | N112: Program Complexity | O112: Environmental Aspects | P112: Economic Aspects | Q112: Equity | U112: Program Name | V112: Market Transformation Potential | W112: Political Feasibility | X112: Program Complexity | Y112: Environmental Aspects | Z112: Economic Aspects | AA112: Equity | AE112: Program Name | AF112: Market Transformation Potential | AG112: Political Feasibility | AH112: Program Complexity | AI112: Environmental Aspects | AJ112: Economic Aspects | AK112: Equity | AO112: Program Name | AP112: Market Transformation Potential | AQ112: Political Feasibility | AR112: Program Complexity | AS112: Environmental Aspects | AT112: Economic Aspects | AU112: Equity
A113: Residential Lighting | K113: Residential Lighting | L113: 5 | M113: 5 | N113: 5 | O113: 3 | P113: 2 | Q113: 5 | U113: Residential Lighting | AE113: Residential Lighting | AO113: Residential Lighting
A114: Residential Water Heating | K114: Residential HVAC | L114: 3 | M114: 2 | N114: 3 | O114: 4 | P114: 4 | Q114: 3 | U114: Residential Water Heating | AE114: Residential Water Heating | AO114: Residential Water Heating
A115: Residential Water Heating 2 | K115: Residential Appliances | L115: 3 | M115: 3 | N115: 4 | O115: 4 | P115: 4 | Q115: 3 | U115: Residential Water Heating 2 | AE115: Residential Heating/Cooling | AO115: Residential Water Heating 2
A116: Residential HVAC | K116: Commercial Refrigeration | L116: 4 | M116: 3 | N116: 3 | O116: 4 | P116: 4 | Q116: 3 | U116: Residential HVAC | AE116: Residential Appliances | AO116: Residential HVAC
A117: Residential Appliances | K117: Commercial Lighting | L117: 4 | M117: 3 | N117: 4 | O117: 3 | P117: 2 | Q117: 4 | U117: Residential Appliances | AE117: Commercial Refrigeration | AO117: Residential Appliances
A118: Commercial Refrigeration | K118: Street Lighting | L118: 5 | M118: 5 | N118: 5 | O118: 3 | P118: 2 | Q118: 5 | U118: Commercial Refrigeration | AE118: Commercial Lighting | AO118: Commercial Refrigeration
A119: Commercial Lighting | K119: Industrial Motor | L119: 4 | M119: 5 | N119: 4 | O119: 4 | P119: 4 | Q119: 4 | U119: Commercial Lighting | AE119: Industrial Motor | AO119: Commercial Lighting
A120: Industrial Motor | K120: Industrial - Compressed Air | L120: 3 | M120: 2 | N120: 2 | O120: 4 | P120: 4 | Q120: 3 | U120: Industrial Motor | AE120: Industrial Compressed Air | AO120: Industrial Motor
A121: Industrial Custom and Prescriptive - Compressed Air | K121: Commercial - HVAC | L121: 3 | M121: 2 | N121: 3 | O121: 4 | P121: 4 | Q121: 3 | U121: Industrial Custom and Prescriptive - Compressed Air | AE121: Industrial Process Optimization | AO121: Industrial Custom and Prescriptive - Compressed Air
A122: Industrial Custom and Prescriptive - Process Optimization | K122: Commercial - water Heating | L122: 3 | M122: 3 | N122: 3 | O122: 3 | P122: 3 | Q122: 3 | U122: Industrial Custom and Prescriptive - Process Optimization | AE122: Commercial Heating/Cooling | AO122: Industrial Custom and Prescriptive - Process Optimization
A123: Commercial Custom and Prescriptive - HVAC | K123: Commercial - food service | L123: 4 | M123: 4 | N123: 3 | O123: 4 | P123: 3 | Q123: 2 | U123: Commercial Custom and Prescriptive - HVAC | AE123: Commercial Water Heating | AO123: Commercial Custom and Prescriptive - HVAC
A124: Commercial Custom and Prescriptive - Water Heating | K124: Residential thermal envelope | L124: 2 | M124: 2 | N124: 2 | O124: 3 | P124: 3 | Q124: 3 | U124: Commercial Custom and Prescriptive - Water Heating | AE124: Home Retrofit | AO124: Commercial Custom and Prescriptive - Water Heating
A125: Small Business Solution | K125: Industrial Lighting | L125: 4 | M125: 4 | N125: 4 | O125: 3 | P125: 3 | Q125: 4 | U125: Small Business Solution | AE125: Industrial Lighting | AO125: Small Business Solution
A126: Home audit and retrofit | K126: 0 | U126: Home audit and retrofit | AE126: Agricultural Efficiency | AO126: Home audit and retrofit
A127: Industrial Lighting | K127: - | U127: Industrial Lighting | AE127: 0 | AO127: Industrial Lighting
K128: - | AE128: -
K129: - | AE129: -
K130: - | AE130: -
K131: - | AE131: -
K132: - | AE132: -
K133: - | AE133: -
K134: - | AE134: -
K135: - | AE135: -
K136: - | AE136: -
K137: - | AE137: -
K138: - | AE138: -
K139: - | AE139: -
K140: - | AE140: -
K141: - | AE141: -
K142: - | AE142: -
K143: - | AE143: -
K144: - | AE144: -
K145: - | AE145: -
K146: - | AE146: -
K147: - | AE147: -
K148: - | AE148: -
K149: - | AE149: -
K150: - | AE150: -
K151: - | AE151: -
K152: - | AE152: -
K153: - | AE153: -
K154: - | AE154: -
K155: - | AE155: -
K156: - | AE156: -
K157: - | AE157: -
K158: - | AE158: -
K159: - | AE159: -
K160: - | AE160: -

Sheet Country Indicators User (hidden)
A1: 1 | B1: 2 | C1: 3 | D1: 4 | E1: 5 | F1: 6 | G1: 7 | H1: 8 | I1: 9 | J1: 10 | K1: 11 | L1: 12 | M1: 13 | N1: 14 | O1: 15 | P1: 16 | Q1: 17 | R1: 18 | S1: 19 | T1: 20 | U1: 21 | V1: 22 | W1: 23 | X1: 24 | Y1: 25 | Z1: 26 | AA1: 27 | AB1: 28 | AC1: 29 | AD1: 30 | AE1: 31 | AF1: 32 | AG1: 33 | AH1: 34 | AI1: 35 | AJ1: 36 | AK1: 37 | AL1: 38 | AM1: 39 | AN1: 40 | AO1: 41 | AP1: 42 | AQ1: 43 | AR1: 44 | AS1: 45 | AT1: 46 | AU1: 47
A2: Country Name | B2: South Africa | K2: Country Name | L2: El Salvador | U2: Country Name | V2: Tajikistan | AE2: Country Name | AO2: Country Name
A4: Program Name | B4: Market Transformation Potential | C4: Political Feasibility | D4: Program Complexity | E4: Environmental Aspects | F4: Economic Aspects | G4: Equity | K4: Program Name | L4: Market Transformation Potential | M4: Political Feasibility | N4: Program Complexity | O4: Environmental Aspects | P4: Economic Aspects | Q4: Equity | U4: Program Name | V4: Market Transformation Potential | W4: Political Feasibility | X4: Program Complexity | Y4: Environmental Aspects | Z4: Economic Aspects | AA4: Equity | AE4: Program Name | AF4: Market Transformation Potential | AG4: Political Feasibility | AH4: Program Complexity | AI4: Environmental Aspects | AJ4: Economic Aspects | AK4: Equity | AO4: Program Name | AP4: Market Transformation Potential | AQ4: Political Feasibility | AR4: Program Complexity | AS4: Environmental Aspects | AT4: Economic Aspects | AU4: Equity | AZ4: Residential Lighting
A5: High Efficiency Residential Lighting | B5: 3 | C5: 5 | D5: 5 | E5: 5 | F5: 5 | G5: 5 | K5: Commercial Custom and Prescriptive - HVAC | L5: 3 | M5: 4 | N5: 3 | O5: 2 | P5: 3 | Q5: 3 | U5: Residential Lighting | V5: 1 | W5: 1 | X5: 5 | Y5: 5 | Z5: 3 | AA5: 2 | AE5: On-Grid Urban Lighting | AO5: Residential Lighting | AZ5: Residential Lighting
A6: Energy Star TV | B6: 2 | C6: 5 | D6: 4 | E6: 4 | F6: 5 | G6: 3 | K6: Commercial Custom and Prescriptive - Water Heating | L6: 2 | M6: 2 | N6: 2 | O6: 4 | P6: 3 | Q6: 3 | U6: Residential Water Heating | V6: 3 | W6: 3 | X6: 3 | Y6: 4 | Z6: 4 | AA6: 3 | AE6: On-Grid Urban TV | AO6: Residential Water Heating | AZ6: On-Grid Urban Lighting
A7: High Efficiency Fridge | B7: 3 | C7: 4 | D7: 3 | E7: 4 | F7: 5 | G7: 3 | K7: Commercial Lighting | L7: 3 | M7: 3 | N7: 4 | O7: 3 | P7: 3 | Q7: 4 | U7: Residential Heating/Cooling | V7: 4 | W7: 5 | X7: 3 | Y7: 2 | Z7: 4 | AA7: 2 | AE7: On-Grid Urban Fan | AO7: Residential Water Heating 2 | AZ7: On-Grid Urban TV
A8: High Efficiency Radio | B8: 3 | C8: 5 | D8: 3 | E8: 3 | F8: 2 | G8: 2 | K8: Commercial Refrigeration | L8: 2 | M8: 4 | N8: 3 | O8: 3 | P8: 2 | Q8: 2 | U8: Residential Appliances | V8: 3 | W8: 3 | X8: 1 | Y8: 3 | Z8: 3 | AA8: 3 | AE8: On-Grid Urban Fridge | AO8: Residential HVAC | AZ8: On-Grid Urban Fan
A9: High Efficiency AC | B9: 3 | C9: 2 | D9: 1 | E9: 3 | F9: 2 | G9: 1 | K9: Home audit and retrofit | L9: 3 | M9: 2 | N9: 2 | O9: 3 | P9: 4 | Q9: 4 | U9: Commercial Refrigeration | V9: 3 | W9: 3 | X9: 1 | Y9: 4 | Z9: 3 | AA9: 3 | AE9: On-Grid Urban AC | AO9: Residential Appliances | AZ9: On-Grid Urban Fridge
A10: High Efficiency Iron | B10: 3 | C10: 5 | D10: 4 | E10: 3 | F10: 4 | G10: 4 | K10: Industrial Custom and Prescriptive – Compressed Air | L10: 2 | M10: 2 | N10: 2 | O10: 3 | P10: 2 | Q10: 3 | U10: Commercial Lighting | V10: 3 | W10: 3 | X10: 2 | Y10: 4 | Z10: 3 | AA10: 3 | AE10: On-Grid Urban Water Heating | AO10: Commercial Refrigeration | AZ10: On-Grid Urban AC
A11: High Efficeincy Fan | B11: 3 | C11: 4 | D11: 3 | E11: 5 | F11: 4 | G11: 4 | K11: Industrial Lighting | L11: 3 | M11: 3 | N11: 3 | O11: 3 | P11: 3 | Q11: 4 | U11: Industrial Motor | V11: 3 | W11: 3 | X11: 3 | Y11: 4 | Z11: 3 | AA11: 3 | AE11: On-Grid Rural Lighting | AO11: Commercial Lighting | AZ11: On-Grid Urban Water Heating
A12: LI: Steel Mill Estimated Savings Potential | B12: 3 | C12: 2 | D12: 3 | E12: 5 | F12: 3 | G12: 4 | K12: Industrial Motor | L12: 3 | M12: 4 | N12: 2 | O12: 3 | P12: 2 | Q12: 2 | U12: Industrial Compressed Air | V12: 3 | W12: 3 | X12: 4 | Y12: 4 | Z12: 3 | AA12: 3 | AE12: On-Grid Rural TV | AO12: Industrial Motor | AZ12: On-Grid Rural Lighting
A13: LI: Cement Factory Estimated Savings Potential | B13: 3 | C13: 4 | D13: 4 | E13: 3 | F13: 4 | G13: 4 | K13: Residential HVAC | L13: 3 | M13: 4 | N13: 3 | O13: 2 | P13: 3 | Q13: 2 | U13: Industrial Process Optimization | V13: 3 | W13: 3 | X13: 1 | Y13: 4 | Z13: 3 | AA13: 3 | AE13: On-Grid Rural Fan | AO13: Industrial Custom and Prescriptive - Compressed Air | AZ13: On-Grid Rural TV
A14: LI: Water/Sewage Facility Estimated Savings Potential | B14: 3 | C14: 2 | D14: 1 | E14: 3 | F14: 3 | G14: 2 | K14: Residential Appliances | L14: 4 | M14: 4 | N14: 2 | O14: 3 | P14: 3 | Q14: 4 | U14: Commercial Heating/Cooling | V14: 4 | W14: 5 | X14: 1 | Y14: 2 | Z14: 3 | AA14: 3 | AE14: On-Grid Rural Fridge | AO14: Industrial Custom and Prescriptive - Process Optimization | AZ14: On-Grid Rural Fan
A15: LI: Food-Related Manufacturing Facility Savings Potential | B15: 3 | C15: 2 | D15: 1 | E15: 3 | F15: 3 | G15: 2 | K15: Residential Lighting | L15: 4 | M15: 4 | N15: 5 | O15: 3 | P15: 3 | Q15: 4 | U15: Commercial Water Heating | V15: 3 | W15: 3 | X15: 1 | Y15: 4 | Z15: 3 | AA15: 3 | AE15: On-Grid Rural AC | AO15: Commercial Custom and Prescriptive - HVAC | AZ15: On-Grid Rural Fridge
A16: LI: Beverage Manufacturing Facility Savings Potential | B16: 3 | C16: 1 | D16: 1 | E16: 1 | F16: 1 | G16: 1 | K16: Small Business Solution | L16: 2 | M16: 2 | N16: 1 | O16: 3 | P16: 1 | Q16: 2 | U16: Home Retrofit | V16: 3 | W16: 3 | X16: 3 | Y16: 4 | Z16: 3 | AA16: 3 | AE16: On-Grid Rural Water Heating | AO16: Commercial Custom and Prescriptive - Water Heating | AZ16: On-Grid Rural AC
A17: LI: Plastics Factory Estimated Savings Potential | B17: 3 | C17: 3 | D17: 3 | E17: 4 | F17: 4 | G17: 2 | K17: Street Lighting | L17: 4 | M17: 4 | N17: 4 | O17: 3 | P17: 3 | Q17: 5 | U17: Industrial Lighting | V17: 3 | W17: 3 | X17: 3 | Y17: 4 | Z17: 3 | AA17: 3 | AE17: Commercial Computers | AO17: Small Business Solution | AZ17: On-Grid Rural Water Heating
A18: LI: Grain and Oil Seed Milling Factory Estimated Savings Potential | B18: 3 | C18: 2 | D18: 3 | E18: 2 | F18: 3 | G18: 2 | K18: 0 | U18: District Heating for Dushanbe | V18: 4 | W18: 5 | X18: 2 | Y18: 5 | Z18: 4 | AA18: 4 | AE18: Commercial Lighting | AO18: Home audit and retrofit | AZ18: Commercial Computers
A19: LI: Hotel Estimated Savings Potential | B19: 3 | C19: 3 | D19: 3 | E19: 3 | F19: 3 | G19: 3 | K19: - | U19: 0 | AE19: Commercial AC | AO19: Industrial Lighting | AZ19: Commercial Lighting
A20: LI: Office Estimated Savings Potential | K20: - | U20: - | AE20: Commercial Water Heating | AZ20: Commercial AC
A21: LI: Police Facility Estimated Savings Potential | K21: - | U21: - | AE21: Commercial Refrigeration | AZ21: Commercial Water Heating
A22: LI: Tea Factory Estimated Savings Potential | K22: - | U22: - | AE22: Commercial Fans | AZ22: Commercial Refrigeration
A23: LI: Shopping Mall Estimated Savings Potential | K23: - | U23: - | AE23: Commercial EMS | AZ23: Commercial Fans
A24: MI: Office Estimated Savings Potential | K24: - | U24: - | AE24: Industrial EMS | AZ24: Commercial EMS
A25: MI: Prison Facility Estimated Savings Potential | K25: - | U25: - | AE25: Industrial Compressed Air | AZ25: Industrial EMS
A26: MI: Police Facility Estimated Savings Potential | K26: - | U26: - | AE26: Industrial Lighting | AZ26: Industrial Compressed Air
A27: MI: Water/Sewage Facility Estimated Savings Potential | K27: - | U27: - | AE27: Industrial Motors | AZ27: Industrial Lighting
A28: MI: Hotel Estimated Savings Potential | K28: - | U28: - | AE28: Industrial Process Cooling | AZ28: Industrial Motors
A29: MI: Beverage Manufacturing Facility Savings Potential | K29: - | U29: - | AE29: Industrial Process Heating | AZ29: Industrial Process Cooling
A30: MI: Grain and Oil Seed Milling Factory Estimated Savings Potential | K30: - | U30: - | AE30: 0 | AZ30: Industrial Process Heating
A31: MI: Shopping Mall Estimated Savings Potential | K31: - | U31: - | AE31: - | AZ31: 0
A32: Commercial Lighting | K32: - | U32: - | AE32: - | AZ32: -
A33: Commercial Plug Load | K33: - | U33: - | AE33: - | AZ33: -
A34: Commercial AC | K34: - | U34: - | AE34: - | AZ34: -
A35: Commercial Refrigeration | K35: - | U35: - | AE35: - | AZ35: -
K36: - | U36: - | AE36: - | AZ36: -
A37: - | K37: - | U37: - | AE37: - | AZ37: -
A38: - | K38: - | U38: - | AE38: - | AZ38: -
A39: - | K39: - | U39: - | AE39: - | AZ39: -
A40: - | K40: - | U40: - | AE40: - | AZ40: -
A41: - | K41: - | U41: - | AE41: - | AZ41: -
A42: - | K42: - | U42: - | AE42: - | AZ42: -
A43: - | K43: - | U43: - | AE43: - | AZ43: -
A44: - | K44: - | U44: - | AE44: - | AZ44: -
A45: - | K45: - | U45: - | AE45: - | AZ45: -
A46: - | K46: - | U46: - | AE46: - | AZ46: -
A47: - | K47: - | U47: - | AE47: - | AZ47: -
A48: - | K48: - | U48: - | AE48: - | AZ48: -
A49: - | K49: - | U49: - | AE49: - | AZ49: -
A50: - | K50: - | U50: - | AE50: - | AZ50: -
A51: - | K51: - | U51: - | AE51: - | AZ51: -
A52: - | K52: - | U52: - | AE52: - | AZ52: -
AZ53: -
A55: Country Name | B55: Mozambique | K55: Country Name | L55: Kazakhstan | U55: Country Name | V55: India - Telangana | AE55: Country Name | AO55: Country Name
A57: Program Name | B57: Market Transformation Potential | C57: Political Feasibility | D57: Program Complexity | E57: Environmental Aspects | F57: Economic Aspects | G57: Equity | K57: Program Name | L57: Market Transformation Potential | M57: Political Feasibility | N57: Program Complexity | O57: Environmental Aspects | P57: Economic Aspects | Q57: Equity | U57: Program Name | V57: Market Transformation Potential | W57: Political Feasibility | X57: Program Complexity | Y57: Environmental Aspects | Z57: Economic Aspects | AA57: Equity | AE57: Program Name | AF57: Market Transformation Potential | AG57: Political Feasibility | AH57: Program Complexity | AI57: Environmental Aspects | AJ57: Economic Aspects | AK57: Equity | AO57: Program Name | AP57: Market Transformation Potential | AQ57: Political Feasibility | AR57: Program Complexity | AS57: Environmental Aspects | AT57: Economic Aspects | AU57: Equity
A58: Residential Lighting | B58: 2 | C58: 1 | D58: 1 | E58: 1 | F58: 3 | G58: 5 | K58: Residential Lighting | L58: 5 | M58: 4 | N58: 3 | O58: 3 | P58: 3 | Q58: 4 | U58: 0 | V58: 5 | W58: 5 | X58: 4 | Y58: 5 | Z58: 5 | AA58: 5 | AE58: Residential Lighting | AO58: Residential Lighting
A59: Residential Water Heating | B59: 2 | C59: 5 | D59: 4 | E59: 4 | F59: 5 | G59: 3 | K59: Residential Water Heating | L59: 1 | M59: 3 | N59: 2 | O59: 4 | P59: 3 | Q59: 3 | U59: - | V59: 5 | W59: 4 | X59: 3 | Y59: 5 | Z59: 4 | AA59: 3 | AE59: Residential Water Heating | AO59: Residential Water Heating
A60: Residential Water Heating 2 | B60: 2 | C60: 4 | D60: 3 | E60: 4 | F60: 5 | G60: 3 | K60: Residential HVAC | L60: 1 | M60: 3 | N60: 3 | O60: 4 | P60: 3 | Q60: 3 | U60: - | V60: 5 | W60: 5 | X60: 4 | Y60: 5 | Z60: 5 | AA60: 5 | AE60: Residential Water Heating 2 | AO60: Residential Water Heating 2
A61: Residential HVAC | B61: 2 | C61: 5 | D61: 3 | E61: 3 | F61: 2 | G61: 2 | K61: Residential Appliances | L61: 2 | M61: 5 | N61: 4 | O61: 3 | P61: 2 | Q61: 2 | U61: - | V61: 5 | W61: 4 | X61: 2 | Y61: 5 | Z61: 3 | AA61: 1 | AE61: Residential HVAC | AO61: Residential HVAC
A62: Residential Appliances | B62: 2 | C62: 2 | D62: 1 | E62: 3 | F62: 2 | G62: 1 | K62: Home Envelope | L62: 2 | M62: 3 | N62: 1 | O62: 3 | P62: 3 | Q62: 2 | U62: - | V62: 4 | W62: 4 | X62: 3 | Y62: 5 | Z62: 3 | AA62: 4 | AE62: Residential Appliances | AO62: Residential Appliances
A63: Commercial Refrigeration | B63: 5 | C63: 5 | D63: 4 | E63: 3 | F63: 4 | G63: 4 | K63: Residential District Heating - EMS | L63: 4 | M63: 5 | N63: 3 | O63: 5 | P63: 4 | Q63: 5 | U63: - | V63: 3 | W63: 3 | X63: 3 | Y63: 5 | Z63: 3 | AA63: 2 | AE63: Commercial Refrigeration | AO63: Commercial Refrigeration
A64: Commercial Lighting | B64: 4 | C64: 4 | D64: 3 | E64: 5 | F64: 4 | G64: 4 | K64: Commercial Lighting | L64: 5 | M64: 3 | N64: 5 | O64: 3 | P64: 4 | Q64: 4 | U64: - | V64: 3 | W64: 4 | X64: 2 | Y64: 5 | Z64: 3 | AA64: 1 | AE64: Commercial Lighting | AO64: Commercial Lighting
A65: Industrial Motor | B65: 4 | C65: 2 | D65: 3 | E65: 5 | F65: 3 | G65: 4 | K65: Commercial Refrigeration | L65: 3 | M65: 2 | N65: 2 | O65: 5 | P65: 3 | Q65: 2 | U65: - | V65: 5 | W65: 4 | X65: 3 | Y65: 3 | Z65: 2 | AA65: 4 | AE65: Industrial Motor | AO65: Industrial Motor
A66: Industrial Custom and Prescriptive - Compressed Air | B66: 5 | C66: 4 | D66: 4 | E66: 3 | F66: 4 | G66: 4 | K66: Commercial Heating/ Cooling | L66: 3 | M66: 2 | N66: 3 | O66: 4 | P66: 3 | Q66: 4 | U66: - | V66: 4 | W66: 3 | X66: 2 | Y66: 4 | Z66: 3 | AA66: 3 | AE66: Industrial Custom and Prescriptive - Compressed Air | AO66: Industrial Custom and Prescriptive - Compressed Air
A67: Industrial Custom and Prescriptive - Process Optimization | B67: 3 | C67: 2 | D67: 1 | E67: 3 | F67: 3 | G67: 2 | K67: Commercial Water Heating | L67: 3 | M67: 2 | N67: 3 | O67: 3 | P67: 3 | Q67: 3 | U67: - | V67: 4 | W67: 4 | X67: 4 | Y67: 5 | Z67: 3 | AA67: 5 | AE67: Industrial Custom and Prescriptive - Process Optimization | AO67: Industrial Custom and Prescriptive - Process Optimization
A68: Commercial Custom and Prescriptive - HVAC | B68: 3 | C68: 2 | D68: 1 | E68: 3 | F68: 3 | G68: 2 | K68: Commercial District Heating - EMS | L68: 4 | M68: 5 | N68: 3 | O68: 5 | P68: 4 | Q68: 5 | U68: - | V68: 5 | W68: 3 | X68: 3 | Y68: 3 | Z68: 3 | AA68: 3 | AE68: Commercial Custom and Prescriptive - HVAC | AO68: Commercial Custom and Prescriptive - HVAC
A69: Commercial Custom and Prescriptive - Water Heating | B69: 1 | C69: 1 | D69: 1 | E69: 1 | F69: 1 | G69: 1 | K69: Industrial Lighting | L69: 4 | M69: 3 | N69: 4 | O69: 3 | P69: 4 | Q69: 2 | U69: - | V69: 4 | W69: 4 | X69: 4 | Y69: 4 | Z69: 3 | AA69: 4 | AE69: Commercial Custom and Prescriptive - Water Heating | AO69: Commercial Custom and Prescriptive - Water Heating
A70: Small Business Solution | B70: 4 | C70: 3 | D70: 3 | E70: 4 | F70: 4 | G70: 2 | K70: Industrial Motors | L70: 4 | M70: 4 | N70: 4 | O70: 5 | P70: 3 | Q70: 2 | U70: - | V70: 4 | W70: 4 | X70: 4 | Y70: 4 | Z70: 3 | AA70: 4 | AE70: Small Business Solution | AO70: Small Business Solution
A71: Home audit and retrofit | B71: 3 | C71: 2 | D71: 3 | E71: 2 | F71: 3 | G71: 2 | K71: Industrial Compressed Air | L71: 4 | M71: 4 | N71: 4 | O71: 5 | P71: 3 | Q71: 2 | U71: - | V71: 5 | W71: 4 | X71: 2 | Y71: 5 | Z71: 2 | AA71: 2 | AE71: Home audit and retrofit | AO71: Home audit and retrofit
A72: Industrial Lighting | K72: Industrial Process Optimization | L72: 3 | M72: 4 | N72: 2 | O72: 4 | P72: 4 | Q72: 2 | U72: - | V72: 3 | W72: 3 | X72: 3 | Y72: 5 | Z72: 3 | AA72: 2 | AE72: Industrial Lighting | AO72: Industrial Lighting
K73: Residential District Heating - Envelope | L73: 2 | M73: 4 | N73: 1 | O73: 3 | P73: 3 | Q73: 3 | U73: - | V73: 4 | W73: 2 | X73: 2 | Y73: 4 | Z73: 3 | AA73: 3
K74: 0 | U74: - | V74: 4 | W74: 1 | X74: 1 | Y74: 3 | Z74: 3 | AA74: 2
K75: - | U75: -
K76: - | U76: -
K77: - | U77: -
K78: - | U78: -
K79: - | U79: -
K80: - | U80: -
K81: - | U81: -
K82: - | U82: -
K83: - | U83: -
K84: - | U84: -
K85: - | U85: -
K86: - | U86: -
K87: - | U87: -
K88: - | U88: -
K89: - | U89: -
K90: - | U90: -
K91: - | U91: -
K92: - | U92: -
K93: - | U93: -
K94: - | U94: -
K95: - | U95: -
K96: - | U96: -
K97: - | U97: -
K98: - | U98: -
K99: - | U99: -
K100: - | U100: -
K101: - | U101: -
K102: - | U102: -
K103: - | U103: -
K104: - | U104: -
K105: - | U105: -
A110: Country Name | B110: Uganda | K110: Country Name | L110: Mexico | U110: Country Name | V110: India - Andhra Pradesh | AE110: Country Name | AO110: Country Name
A112: Program Name | B112: Market Transformation Potential | C112: Political Feasibility | D112: Program Complexity | E112: Environmental Aspects | F112: Economic Aspects | G112: Equity | K112: Program Name | L112: Market Transformation Potential | M112: Political Feasibility | N112: Program Complexity | O112: Environmental Aspects | P112: Economic Aspects | Q112: Equity | U112: Program Name | V112: Market Transformation Potential | W112: Political Feasibility | X112: Program Complexity | Y112: Environmental Aspects | Z112: Economic Aspects | AA112: Equity | AE112: Program Name | AF112: Market Transformation Potential | AG112: Political Feasibility | AH112: Program Complexity | AI112: Environmental Aspects | AJ112: Economic Aspects | AK112: Equity | AO112: Program Name | AP112: Market Transformation Potential | AQ112: Political Feasibility | AR112: Program Complexity | AS112: Environmental Aspects | AT112: Economic Aspects | AU112: Equity
A113: On-Grid Urban Lighting | K113: Residential Lighting | L113: 5 | M113: 5 | N113: 5 | O113: 3 | P113: 2 | Q113: 5 | U113: Residential Lighting | V113: 5 | W113: 5 | X113: 4 | Y113: 5 | Z113: 5 | AA113: 5 | AE113: 0 | AO113: Residential Lighting
A114: On-Grid Urban TV | K114: Residential HVAC | L114: 3 | M114: 2 | N114: 3 | O114: 4 | P114: 4 | Q114: 3 | U114: Residential Refrigerator Program | V114: 5 | W114: 4 | X114: 3 | Y114: 5 | Z114: 4 | AA114: 3 | AE114: - | AO114: Residential Water Heating
A115: On-Grid Urban Fan | K115: Residential Appliances | L115: 3 | M115: 3 | N115: 4 | O115: 4 | P115: 4 | Q115: 3 | U115: Residential Fan Program | V115: 5 | W115: 5 | X115: 4 | Y115: 5 | Z115: 5 | AA115: 5 | AE115: - | AO115: Residential Water Heating 2
A116: On-Grid Urban Fridge | K116: Commercial Refrigeration | L116: 4 | M116: 3 | N116: 3 | O116: 4 | P116: 4 | Q116: 3 | U116: Residential AC Program | V116: 5 | W116: 4 | X116: 2 | Y116: 5 | Z116: 3 | AA116: 1 | AE116: - | AO116: Residential HVAC
A117: On-Grid Urban AC | K117: Commercial Lighting | L117: 4 | M117: 3 | N117: 4 | O117: 3 | P117: 2 | Q117: 4 | U117: Commercial Lighting | V117: 4 | W117: 4 | X117: 3 | Y117: 5 | Z117: 3 | AA117: 4 | AE117: - | AO117: Residential Appliances
A118: On-Grid Urban Water Heating | K118: Street Lighting | L118: 5 | M118: 5 | N118: 5 | O118: 3 | P118: 2 | Q118: 5 | U118: Commerical Cooling | V118: 3 | W118: 3 | X118: 3 | Y118: 5 | Z118: 3 | AA118: 2 | AE118: - | AO118: Commercial Refrigeration
A119: On-Grid Rural Lighting | K119: Industrial Motor | L119: 4 | M119: 5 | N119: 4 | O119: 4 | P119: 4 | Q119: 4 | U119: Commercial Water Heating | V119: 4 | W119: 4 | X119: 2 | Y119: 5 | Z119: 3 | AA119: 1 | AE119: - | AO119: Commercial Lighting
A120: On-Grid Rural TV | K120: Industrial - Compressed Air | L120: 3 | M120: 2 | N120: 2 | O120: 4 | P120: 4 | Q120: 3 | U120: Industrial Motor | V120: 5 | W120: 4 | X120: 3 | Y120: 3 | Z120: 2 | AA120: 4 | AE120: - | AO120: Industrial Motor
A121: On-Grid Rural Fan | K121: Commercial - HVAC | L121: 3 | M121: 2 | N121: 3 | O121: 4 | P121: 4 | Q121: 3 | U121: Industrial Process Optimization | V121: 3 | W121: 3 | X121: 2 | Y121: 4 | Z121: 3 | AA121: 3 | AE121: - | AO121: Industrial Custom and Prescriptive - Compressed Air
A122: On-Grid Rural Fridge | K122: Commercial - water Heating | L122: 3 | M122: 3 | N122: 3 | O122: 3 | P122: 3 | Q122: 3 | U122: Industrial Lighting | V122: 5 | W122: 4 | X122: 4 | Y122: 5 | Z122: 3 | AA122: 5 | AE122: - | AO122: Industrial Custom and Prescriptive - Process Optimization
A123: On-Grid Rural AC | K123: Commercial - food service | L123: 4 | M123: 4 | N123: 3 | O123: 4 | P123: 3 | Q123: 2 | U123: Industrial pumping | V123: 4 | W123: 4 | X123: 3 | Y123: 3 | Z123: 3 | AA123: 3 | AE123: - | AO123: Commercial Custom and Prescriptive - HVAC
A124: On-Grid Rural Water Heating | K124: Residential thermal envelope | L124: 2 | M124: 2 | N124: 2 | O124: 3 | P124: 3 | Q124: 3 | U124: Municipal Lighting | V124: 4 | W124: 4 | X124: 4 | Y124: 4 | Z124: 3 | AA124: 4 | AE124: - | AO124: Commercial Custom and Prescriptive - Water Heating
A125: Commercial Computers | K125: Industrial Lighting | L125: 4 | M125: 4 | N125: 4 | O125: 3 | P125: 3 | Q125: 4 | U125: Municipal Pumping | V125: 3 | W125: 4 | X125: 4 | Y125: 4 | Z125: 3 | AA125: 4 | AE125: - | AO125: Small Business Solution
A126: Commercial Lighting | K126: 0 | U126: Agricultural Pumps | V126: 5 | W126: 4 | X126: 2 | Y126: 5 | Z126: 2 | AA126: 2 | AE126: - | AO126: Home audit and retrofit
A127: 0 | K127: - | U127: Commercial Refrigeration | V127: 3 | W127: 3 | X127: 3 | Y127: 5 | Z127: 3 | AA127: 2 | AE127: - | AO127: Industrial Lighting
A128: Commercial AC | K128: - | U128: Industrial Compressed Air | V128: 3 | W128: 3 | X128: 2 | Y128: 4 | Z128: 3 | AA128: 3 | AE128: -
A129: Commercial Water Heating | K129: - | U129: Home retrofit | V129: 4 | W129: 1 | X129: 1 | Y129: 3 | Z129: 3 | AA129: 2 | AE129: -
A130: Commercial Refrigeration | K130: - | U130: 0 | AE130: -
A131: Commercial Fans | K131: - | U131: - | AE131: -
A132: Commercial EMS | K132: - | U132: - | AE132: -
A133: Industrial EMS | K133: - | U133: - | AE133: -
A134: Industrial Compressed Air | K134: - | U134: - | AE134: -
A135: Industrial Lighting | K135: - | U135: - | AE135: -
A136: Industrial Motors | K136: - | U136: - | AE136: -
A137: Industrial Process Cooling | K137: - | U137: - | AE137: -
A138: Industrial Process Heating | K138: - | U138: - | AE138: -
A139: - | K139: - | U139: - | AE139: -
A140: - | K140: - | U140: - | AE140: -
A141: - | K141: - | U141: - | AE141: -
A142: - | K142: - | U142: - | AE142: -
A143: - | K143: - | U143: - | AE143: -
A144: - | K144: - | U144: - | AE144: -
A145: - | K145: - | U145: - | AE145: -
A146: - | K146: - | U146: - | AE146: -
A147: - | K147: - | U147: - | AE147: -
A148: - | K148: - | U148: - | AE148: -
A149: - | K149: - | U149: - | AE149: -
A150: - | K150: - | U150: - | AE150: -
A151: - | K151: - | U151: - | AE151: -
A152: - | K152: - | U152: - | AE152: -
A153: - | K153: - | U153: - | AE153: -
A154: - | K154: - | U154: - | AE154: -
A155: - | K155: - | U155: - | AE155: -
A156: - | K156: - | U156: - | AE156: -
A157: - | K157: - | U157: - | AE157: -
A158: - | K158: - | U158: - | AE158: -
A159: - | K159: - | U159: - | AE159: -
A160: - | K160: - | U160: - | AE160: -

Sheet Advanced Inputs – Country
A1: ='Advanced Inputs – Program'!K17 -> 2016
B2: Energy Efficiency Opportunity Assessment
C6: OGU Res | D6: OGR Res | E6: Commercial | F6: Industrial
C10: Technical Line Loss Rate | E10: 0.13
C11: Marginal Grid Electricity Emission Factor (gCO2e/kWh)
Q14: OGU Res Energy Use | AM14: OGR Res Energy Use | BI14: Commercial Energy Use | CE14: Industrial Energy Use
C15: Price of Electricity | D15: USD/kWh | E15: End-User Discount Rate
C16: OGU Res | D16: 0.18 | E16: 0.07 | Q16: Annual Energy Data | R16: Units | S16: 2016 | T16: 2017 | U16: 2018 | V16: 2019 | W16: 2020 | X16: 2021 | Y16: 2022 | Z16: 2023 | AA16: 2024 | AB16: 2025 | AC16: 2026 | AD16: 2027 | AE16: 2028 | AF16: 2029 | AG16: 2030 | AM16: Annual Energy Data | AN16: Units | AO16: 2016 | AP16: 2017 | AQ16: 2018 | AR16: 2019 | AS16: 2020 | AT16: 2021 | AU16: 2022 | AV16: 2023 | AW16: 2024 | AX16: 2025 | AY16: 2026 | AZ16: 2027 | BA16: 2028 | BB16: 2029 | BC16: 2030 | BI16: Annual Energy Data | BJ16: Units | BK16: 2016 | BL16: 2017 | BM16: 2018 | BN16: 2019 | BO16: 2020 | BP16: 2021 | BQ16: 2022 | BR16: 2023 | BS16: 2024 | BT16: 2025 | BU16: 2026 | BV16: 2027 | BW16: 2028 | BX16: 2029 | BY16: 2030 | CE16: Annual Energy Data | CF16: Units | CG16: 2016 | CH16: 2017 | CI16: 2018 | CJ16: 2019 | CK16: 2020 | CL16: 2021 | CM16: 2022 | CN16: 2023 | CO16: 2024 | CP16: 2025 | CQ16: 2026 | CR16: 2027 | CS16: 2028 | CT16: 2029 | CU16: 2030
C17: OGR Res | D17: 0.18 | E17: 0.07 | Q17: Total Consumption | R17: GWh | S17: 508.2379931 | T17: 511.2602559 | U17: 562.2701979 | V17: 618.1418682 | W17: 679.3257847 | X17: 746.3128627 | Y17: 819.6379532 | Z17: 899.8836856 | AA17: 987.6846402 | AB17: 1083.73188 | AC17: 1188.777872 | AD17: 1303.641825 | AE17: 1429.215492 | AF17: 1566.469465 | AG17: 1716.460005 | AM17: Total Consumption | AN17: GWh | AO17: 83 | AP17: 93.85134219 | AQ17: 107.930365 | AR17: 123.5230174 | AS17: 140.769562 | AT17: 159.822838 | AU17: 180.8493639 | AV17: 204.0305328 | AW17: 229.5639123 | AX17: 257.6646552 | AY17: 288.5670308 | AZ17: 322.5260887 | BA17: 359.8194633 | BB17: 400.7493344 | BC17: 445.644554 | BI17: Total Consumption | BJ17: GWh | BK17: 658.0654989 | BL17: 716.0813489 | BM17: 780.7275818 | BN17: 830.4554533 | BO17: 881.8409205 | BP17: 938.1991748 | BQ17: 996.2150248 | BR17: 1054.230875 | BS17: 1112.246725 | BT17: 1171.920171 | BU17: 1231.593616 | BV17: 1292.924658 | BW17: 1354.255699 | BX17: 1417.244336 | BY17: 1480.232974 | CE17: Total Consumption | CF17: GWh | CG17: 1407.966008 | CH17: 1532.093994 | CI17: 1670.408035 | CJ17: 1776.803451 | CK17: 1886.745381 | CL17: 2007.326853 | CM17: 2131.454838 | CN17: 2255.582824 | CO17: 2379.710809 | CP17: 2507.385309 | CQ17: 2635.059808 | CR17: 2766.280822 | CS17: 2897.501835 | CT17: 3032.269362 | CU17: 3167.036889
C18: Commercial | D18: 0.14 | E18: 0.07 | Q18: Peak Demand - Total | R18: MW | S18: 89.25851653 | T18: 89.85241755 | U18: 98.81725798 | V18: 108.6365322 | W18: 119.3894173 | X18: 131.1621903 | Y18: 144.0488494 | Z18: 158.1517901 | AA18: 173.5825378 | AB18: 190.4625449 | AC18: 208.9240548 | AD18: 229.1110412 | AE18: 251.180227 | AF18: 275.3021907 | AG18: 301.6625668 | AM18: Peak Demand - Total | AN18: MW | AO18: 18 | AP18: 21.42724707 | AQ18: 24.64163584 | AR18: 28.20160216 | AS18: 32.1391694 | AT18: 36.48923243 | AU18: 41.2898091 | AV18: 46.58231342 | AW18: 52.41185213 | AX18: 58.82754685 | AY18: 65.88288376 | AZ18: 73.6360933 | BA18: 82.15056239 | BB18: 91.49528182 | BC18: 101.745332 | BI18: Peak Demand - Total | BJ18: MW | BK18: 107.3166176 | BL18: 116.7777803 | BM18: 127.3202188 | BN18: 135.4297869 | BO18: 143.8096739 | BP18: 153.0005177 | BQ18: 162.4616805 | BR18: 171.9228433 | BS18: 181.384006 | BT18: 191.1154877 | BU18: 200.8469694 | BV18: 210.84877 | BW18: 220.8505707 | BX18: 231.1226902 | BY18: 241.3948098 | CE18: Peak Demand - Total | CF18: MW | CG18: 178.5852369 | CH18: 194.3295273 | CI18: 211.8731652 | CJ18: 225.3682713 | CK18: 239.3132142 | CL18: 254.6076678 | CM18: 270.3519582 | CN18: 286.0962486 | CO18: 301.840539 | CP18: 318.0346663 | CQ18: 334.2287935 | CR18: 350.8727577 | CS18: 367.5167218 | CT18: 384.6105229 | CU18: 401.7043239
C19: Industrial | D19: 0.11 | E19: 0.07
Q21: OGU Res Energy Use by End-Use | AM21: OGR Res Energy Use by End-Use | BI21: Commercial Energy Use by End-Use | CE21: Industrial Energy Use by End-Use
C22: Payback Acceptance Assumptions
C23: Sector | E23: OGU Res | G23: OGR Res | I23: Commercial | K23: Industrial | S23: Consumption % Share | AO23: Consumption % Share | BK23: Consumption % Share | CG23: Consumption % Share
D24: Payback Period | E24: Acceptance Rate | F24: Payback Period | G24: Acceptance Rate | H24: Payback Period | I24: Acceptance Rate | J24: Payback Period | K24: Acceptance Rate | Q24: End Use | R24: Coincidence Factor % | S24: 2016 | T24: 2017 | U24: 2018 | V24: 2019 | W24: 2020 | X24: 2021 | Y24: 2022 | Z24: 2023 | AA24: 2024 | AB24: 2025 | AC24: 2026 | AD24: 2027 | AE24: 2028 | AF24: 2029 | AG24: 2030 | AM24: End Use | AN24: Coincidence Factor % | AO24: 2016 | AP24: 2017 | AQ24: 2018 | AR24: 2019 | AS24: 2020 | AT24: 2021 | AU24: 2022 | AV24: 2023 | AW24: 2024 | AX24: 2025 | AY24: 2026 | AZ24: 2027 | BA24: 2028 | BB24: 2029 | BC24: 2030 | BI24: End Use | BJ24: Coincidence Factor % | BK24: 2016 | BL24: 2017 | BM24: 2018 | BN24: 2019 | BO24: 2020 | BP24: 2021 | BQ24: 2022 | BR24: 2023 | BS24: 2024 | BT24: 2025 | BU24: 2026 | BV24: 2027 | BW24: 2028 | BX24: 2029 | BY24: 2030 | CE24: End Use | CF24: Coincidence Factor % | CG24: 2016 | CH24: 2017 | CI24: 2018 | CJ24: 2019 | CK24: 2020 | CL24: 2021 | CM24: 2022 | CN24: 2023 | CO24: 2024 | CP24: 2025 | CQ24: 2026 | CR24: 2027 | CS24: 2028 | CT24: 2029 | CU24: 2030 | DA24: ="Calculator Version: "&Version -> Calculator Version: A4
Q25: Lighting | R25: 0.8 | S25: 0.3368069365 | T25: 0.3368069365 | U25: 0.3299676531 | V25: 0.3231283697 | W25: 0.3162890863 | X25: 0.309449803 | Y25: 0.3026105196 | Z25: 0.2957712362 | AA25: 0.2889319528 | AB25: 0.2820926694 | AC25: 0.2752533861 | AD25: 0.2684141027 | AE25: 0.2615748193 | AF25: 0.2547355359 | AG25: 0.2478962525 | AM25: Lighting | AN25: 0.8 | AO25: 0.4248252007 | AP25: 0.4248252007 | AQ25: 0.4181021597 | AR25: 0.4113791187 | AS25: 0.4046560777 | AT25: 0.3979330368 | AU25: 0.3912099958 | AV25: 0.3844869548 | AW25: 0.3777639139 | AX25: 0.3710408729 | AY25: 0.3643178319 | AZ25: 0.3575947909 | BA25: 0.35087175 | BB25: 0.344148709 | BC25: 0.337425668 | BI25: Commercial Air Conditioning | BJ25: 0.1 | BK25: 0.09534448618 | BL25: 0.09534448618 | BM25: 0.09907633692 | BN25: 0.1028081877 | BO25: 0.1065400384 | BP25: 0.1102718891 | BQ25: 0.1140037399 | BR25: 0.1177355906 | BS25: 0.1214674414 | BT25: 0.1251992921 | BU25: 0.1289311428 | BV25: 0.1326629936 | BW25: 0.1363948443 | BX25: 0.1401266951 | BY25: 0.1438585458 | CE25: Electro-Chemical Processes | CF25: 0.15 | CG25: 0.01786383247 | CH25: 0.01786383247 | CI25: 0.01786383247 | CJ25: 0.01786383247 | CK25: 0.01786383247 | CL25: 0.01786383247 | CM25: 0.01786383247 | CN25: 0.01786383247 | CO25: 0.01786383247 | CP25: 0.01786383247 | CQ25: 0.01786383247 | CR25: 0.01786383247 | CS25: 0.01786383247 | CT25: 0.01786383247 | CU25: 0.01786383247 | DA25: Set / Reset Country Inputs
Q26: TV | R26: 0.8 | S26: 0.1142543747 | T26: 0.1142543747 | U26: 0.1133212488 | V26: 0.1123881229 | W26: 0.111454997 | X26: 0.1105218711 | Y26: 0.1095887451 | Z26: 0.1086556192 | AA26: 0.1077224933 | AB26: 0.1067893674 | AC26: 0.1058562415 | AD26: 0.1049231156 | AE26: 0.1039899896 | AF26: 0.1030568637 | AG26: 0.1021237378 | AM26: TV | AN26: 0.8 | AO26: 0.1289559681 | AP26: 0.1289559681 | AQ26: 0.1280407427 | AR26: 0.1271255173 | AS26: 0.1262102918 | AT26: 0.1252950664 | AU26: 0.1243798409 | AV26: 0.1234646155 | AW26: 0.12254939 | AX26: 0.1216341646 | AY26: 0.1207189392 | AZ26: 0.1198037137 | BA26: 0.1188884883 | BB26: 0.1179732628 | BC26: 0.1170580374 | BI26: Commercial Appliances/Other | BJ26: 0.2 | BK26: 0.07650209414 | BL26: 0.07650209414 | BM26: 0.07596716371 | BN26: 0.07543223329 | BO26: 0.07489730286 | BP26: 0.07436237244 | BQ26: 0.07382744201 | BR26: 0.07329251159 | BS26: 0.07275758116 | BT26: 0.07222265074 | BU26: 0.07168772031 | BV26: 0.07115278989 | BW26: 0.07061785946 | BX26: 0.07008292904 | BY26: 0.06954799861 | CE26: HVAC | CF26: 0.15 | CG26: 0.05254050151 | CH26: 0.05254050151 | CI26: 0.05254050151 | CJ26: 0.05254050151 | CK26: 0.05254050151 | CL26: 0.05254050151 | CM26: 0.05254050151 | CN26: 0.05254050151 | CO26: 0.05254050151 | CP26: 0.05254050151 | CQ26: 0.05254050151 | CR26: 0.05254050151 | CS26: 0.05254050151 | CT26: 0.05254050151 | CU26: 0.05254050151
Q27: Refrigeration | R27: 0.25 | S27: 0.2029035725 | T27: 0.2029035725 | U27: 0.2057179678 | V27: 0.208532363 | W27: 0.2113467583 | X27: 0.2141611536 | Y27: 0.2169755488 | Z27: 0.2197899441 | AA27: 0.2226043393 | AB27: 0.2254187346 | AC27: 0.2282331299 | AD27: 0.2310475251 | AE27: 0.2338619204 | AF27: 0.2366763156 | AG27: 0.2394907109 | AM27: Refrigeration | AN27: 0.25 | AO27: 0.1658264408 | AP27: 0.1658264408 | AQ27: 0.1690278395 | AR27: 0.1722292381 | AS27: 0.1754306368 | AT27: 0.1786320354 | AU27: 0.1818334341 | AV27: 0.1850348327 | AW27: 0.1882362314 | AX27: 0.19143763 | AY27: 0.1946390286 | AZ27: 0.1978404273 | BA27: 0.2010418259 | BB27: 0.2042432246 | BC27: 0.2074446232 | BI27: Commercial Computer Equipment | BJ27: 0.15 | BK27: 0.1457651465 | BL27: 0.1457651465 | BM27: 0.1445862659 | BN27: 0.1434073852 | BO27: 0.1422285045 | BP27: 0.1410496238 | BQ27: 0.1398707431 | BR27: 0.1386918624 | BS27: 0.1375129817 | BT27: 0.1363341011 | BU27: 0.1351552204 | BV27: 0.1339763397 | BW27: 0.132797459 | BX27: 0.1316185783 | BY27: 0.1304396976 | CE27: Industrial Lighting | CF27: 0.15 | CG27: 0.04924516302 | CH27: 0.04924516302 | CI27: 0.04924516302 | CJ27: 0.04924516302 | CK27: 0.04924516302 | CL27: 0.04924516302 | CM27: 0.04924516302 | CN27: 0.04924516302 | CO27: 0.04924516302 | CP27: 0.04924516302 | CQ27: 0.04924516302 | CR27: 0.04924516302 | CS27: 0.04924516302 | CT27: 0.04924516302 | CU27: 0.04924516302
Q28: Radio | R28: 0.6 | S28: 0.06082511922 | T28: 0.06082511922 | U28: 0.06008195041 | V28: 0.05933878159 | W28: 0.05859561277 | X28: 0.05785244396 | Y28: 0.05710927514 | Z28: 0.05636610632 | AA28: 0.0556229375 | AB28: 0.05487976869 | AC28: 0.05413659987 | AD28: 0.05339343105 | AE28: 0.05265026224 | AF28: 0.05190709342 | AG28: 0.0511639246 | AM28: Radio | AN28: 0.6 | AO28: 0.06904857535 | AP28: 0.06904857535 | AQ28: 0.06862548784 | AR28: 0.06820240032 | AS28: 0.06777931281 | AT28: 0.0673562253 | AU28: 0.06693313779 | AV28: 0.06651005028 | AW28: 0.06608696277 | AX28: 0.06566387526 | AY28: 0.06524078775 | AZ28: 0.06481770024 | BA28: 0.06439461272 | BB28: 0.06397152521 | BC28: 0.0635484377 | BI28: Commercial Cooking | BJ28: 0.4 | BK28: 0.1096753318 | BL28: 0.1096753318 | BM28: 0.1085526708 | BN28: 0.1074300099 | BO28: 0.106307349 | BP28: 0.1051846881 | BQ28: 0.1040620272 | BR28: 0.1029393663 | BS28: 0.1018167053 | BT28: 0.1006940444 | BU28: 0.09957138351 | BV28: 0.09844872259 | BW28: 0.09732606168 | BX28: 0.09620340076 | BY28: 0.09508073984 | CE28: Industrial Motors | CF28: 0.15 | CG28: 0.5122268288 | CH28: 0.5122268288 | CI28: 0.5122268288 | CJ28: 0.5122268288 | CK28: 0.5122268288 | CL28: 0.5122268288 | CM28: 0.5122268288 | CN28: 0.5122268288 | CO28: 0.5122268288 | CP28: 0.5122268288 | CQ28: 0.5122268288 | CR28: 0.5122268288 | CS28: 0.5122268288 | CT28: 0.5122268288 | CU28: 0.5122268288
Q29: Air Conditioning | R29: 0.6 | S29: 0.03500033925 | T29: 0.03500033925 | U29: 0.03825283068 | V29: 0.04150532211 | W29: 0.04475781354 | X29: 0.04801030497 | Y29: 0.0512627964 | Z29: 0.05451528783 | AA29: 0.05776777926 | AB29: 0.06102027069 | AC29: 0.06427276212 | AD29: 0.06752525356 | AE29: 0.07077774499 | AF29: 0.07403023642 | AG29: 0.07728272785 | AM29: Air Conditioning | AN29: 0.6 | AO29: 0.008829406127 | AP29: 0.008829406127 | AQ29: 0.01084750078 | AR29: 0.01286559544 | AS29: 0.0148836901 | AT29: 0.01690178475 | AU29: 0.01891987941 | AV29: 0.02093797406 | AW29: 0.02295606872 | AX29: 0.02497416338 | AY29: 0.02699225803 | AZ29: 0.02901035269 | BA29: 0.03102844734 | BB29: 0.033046542 | BC29: 0.03506463665 | BI29: Commercial Fans | BJ29: 0.1 | BK29: 0.06414519056 | BL29: 0.06414519056 | BM29: 0.06474250827 | BN29: 0.06533982598 | BO29: 0.0659371437 | BP29: 0.06653446141 | BQ29: 0.06713177912 | BR29: 0.06772909683 | BS29: 0.06832641454 | BT29: 0.06892373226 | BU29: 0.06952104997 | BV29: 0.07011836768 | BW29: 0.07071568539 | BX29: 0.0713130031 | BY29: 0.07191032082 | CE29: Industrial Compressed Air | CF29: 0.15 | CG29: 0.05915076821 | CH29: 0.05915076821 | CI29: 0.05915076821 | CJ29: 0.05915076821 | CK29: 0.05915076821 | CL29: 0.05915076821 | CM29: 0.05915076821 | CN29: 0.05915076821 | CO29: 0.05915076821 | CP29: 0.05915076821 | CQ29: 0.05915076821 | CR29: 0.05915076821 | CS29: 0.05915076821 | CT29: 0.05915076821 | CU29: 0.05915076821
C30: Unit of Payback Period | Q30: Irons | R30: 0.2 | S30: 0.1047264348 | T30: 0.1047264348 | U30: 0.1032586432 | V30: 0.1017908516 | W30: 0.10032306 | X30: 0.09885526837 | Y30: 0.09738747677 | Z30: 0.09591968518 | AA30: 0.09445189358 | AB30: 0.09298410198 | AC30: 0.09151631039 | AD30: 0.09004851879 | AE30: 0.08858072719 | AF30: 0.0871129356 | AG30: 0.085645144 | AM30: Irons | AN30: 0.2 | AO30: 0.1182020279 | AP30: 0.1182020279 | AQ30: 0.1170806048 | AR30: 0.1159591818 | AS30: 0.1148377588 | AT30: 0.1137163357 | AU30: 0.1125949127 | AV30: 0.1114734897 | AW30: 0.1103520666 | AX30: 0.1092306436 | AY30: 0.1081092206 | AZ30: 0.1069877975 | BA30: 0.1058663745 | BB30: 0.1047449515 | BC30: 0.1036235285 | BI30: Commercial Lighting | BJ30: 0.2 | BK30: 0.3298484691 | BL30: 0.3298484691 | BM30: 0.3277276814 | BN30: 0.3256068937 | BO30: 0.3234861061 | BP30: 0.3213653184 | BQ30: 0.3192445308 | BR30: 0.3171237431 | BS30: 0.3150029555 | BT30: 0.3128821678 | BU30: 0.3107613801 | BV30: 0.3086405925 | BW30: 0.3065198048 | BX30: 0.3043990172 | BY30: 0.3022782295 | CE30: Other | CF30: 0.15 | CG30: 0.06414646606 | CH30: 0.06414646606 | CI30: 0.06414646606 | CJ30: 0.06414646606 | CK30: 0.06414646606 | CL30: 0.06414646606 | CM30: 0.06414646606 | CN30: 0.06414646606 | CO30: 0.06414646606 | CP30: 0.06414646606 | CQ30: 0.06414646606 | CR30: 0.06414646606 | CS30: 0.06414646606 | CT30: 0.06414646606 | CU30: 0.06414646606
Q31: Kettles | R31: 0.6 | S31: 0.020336666 | T31: 0.020336666 | U31: 0.02060407606 | V31: 0.02087148613 | W31: 0.02113889619 | X31: 0.02140630625 | Y31: 0.02167371632 | Z31: 0.02194112638 | AA31: 0.02220853644 | AB31: 0.02247594651 | AC31: 0.02274335657 | AD31: 0.02301076663 | AE31: 0.0232781767 | AF31: 0.02354558676 | AG31: 0.02381299682 | AM31: Kettles | AN31: 0.6 | AO31: 0.01165967162 | AP31: 0.01165967162 | AQ31: 0.01204505513 | AR31: 0.01243043864 | AS31: 0.01281582215 | AT31: 0.01320120565 | AU31: 0.01358658916 | AV31: 0.01397197267 | AW31: 0.01435735618 | AX31: 0.01474273968 | AY31: 0.01512812319 | AZ31: 0.0155135067 | BA31: 0.01589889021 | BB31: 0.01628427372 | BC31: 0.01666965722 | BI31: Commercial Refrigeration | BJ31: 0.25 | BK31: 0.06123117857 | BL31: 0.06123117857 | BM31: 0.06126552543 | BN31: 0.06129987229 | BO31: 0.06133421915 | BP31: 0.061368566 | BQ31: 0.06140291286 | BR31: 0.06143725972 | BS31: 0.06147160657 | BT31: 0.06150595343 | BU31: 0.06154030029 | BV31: 0.06157464715 | BW31: 0.061608994 | BX31: 0.06164334086 | BY31: 0.06167768772 | CE31: Industrial Process Cooling | CF31: 0.15 | CG31: 0.08862867308 | CH31: 0.08862867308 | CI31: 0.08862867308 | CJ31: 0.08862867308 | CK31: 0.08862867308 | CL31: 0.08862867308 | CM31: 0.08862867308 | CN31: 0.08862867308 | CO31: 0.08862867308 | CP31: 0.08862867308 | CQ31: 0.08862867308 | CR31: 0.08862867308 | CS31: 0.08862867308 | CT31: 0.08862867308 | CU31: 0.08862867308
Q32: Cooking Plates | R32: 0.6 | S32: 0.02662254458 | T32: 0.02662254458 | U32: 0.02728776809 | V32: 0.02795299159 | W32: 0.0286182151 | X32: 0.0292834386 | Y32: 0.02994866211 | Z32: 0.03061388561 | AA32: 0.03127910912 | AB32: 0.03194433263 | AC32: 0.03260955613 | AD32: 0.03327477964 | AE32: 0.03394000314 | AF32: 0.03460522665 | AG32: 0.03527045015 | AM32: Cooking Plates | AN32: 0.6 | AO32: 0.01678992714 | AP32: 0.01678992714 | AQ32: 0.01734487939 | AR32: 0.01789983164 | AS32: 0.01845478389 | AT32: 0.01900973614 | AU32: 0.01956468839 | AV32: 0.02011964064 | AW32: 0.02067459289 | AX32: 0.02122954515 | AY32: 0.0217844974 | AZ32: 0.02233944965 | BA32: 0.0228944019 | BB32: 0.02344935415 | BC32: 0.0240043064 | BI32: Commercial Water Heating | BJ32: 0.3 | BK32: 0.1174881032 | BL32: 0.1174881032 | BM32: 0.1180818476 | BN32: 0.1186755919 | BO32: 0.1192693363 | BP32: 0.1198630807 | BQ32: 0.1204568251 | BR32: 0.1210505694 | BS32: 0.1216443138 | BT32: 0.1222380582 | BU32: 0.1228318026 | BV32: 0.1234255469 | BW32: 0.1240192913 | BX32: 0.1246130357 | BY32: 0.1252067801 | CE32: Industrial Process Heating | CF32: 0.15 | CG32: 0.1561977669 | CH32: 0.1561977669 | CI32: 0.1561977669 | CJ32: 0.1561977669 | CK32: 0.1561977669 | CL32: 0.1561977669 | CM32: 0.1561977669 | CN32: 0.1561977669 | CO32: 0.1561977669 | CP32: 0.1561977669 | CQ32: 0.1561977669 | CR32: 0.1561977669 | CS32: 0.1561977669 | CT32: 0.1561977669 | CU32: 0.1561977669
C33: USD Exchange | D33: Exchange Rate | Q33: Fans | R33: 0.6 | S33: 0.04949415952 | T33: 0.04949415952 | U33: 0.04908993619 | V33: 0.04868571287 | W33: 0.04828148955 | X33: 0.04787726623 | Y33: 0.0474730429 | Z33: 0.04706881958 | AA33: 0.04666459626 | AB33: 0.04626037293 | AC33: 0.04585614961 | AD33: 0.04545192629 | AE33: 0.04504770297 | AF33: 0.04464347964 | AG33: 0.04423925632 | AM33: Fans | AN33: 0.6 | AO33: 0.05586278226 | AP33: 0.05586278226 | AQ33: 0.05546631329 | AR33: 0.05506984433 | AS33: 0.05467337536 | AT33: 0.05427690639 | AU33: 0.05388043742 | AV33: 0.05348396845 | AW33: 0.05308749948 | AX33: 0.05269103052 | AY33: 0.05229456155 | AZ33: 0.05189809258 | BA33: 0.05150162361 | BB33: 0.05110515464 | BC33: 0.05070868568
C34: USD | D34: 1 | Q34: Water Heating | R34: 0.3 | S34: 0.04437090764 | T34: 0.04437090764 | U34: 0.04723811171 | V34: 0.05010531578 | W34: 0.05297251985 | X34: 0.05583972392 | Y34: 0.05870692798 | Z34: 0.06157413205 | AA34: 0.06444133612 | AB34: 0.06730854019 | AC34: 0.07017574426 | AD34: 0.07304294833 | AE34: 0.0759101524 | AF34: 0.07877735647 | AG34: 0.08164456053 | AM34: Water Heating | AN34: 0.3 | AO34: 0 | AP34: 0 | AQ34: 0.003419416866 | AR34: 0.006838833733 | AS34: 0.0102582506 | AT34: 0.01367766747 | AU34: 0.01709708433 | AV34: 0.0205165012 | AW34: 0.02393591806 | AX34: 0.02735533493 | AY34: 0.0307747518 | AZ34: 0.03419416866 | BA34: 0.03761358553 | BB34: 0.0410330024 | BC34: 0.04445241926
C35: EUR | D35: 0.95 | Q35: Computer Equipment | R35: 0.8 | S35: 0.004658945302 | T35: 0.004658945302 | U35: 0.005179814008 | V35: 0.005700682713 | W35: 0.006221551419 | X35: 0.006742420125 | Y35: 0.00726328883 | Z35: 0.007784157536 | AA35: 0.008305026241 | AB35: 0.008825894947 | AC35: 0.009346763653 | AD35: 0.009867632358 | AE35: 0.01038850106 | AF35: 0.01090936977 | AG35: 0.01143023847
C36: RAND | D36: 14.4
C37: FRC | D37: 14.4
C38: RCM | D38: 14.4
Q40: Total | R40: =SUM(R25:R39) -> 6.15 | S40: =SUM(S25:S39) -> 1 | T40: =SUM(T25:T39) -> 1 | U40: =SUM(U25:U39) -> 1 | V40: =SUM(V25:V39) -> 1 | W40: =SUM(W25:W39) -> 1 | X40: =SUM(X25:X39) -> 1 | Y40: =SUM(Y25:Y39) -> 1 | Z40: =SUM(Z25:Z39) -> 1 | AA40: =SUM(AA25:AA39) -> 1 | AB40: =SUM(AB25:AB39) -> 1 | AC40: =SUM(AC25:AC39) -> 1 | AD40: =SUM(AD25:AD39) -> 1 | AE40: =SUM(AE25:AE39) -> 1 | AF40: =SUM(AF25:AF39) -> 1 | AG40: =SUM(AG25:AG39) -> 1 | AM40: Total | AN40: =SUM(AN25:AN39) -> 5.35 | AO40: =SUM(AO25:AO39) -> 1 | AP40: =SUM(AP25:AP39) -> 1 | AQ40: =SUM(AQ25:AQ39) -> 1 | AR40: =SUM(AR25:AR39) -> 1 | AS40: =SUM(AS25:AS39) -> 1 | AT40: =SUM(AT25:AT39) -> 1 | AU40: =SUM(AU25:AU39) -> 1 | AV40: =SUM(AV25:AV39) -> 1 | AW40: =SUM(AW25:AW39) -> 1 | AX40: =SUM(AX25:AX39) -> 1 | AY40: =SUM(AY25:AY39) -> 1 | AZ40: =SUM(AZ25:AZ39) -> 1 | BA40: =SUM(BA25:BA39) -> 1 | BB40: =SUM(BB25:BB39) -> 1 | BC40: =SUM(BC25:BC39) -> 1 | BI40: Total | BJ40: =SUM(BJ25:BJ39) -> 1.7 | BK40: =SUM(BK25:BK39) -> 1 | BL40: =SUM(BL25:BL39) -> 1 | BM40: =SUM(BM25:BM39) -> 1 | BN40: =SUM(BN25:BN39) -> 1 | BO40: =SUM(BO25:BO39) -> 1 | BP40: =SUM(BP25:BP39) -> 1 | BQ40: =SUM(BQ25:BQ39) -> 1 | BR40: =SUM(BR25:BR39) -> 1 | BS40: =SUM(BS25:BS39) -> 1 | BT40: =SUM(BT25:BT39) -> 1 | BU40: =SUM(BU25:BU39) -> 1 | BV40: =SUM(BV25:BV39) -> 1 | BW40: =SUM(BW25:BW39) -> 1 | BX40: =SUM(BX25:BX39) -> 1 | BY40: =SUM(BY25:BY39) -> 1 | CE40: Total | CF40: =SUM(CF25:CF39) -> 1.2 | CG40: =SUM(CG25:CG39) -> 1 | CH40: 1 | CI40: 1 | CJ40: 1 | CK40: 1 | CL40: 1 | CM40: 1 | CN40: 1 | CO40: 1 | CP40: 1 | CQ40: 1 | CR40: 1 | CS40: 1 | CT40: 1 | CU40: 1

Sheet Advanced Inputs - EE Measure DB
B2: Energy Efficiency Opportunity Assessment
B4: Measure Name | C4: Measure Description | D4: Sector | E4: End Use | F4: Baseline Description | G4: Unit | H4: Measure Life (years) | I4: Measure Life Source | J4: Baseline Peak Demand (kW) | K4: Baseline Electricity Use (kWh) | L4: Peak Demand Savings (kW) | M4: Electricity Savings (kWh) | N4: Peak Demand Savings (%) | O4: Electricity Savings (%) | P4: Savings Source | Q4: Full Capital Cost | R4: Incremental Capital Cost | S4: Annual O&M Costs | T4: Currency (e.g USD, Rand) | U4: USD Full Cost | V4: USD Incremental Cost | W4: USD Annual O&M Costs | X4: Cost Source # | Y4: Delivery Method (RET, ROB, NC) | Z4: Original Measure Source # | AA4: Measure Applicable Country | AB4: Helper For Filtering | AD4: Count Matched Records
B5: Alternate Compressor | C5: Installation of smaller capacity air compressor to supply weekend load | D5: Industrial | E5: Compressors | F5: Inefficient use of large capacity compressor to supply severly diminshed weekend load | G5: per building | H5: 10 | I5: 109, 129 | M5: 15858445.94 | N5: 0.05 | O5: 0.1 | P5: 129 | Q5: 18000 | T5: USD | U5: =IFERROR(Q5/VLOOKUP(T5,CurrencyExchange,2,FALSE),0) -> 18000 | V5: =IFERROR(R5/VLOOKUP(T5,CurrencyExchange,2,FALSE),0) -> 0 | W5: =IFERROR(S5/VLOOKUP(T5,CurrencyExchange,2,FALSE),0) -> 0 | X5: 129 | AA5: El Salvador | AB5: =SUM(AA5=CountrySelect,AB4) -> 0 | AD5: =MAX(AB5:AB5004) -> 59
B6: Connectionless Steamer | C6: Connectionless Steamer 0.5 kW/hr | D6: Commercial | E6: Other | F6: 1 kW/hr | G6: per steamer | H6: 12 | I6: 111 | K6: 15612 | M6: 7806 | N6: 0.5 | O6: 0.5 | P6: 111 | Q6: 2900 | T6: USD | U6: =IFERROR(Q6/VLOOKUP(T6,CurrencyExchange,2,FALSE),0) -> 2900 | V6: =IFERROR(R6/VLOOKUP(T6,CurrencyExchange,2,FALSE),0) -> 0 | W6: =IFERROR(S6/VLOOKUP(T6,CurrencyExchange,2,FALSE),0) -> 0 | X6: 111 | AA6: El Salvador | AB6: 0
B7: Double Glazed Windows low E U-Value = 1.8 W/m2K and SHGC = 0.4 | C7: Double Glazed Windows with Timber/PVCu/Aluminum thermal break framing: U-Value = 1.99 W/m2K and SHGC = 0.3 | D7: Residential | E7: Other | F7: Single - Clear Windows: U-Value = 4.9 W/m2K and SHGC = 0.66 | G7: per sqft | H7: 25 | I7: 110 | M7: 2893.178406 | N7: 0.08 | O7: 0.11 | P7: 110 | Q7: 134.4 | R7: 79.4 | T7: USD | U7: 134.4 | V7: 79.4 | W7: 0 | X7: 110 | AA7: El Salvador | AB7: 0
B8: Double Glazed Windows U-Value = 1.99 W/m2K and SHGC = 0.3 | C8: Double Glazed Windows with low E coating and Timber/PVCu/Aluminum thermal break framing: U-Value = 1.8 W/m2K and SHGC = 0.4 | D8: Residential | E8: Other | F8: Single - Clear Windows: U-Value = 4.9 W/m2K and SHGC = 0.66 | G8: per sqft | H8: 25 | I8: 110 | M8: 3616.473008 | N8: 0.09 | O8: 0.14 | P8: 110 | Q8: 123.2 | R8: 68.2 | T8: USD | U8: 123.2 | V8: 68.2 | W8: =IFERROR(S8/VLOOKUP(T8,CurrencyExchange,2,FALSE),0) -> 0 | X8: 110 | AA8: El Salvador | AB8: 0
B9: Efficient Fan | C9: Efficient Fan | D9: Residential | E9: Other | F9: Ineficient Fan | G9: per fan | H9: 10 | I9: 112 | M9: 70.2 | N9: 1e-05 | O9: 0.2 | P9: 112 | Q9: 60 | T9: USD | U9: 60 | V9: 0 | W9: 0 | X9: 107 | AA9: El Salvador | AB9: 0
B10: Efficient Refrigerators | C10: A+ labeling compliant Refrigerator (250-300 L) | D10: Residential | E10: Refrigeration | F10: E Label -Typical inefficient appliance on the market | G10: per refrigerator | H10: 15 | I10: 113 | K10: 528 | M10: 219 | N10: 0.05 | O10: 0.1 | P10: 113 | Q10: 350 | R10: 100 | T10: USD | U10: 350 | V10: 100 | W10: 0 | X10: 99126 | AA10: El Salvador | AB10: 0
B11: High Efficiency Fryer | C11: High Efficiency Electric Fryer 2.4 kW/hr | D11: Commercial | E11: Other | F11: 2.8 kW/hr | G11: per fryer | H11: 12 | I11: 108 | J11: 2.6412 | K11: 12852 | L11: 0.4402 | M11: 2142 | N11: 0.1666666667 | O11: 0.1666666667 | P11: 108 | Q11: 2200 | R11: 150 | T11: USD | U11: 2200 | V11: 150 | W11: 0 | X11: 108 | Y11: NC | AA11: El Salvador | AB11: 0
B12: High Efficiency Griddle | C12: High Efficiency electric Griddle | D12: Commercial | E12: Other | F12: Griddle that's not Energy Star | G12: per griddle | H12: 12 | I12: 109 | M12: 2597 | N12: 1e-05 | O12: 0.15 | P12: 109 | R12: 60 | T12: USD | U12: 0 | V12: 60 | W12: 0 | X12: 109 | AA12: El Salvador | AB12: 0
B13: High Efficiency Motors | C13: High Efficiency Motors | D13: Industrial | E13: Motors | F13: Normal Efficiency / Rewound Motor | G13: per motor | H13: 10 | I13: 123 | J13: 7.46 | K13: 621181.4478 | M13: 49694.51582 | N13: 0.01 | O13: 0.02 | P13: 122 | Q13: 3300 | R13: 800 | T13: USD | U13: 3300 | V13: 800 | W13: 0 | X13: 98126 | AA13: El Salvador | AB13: 0
B14: High Efficiency Multideck Cooler | C14: High Efficiency Multideck Cooler | D14: Commercial | E14: Other | F14: Walk-in Refrigeration without Economizer | G14: per HP | H14: 15 | I14: 108 | J14: 0.7454686392 | K14: 14965 | L14: 0.3818254006 | M14: 7665 | N14: 0.512195122 | O14: 0.512195122 | P14: 3 | Q14: 4000 | R14: 2600 | T14: USD | U14: 4000 | V14: 2600 | W14: 0 | X14: 99126 | AA14: El Salvador | AB14: 0
B15: High Efficiency Reach-in Cooler | C15: High Efficiency Reach-in Cooler | D15: Commercial | E15: Other | F15: Standard Efficiency Cooler | G15: per cooler | H15: 9 | I15: 124 | J15: 0.6454667486 | K15: 12957.5 | L15: 0.09091080966 | M15: 1825 | N15: 0.1408450704 | O15: 0.1408450704 | P15: 124 | Q15: 1450 | T15: USD | U15: 1450 | V15: 0 | W15: 0 | X15: 99126 | AA15: El Salvador | AB15: 0
B16: High Efficiency Refrigerated Display Cases | C16: High Efficiency Refrigerated Display Cases | D16: Commercial | E16: Other | F16: standard unit | G16: per machine | H16: 14 | I16: 121 | K16: 1876.1 | M16: 748.25 | N16: 0 | O16: 0.4 | P16: 121 | Q16: 1450 | T16: USD | U16: 1450 | V16: 0 | W16: 0 | X16: 99126 | AA16: El Salvador | AB16: 0
B17: High Efficiency Refrigerated Vending Machines | C17: High Efficiency Refrigerated Vending Machines | D17: Commercial | E17: Other | F17: standard unit | G17: per machine | H17: 14 | I17: 108 | J17: 0.1000018906 | K17: 2007.5 | L17: 0.05454648579 | M17: 1095 | N17: 0.5454545455 | O17: 0.5454545455 | P17: 108 | Q17: 1450 | T17: USD | U17: 1450 | V17: 0 | W17: 0 | X17: 99126 | AA17: El Salvador | AB17: 0
B18: High Efficiency Solid Door Freezer | C18: High Efficiency Solid Door Freezer | D18: Commercial | E18: Other | G18: per cubic foot | H18: 9 | I18: 109 | M18: 1368.8 | N18: 1e-05 | O18: 0.56 | P18: 109 | Q18: 1450 | R18: 60 | T18: USD | U18: 1450 | V18: 60 | W18: 0 | X18: 100126 | Y18: NC | AA18: El Salvador | AB18: 0
B19: Hot Food Holding Cabinet | C19: ENERGY STAR Hot Food Holding Cabinet | D19: Commercial | E19: Other | F19: Electric HFHC that’s not ENERGY STAR certified and at end of life | G19: per cubic foot | H19: 12 | I19: 109 | K19: 3104.625 | M19: 466 | N19: 0.15 | O19: 0.53 | P19: 127 | Q19: 960 | R19: 60 | T19: USD | U19: 960 | V19: 60 | W19: 0 | X19: 109 | AA19: El Salvador | AB19: 0
B20: Install Building Energy Management Systems | C20: Install Building Energy Management Systems | D20: Commercial | E20: HVAC - Cooling | F20: Maintain server room at the manufacturer recommended temperature | H20: 15 | I20: 1 | J20: 0.003174157146 | K20: 63.72 | L20: 0.0002221910002 | M20: 6.372 | N20: 0.07 | O20: 0.1 | P20: 1 | R20: 0.39525 | T20: USD | U20: 0 | V20: 0.39525 | W20: 0 | X20: 17 | Y20: RET | AA20: El Salvador | AB20: 0
B21: LED Fixture Lighting High Bay | C21: 4 Lamp LED Fixture | D21: Industrial | E21: Lighting | F21: Metal Halide Fixture, Warehouse | G21: per fixture | H21: 20 | I21: 125 | K21: 14405.41 | M21: 8160.29 | N21: 0.57 | O21: 0.57 | P21: 125 | Q21: 56 | T21: USD | U21: 56 | V21: 0 | W21: 0 | X21: 125 | Y21: RET | AA21: El Salvador | AB21: 0
B22: LED Fixture Lighting Low Bay | C22: 4 Lamp LED Fixture | D22: Industrial | E22: Lighting | F22: Metal Halide Fixture, Warehouse | G22: per fixture | H22: 20 | I22: 125 | K22: 14405.41 | M22: 8160.29 | N22: 0.57 | O22: 0.57 | P22: 125 | Q22: 56 | T22: USD | U22: 56 | V22: 0 | W22: 0 | X22: 125 | Y22: ROB | AA22: El Salvador | AB22: 0
B23: Packaged Terminal AC (<2 kW) | C23: Packaged Terminal AC (<2 kW) | D23: Residential | E23: Other | F23: Standard cooling equipment | G23: per AC | H23: 10 | I23: 114 | M23: 203.2101757 | N23: 0.03 | O23: 0.05 | P23: 114 | R23: 125 | T23: USD | U23: 0 | V23: 125 | W23: 0 | X23: 116 | AA23: El Salvador | AB23: 0 | AG23: ="Calculator Version: "&Version -> Calculator Version: A4
B24: Commercial Packaged Terminal AC (<2 kW) | C24: Packaged Terminal AC (<2 kW) | D24: Commercial | E24: HVAC - Cooling | F24: Standard cooling equipment | G24: per AC | H24: 10 | I24: 114 | M24: 203.2101757 | N24: 1e-05 | O24: 0.05 | P24: 114 | R24: 125 | T24: USD | U24: 0 | V24: 125 | W24: 0 | X24: 116 | AA24: El Salvador | AB24: 0
B25: Properly Sized Motors and Optimized Drives | C25: Properly Sized Motors and Optimized Drives | D25: Industrial | E25: Motors | F25: Standard motor design | H25: 15 | I25: 123 | J25: 7.46 | K25: 621181.4478 | L25: 1.5666 | M25: 186354.4343 | N25: 0.01 | O25: 0.02 | P25: 122 | Q25: 547 | T25: USD | U25: 547 | V25: 0 | W25: 0 | X25: 98126 | AA25: El Salvador | AB25: 0
B26: Reduce Compressor Leaks to <10% | C26: Reduce Compressor Leaks to <10% | D26: Industrial | E26: Compressors | F26: >25% leakage | H26: 3 | I26: 128 | M26: 1050621.003 | N26: 0.06 | O26: 0.06 | P26: 130 | Q26: 8250 | T26: USD | U26: 8250 | V26: 0 | W26: 0 | X26: 128 | AA26: El Salvador | AB26: 0
B27: Residential LED Lighting | C27: LED Bulb | D27: Residential | E27: Lighting | F27: CFL Bulb | G27: per bulb | H27: 20 | I27: 112 | M27: 74 | N27: 0.25 | O27: 0.55 | P27: 112 | Q27: 5.12 | R27: 3.9 | T27: USD | U27: 5.12 | V27: 3.9 | W27: 0 | X27: 103 | AA27: El Salvador | AB27: 0
B28: Roof Insulation R-19 | C28: Roof Insulation R-19 | D28: Residential | E28: Other | F28: No roof insulation | G28: per sqft | H28: 25 | I28: 108 | J28: 0.969841349 | K28: 26788.68895 | L28: 0.06295152029 | M28: 796.3076 | N28: 5 | O28: 9 | P28: 135 | R28: 480 | T28: USD | U28: 0 | V28: 480 | W28: 0 | X28: 95 | AA28: El Salvador | AB28: 0
B29: Window with Solar control Films | C29: Window with Solar Control Films | D29: Residential | E29: Other | F29: Window with No Solar Control Film | G29: per sqft | H29: 5 | I29: 104, 105, 106 | M29: 19 | N29: 1e-05 | O29: 0.26 | P29: 104, 105, 106 | Q29: 15 | T29: USD | U29: 15 | V29: 0 | W29: 0 | X29: 104, 105, 106 | AA29: El Salvador | AB29: 0
B30: Solar Hot Water Heater | C30: Solar Hot Water Heater | D30: Commercial | E30: Other | F30: standard water heater | G30: per heater | H30: 15 | I30: 132 | K30: 60223.86139 | M30: 45216.44131 | N30: 0.53 | O30: 0.75 | P30: 132 | R30: 1010.359189 | T30: USD | U30: 0 | V30: 1010.359189 | W30: 0 | X30: 132 | AA30: El Salvador | AB30: 0
B31: Street Lighting | C31: LED Lamps (40-65 W) | D31: Commercial | E31: Street Lighting | F31: 175 W Mercury Vapor | G31: per fixture | H31: 25 | I31: 102 | M31: 983.6564028 | N31: 0.25 | O31: 0.7 | P31: 102 | Q31: 300 | T31: USD | U31: 300 | V31: 0 | W31: 0 | X31: 102 | AA31: El Salvador | AB31: 0
B32: T5 Lighting | C32: T5 Fluorescent Lighting (with electronic ballast) | D32: Industrial | E32: Lighting | F32: Incandescent and T12 Flourescent | G32: per bulb | H32: 16 | I32: 115 | M32: 1192.432456 | N32: 0.07 | O32: 0.13 | P32: 115 | R32: 94.72117394 | T32: USD | U32: 0 | V32: 94.72117394 | W32: 0 | X32: 115 | AA32: El Salvador | AB32: 0
B33: T8 Lighting | C33: Linear LED | D33: Industrial | E33: Lighting | F33: T8 Fluorescent Lighting (with electronic ballast) | G33: per lamp | H33: 5 | I33: 112 | K33: 3472.90934 | M33: 451.5 | N33: 1e-05 | O33: 0.13 | P33: 112 | Q33: 20 | T33: USD | U33: 20 | V33: 0 | W33: 0 | X33: 115 | Y33: ROB | AA33: El Salvador | AB33: 0
B34: Unitary (console) and Split Type AC (<7 kW) - COP >= 2.5 | C34: Unitary (console) and Split Type AC (<7 kW) - COP >= 2.5 | D34: Residential | E34: Other | F34: Standard cooling equipment COP | G34: per AC | H34: 15 | I34: 115 | J34: 1.384615385 | K34: 3539.076923 | L34: 0.0989010989 | M34: 832.7239819 | N34: 0.07142857143 | O34: 0.2352941176 | P34: 115 | Q34: 550 | T34: USD | U34: 550 | V34: 0 | W34: 0 | X34: 116 | Y34: ROB | AA34: El Salvador | AB34: 0
B35: Commercial Unitary (console) and Split Type AC (<7 kW) - COP >= 2.5 | C35: Unitary (console) and Split Type AC (<7 kW) - COP >= 2.5 | D35: Commercial | E35: HVAC - Cooling | F35: Standard cooling equipment COP | G35: per AC | H35: 15 | I35: 115 | J35: 1.384615385 | K35: 3539.076923 | L35: 0.0989010989 | M35: 832.7239819 | N35: 0.07142857143 | O35: 0.2352941176 | P35: 115 | Q35: 550 | T35: USD | U35: 550 | V35: 0 | W35: 0 | X35: 116 | AA35: El Salvador | AB35: 0
B36: VFD Compressor | C36: Variable speed air compressor | D36: Industrial | E36: Compressors | F36: Constant speed air compressor | G36: per compressor | H36: 15 | I36: 133 | M36: 547738.8155 | N36: 0.06 | O36: 0.12 | P36: 134 | Q36: 9900 | T36: USD | U36: 9900 | V36: 0 | W36: 0 | X36: 136 | AA36: El Salvador | AB36: 0
B37: Window Shade | C37: Window External Shading Mechanism | D37: Residential | E37: Other | F37: No window shading mechanism | G37: per sqft | H37: 10 | I37: 104, 105, 106 | J37: 0.969841349 | K37: 26788.68895 | L37: 0.0183300015 | M37: 723.2946015 | N37: 0.0189 | O37: 0.027 | P37: 104, 105, 106 | Q37: 3 | T37: USD | U37: 3 | V37: 0 | W37: 0 | X37: 104, 105, 106 | AA37: El Salvador | AB37: 0
B38: Commercial T5 Lighting | C38: T5 Fluorescent Lighting (with electronic ballast) | D38: Commercial | E38: Lighting | F38: Incandescent and T12 Flourescent | G38: per bulb | H38: 16 | I38: 115 | M38: 1192.432456 | N38: 0.07 | O38: 0.13 | P38: 115 | R38: 94.72117394 | T38: USD | U38: 0 | V38: 94.72117394 | W38: 0 | X38: 115 | AA38: El Salvador | AB38: 0
B39: Commercial T8 Lighting | C39: Linear LED | D39: Commercial | E39: Lighting | F39: T8 Fluorescent Lighting (with electronic ballast) | G39: per lamp | H39: 5 | I39: 112 | K39: 3472.90934 | M39: 451.5 | N39: 1e-05 | O39: 0.13 | P39: 112 | Q39: 20 | T39: USD | U39: 20 | V39: 0 | W39: 0 | X39: 115 | AA39: El Salvador | AB39: 0
U40: 0 | V40: 0 | W40: 0 | AB40: 0
B41: Set Point Adjustment | C41: Adjustment of heating & cooling temperature setpoints during occupied hours to 24C in summer and 17C in winter | D41: Commercial | E41: HVAC - heating | F41: Standard heating and cooling setpoints 22C in summer and 20C in winter | H41: 1 | I41: 1 | J41: 0.003174157146 | K41: 63.72 | L41: 0.001110955001 | M41: 31.86 | N41: 0.35 | O41: 0.5 | P41: 1 | Q41: 0 | R41: 0.01023 | T41: USD | U41: 0 | V41: 0.01023 | W41: 0 | X41: 17 | AA41: South Africa | AB41: 0
B42: New Construction Design Assistance | C42: New Construction Design Assistance Program | D42: Commercial | E42: HVAC - heating | F42: Standard heating and cooling setpoints 22C in summer and 20C in winter | H42: 25 | I42: 1 | J42: 0.003174157146 | K42: 63.72 | L42: 0.0003332865003 | M42: 9.558 | N42: 0.105 | O42: 0.15 | P42: 1 | Q42: 0 | R42: 0.372 | T42: USD | U42: 0 | V42: 0.372 | W42: 0 | X42: 17 | AA42: South Africa | AB42: 0
B43: Preventative Maintenance | C43: Preventative maintenance program for HVAC equipment | D43: Commercial | E43: HVAC - heating | F43: Neglect HVAC maintenance | H43: 5 | I43: 1 | J43: 0.003174157146 | K43: 63.72 | L43: 0.0006665730006 | M43: 19.116 | N43: 0.21 | O43: 0.3 | P43: 1 | Q43: 0 | R43: 0.01023 | T43: USD | U43: 0 | V43: 0.01023 | W43: 0 | X43: 17 | AA43: South Africa | AB43: 0
B44: Install Building Energy Management Systems | C44: Install Building Energy Management Systems | D44: Commercial | E44: HVAC - heating | F44: Maintain server room at the manufacturer recommended temperature | H44: 15 | I44: 1 | J44: 0.003174157146 | K44: 63.72 | L44: 0.0002221910002 | M44: 6.372 | N44: 0.07 | O44: 0.1 | P44: 1 | Q44: 0 | R44: 0.39525 | T44: USD | U44: 0 | V44: 0.39525 | W44: 0 | X44: 17 | AA44: South Africa | AB44: 0
B45: VSD/VAV on Chiller System | C45: Variable Speed Drives (VSD) on chilled water pumps and fans and Variable Air Volume (VAV) dampers | D45: Commercial | E45: HVAC - Cooling | F45: Maintain server room at the manufacturer recommended temperature | H45: 10 | I45: 1 | J45: 0.003174157146 | K45: 63.72 | L45: 0.0004221629004 | M45: 12.1068 | N45: 0.133 | O45: 0.19 | P45: 1 | Q45: 0 | R45: 0.2325 | T45: USD | U45: 0 | V45: 0.2325 | W45: 0 | X45: 17 | AA45: South Africa | AB45: 0 | AD45: =IF(D45='Energy by End Use Baseline'!$G$12,Sector1,IF($D$5='Energy by End Use Baseline'!$G$13,Sector2,IF($D$5='Energy by End Use Baseline'!$G$14,Sector3,IF(D45='Energy by End Use Baseline'!$G$15,Sector4,"")))) -> 
B46: Unitary (console) and Split Type AC (<7 kW) - COP >= 2.5 | C46: Unitary (console) and Split Type AC (<7 kW) - COP >= 2.5 | D46: Commercial | E46: HVAC - Cooling | F46: Standard cooling equipment COP | G46: per AC | H46: 15 | I46: 2 | J46: 1.384615385 | K46: 3539.076923 | L46: 0.0989010989 | M46: 832.7239819 | N46: 0.07142857143 | O46: 0.2352941176 | P46: 2 | Q46: 0 | R46: 359 | T46: USD | U46: 0 | V46: 359 | W46: 0 | X46: 17 | Y46: ROB | AA46: South Africa | AB46: 0
B47: Packaged and Split Type AC (7-19 kW) - COP >=2.6 | C47: Packaged and Split Type AC (7-19 kW) - COP >=2.6 | D47: Commercial | E47: HVAC - Cooling | F47: Standard cooling equipment COP | G47: per AC | H47: 15 | I47: 2 | J47: 4.615384615 | K47: 11796.92308 | L47: 0.3296703297 | M47: 2775.746606 | N47: 0.07142857143 | O47: 0.2352941176 | P47: 2 | Q47: 0 | R47: 359 | T47: USD | U47: 0 | V47: 359 | W47: 0 | X47: 17 | Y47: ROB | AA47: South Africa | AB47: 0
B48: Packaged and Split Type AC (10-40 kW) - COP >=2.96 | C48: Packaged and Split Type AC (10-40 kW) - COP >=2.96 | D48: Commercial | E48: HVAC - Cooling | F48: Standard cooling equipment COP | G48: per AC | H48: 15 | I48: 2 | J48: 8.727272727 | K48: 22306.90909 | L48: 0.7272727273 | M48: 5948.509091 | N48: 0.08333333333 | O48: 0.2666666667 | P48: 2 | Q48: 0 | R48: 145 | T48: USD | U48: 0 | V48: 145 | W48: 0 | X48: 17 | Y48: ROB | AA48: South Africa | AB48: 0
B49: Packaged and Split Type AC (40-70 kW) - COP >=2.72 | C49: Packaged and Split Type AC (40-70 kW) - COP >=2.72 | D49: Commercial | E49: HVAC - Cooling | F49: Standard cooling equipment COP | G49: per AC | H49: 15 | I49: 2 | J49: 16.66666667 | K49: 42600 | L49: 1.412429379 | M49: 11928 | N49: 0.08474576271 | O49: 0.28 | P49: 2 | Q49: 0 | R49: 427 | T49: USD | U49: 0 | V49: 427 | W49: 0 | X49: 17 | Y49: ROB | AA49: South Africa | AB49: 0
B50: Packaged and Split Type AC (>70 kW) - COP >=2.64 | C50: Packaged and Split Type AC (>70 kW) - COP >=2.64 | D50: Commercial | E50: HVAC - Cooling | F50: Standard cooling equipment COP | G50: per AC | H50: 15 | I50: 2 | J50: 48.97959184 | K50: 125191.8367 | L50: 4.535147392 | M50: 37557.55102 | N50: 0.09259259259 | O50: 0.3 | P50: 2 | Q50: 0 | R50: 203 | T50: USD | U50: 0 | V50: 203 | W50: 0 | X50: 17 | Y50: ROB | AA50: South Africa | AB50: 0
B51: Packaged Terminal AC (<2 kW) | C51: Packaged Terminal AC (<2 kW) | D51: Commercial | E51: HVAC - Cooling | F51: Standard cooling equipment | G51: per PTAC | H51: 10 | I51: 2 | J51: 0.3384615385 | K51: 2246.153846 | L51: 0.02665051484 | M51: 103.2101757 | N51: 0.07874015748 | O51: 0.04594973574 | P51: 2 | Q51: 0 | R51: 113 | T51: USD | U51: 0 | V51: 113 | W51: 0 | X51: 17 | Y51: ROB | AA51: South Africa | AB51: 0
B52: Dual Enthalpy Economizer | C52: Dual Enthalpy Economizer | D52: Commercial | E52: HVAC - Cooling | F52: No dual enthalpy economizer | G52: per economizer | H52: 10 | I52: 2 | J52: 0.003174157146 | K52: 63.72 | L52: 0.0003332865003 | M52: 9.558 | N52: 0.105 | O52: 0.15 | P52: 2 | Q52: 0 | R52: 0.8602150538 | T52: USD | U52: 0 | V52: 0.8602150538 | W52: 0 | X52: 17 | Y52: RET | AA52: South Africa | AB52: 0
B53: T8 Lighting | C53: T8 Fluorescent Lighting (with electronic ballast) | D53: Commercial | E53: Lighting | F53: Magnetic Ballast Luminares | G53: per lamp | H53: 13 | I53: 1 | J53: 0.173 | K53: 3472.90934 | L53: 0.015743 | M53: 451.4782143 | N53: 0.091 | O53: 0.13 | P53: 1 | Q53: 8.15 | R53: 0 | T53: USD | U53: 8.15 | V53: 0 | W53: 0 | X53: 17 | Y53: RET | AA53: South Africa | AB53: 0
B54: T5 Lighting | C54: T5 Fluorescent Lighting (with electronic ballast) | D54: Commercial | E54: Lighting | F54: T8 Magnetic Ballast Luminares | G54: per fixture | H54: 15 | I54: 1 | J54: 0.173 | K54: 3472.90934 | L54: 0.0594 | M54: 1192.432456 | N54: 0.3433526012 | O54: 0.3433526012 | P54: 1 | Q54: 107.6388889 | R54: 102.6388889 | T54: USD | U54: 107.6388889 | V54: 102.6388889 | W54: 0 | X54: 17 | AA54: South Africa | AB54: 0
B55: LED Down Lighting | C55: Efficient Lighting: LED Downlights | D55: Commercial | E55: Lighting | F55: Incandescent or halogen downlights | G55: per fixture | H55: 20 | I55: 1 | J55: 0.06 | K55: 1204.477228 | L55: 0.049 | M55: 983.6564028 | N55: 0.8166666667 | O55: 0.8166666667 | P55: 1 | Q55: 0 | R55: 5 | T55: USD | U55: 0 | V55: 5 | W55: 0 | X55: 17 | Y55: RET | AA55: South Africa | AB55: 0
B56: LED Fixture Lighting | C56: 4 Lamp LED Fixture | D56: Commercial | E56: Lighting | F56: Metal Halide Fixture, Warehouse | G56: per fixture | H56: 20 | I56: 3 | J56: 0.173 | K56: 3472.90934 | L56: 0.098 | M56: 1967.312806 | N56: 0.5664739884 | O56: 0.5664739884 | P56: 3 | Q56: 55.69444444 | R56: 50.69444444 | T56: USD | U56: 55.69444444 | V56: 50.69444444 | W56: 0 | X56: 17 | Y56: RET | AA56: South Africa | AB56: 0
B57: High Efficiency Fryer | C57: High Efficiency Electric Fryer 2.4 kW/hr | D57: Commercial | E57: Other | F57: 2.8 kW/hr | G57: per fryer | H57: 12 | I57: 4 | J57: 2.6412 | K57: 12852 | L57: 0.4402 | M57: 2142 | N57: 0.1666666667 | O57: 0.1666666667 | P57: 4 | Q57: 1344 | R57: 0 | T57: USD | U57: 1344 | V57: 0 | W57: 0 | X57: 17 | Y57: RET | AA57: South Africa | AB57: 0
B58: High Efficiency Griddle | C58: High Efficiency electric Griddle | D58: Commercial | E58: Other | F58: griddle that's not Energy Star | G58: per griddle | H58: 12 | I58: 4 | J58: 1.445682451 | K58: 17312.85 | L58: 0.2168523677 | M58: 2596.9275 | N58: 0.15 | O58: 0.15 | P58: 4 | Q58: 0 | R58: 60 | T58: USD | U58: 0 | V58: 60 | W58: 0 | X58: 17 | Y58: NC | AA58: South Africa | AB58: 0
B59: Hot Food Holding Cabinet | C59: Hot Food Holding Cabinet | D59: Commercial | E59: Other | F59: electric HFHC that’s not ENERGY STAR certified and at end of life | G59: per cubic foot | H59: 12 | I59: 4 | J59: 0.2040027379 | K59: 3104.625 | L59: 0.03060041068 | M59: 465.69375 | N59: 0.15 | O59: 0.15 | P59: 4 | Q59: 0 | R59: 60 | T59: USD | U59: 0 | V59: 60 | W59: 0 | X59: 17 | Y59: NC | AA59: South Africa | AB59: 0
B60: Connectionless Steamer | C60: Connectionless Steamer 0.5 kW/hr | D60: Commercial | E60: Other | F60: 1 kW/hr | G60: per steamer | H60: 12 | I60: 4 | J60: 2.74 | K60: 15612 | L60: 1.37 | M60: 7806 | N60: 0.5 | O60: 0.5 | P60: 4 | Q60: 2490 | R60: 0 | T60: USD | U60: 2490 | V60: 0 | W60: 0 | X60: 17 | Y60: RET | AA60: South Africa | AB60: 0
B61: High Efficiency Refrigerated Vending Machines | C61: High Efficiency Refrigerated Vending Machines | D61: Commercial | E61: Refrigeration | F61: standard unit | G61: per machine | H61: 14 | I61: 3 | J61: 0.1000018906 | K61: 2007.5 | L61: 0.05454648579 | M61: 1095 | N61: 0.5454545455 | O61: 0.5454545455 | P61: 3 | Q61: 2600 | R61: 400 | T61: USD | U61: 2600 | V61: 400 | W61: 0 | X61: 17 | Y61: NC | AA61: South Africa | AB61: 0
B62: High Efficiency Multideck Cooler | C62: High Efficiency Multideck Cooler | D62: Commercial | E62: Refrigeration | F62: Walk-in Refrigeration without Economizer | G62: per HP | H62: 15 | I62: 3 | J62: 0.7454686392 | K62: 14965 | L62: 0.3818254006 | M62: 7665 | N62: 0.512195122 | O62: 0.512195122 | P62: 3 | Q62: 4000 | R62: 2600 | T62: USD | U62: 4000 | V62: 2600 | W62: 0 | X62: 17 | Y62: RET | AA62: South Africa | AB62: 0
B63: High Efficiency Solid Door Freezer | C63: High Efficiency Solid Door Freezer | D63: Commercial | E63: Refrigeration | F63: Standard Efficiency Freezer | G63: per freezer | H63: 9 | I63: 3 | J63: 0.122729593 | K63: 2463.75 | L63: 0.06818310724 | M63: 1368.75 | N63: 0.5555555556 | O63: 0.5555555556 | P63: 3 | Q63: 1025 | R63: 200 | T63: USD | U63: 1025 | V63: 200 | W63: 0 | X63: 17 | Y63: RET | AA63: South Africa | AB63: 0
B64: High Efficiency Reach-in Cooler | C64: High Efficiency Reach-in Cooler | D64: Commercial | E64: Refrigeration | F64: Standard Efficiency Cooler | G64: per cooler | H64: 9 | I64: 3 | J64: 0.6454667486 | K64: 12957.5 | L64: 0.09091080966 | M64: 1825 | N64: 0.1408450704 | O64: 0.1408450704 | P64: 3 | Q64: 4225 | R64: 200 | T64: USD | U64: 4225 | V64: 200 | W64: 0 | X64: 17 | Y64: RET | AA64: South Africa | AB64: 0
B65: Hot Water Pipe Insulation | C65: Hot Water Heater Pipe Insulation (pipe dia <80mm) - R-Value = 1.0 | D65: Commercial | E65: Water Heating | F65: Uninsulated hot water heater pipe | G65: per ft of pipe | H65: 13 | I65: 2 | J65: 3 | K65: 60223.86139 | L65: 0.105 | M65: 3011.19307 | N65: 0.035 | O65: 0.05 | P65: 2 | Q65: 300 | R65: 0 | T65: USD | U65: 300 | V65: 0 | W65: 0 | X65: 17 | Y65: RET | AA65: South Africa | AB65: 0
B66: Hot Water Heater Tank Insulation | C66: Hot Water Heater Tank (Geyser) Insulation - R-Value = 2.0 m2K/W | D66: Commercial | E66: Water Heating | F66: Uninsulated hot water heater tank | G66: per ft insulation | H66: 5 | I66: 2 | J66: 3 | K66: 60223.86139 | L66: 0.07254721327 | M66: 2080.511103 | N66: 0.02418240442 | O66: 0.03454629203 | P66: 2 | Q66: 20.83333333 | R66: 0 | T66: USD | U66: 20.83333333 | V66: 0 | W66: 0 | X66: 17 | Y66: RET | AA66: South Africa | AB66: 0
B67: Tankless Water Heater | C67: In Line Water Heating Configuration | D67: Commercial | E67: Water Heating | F67: In Tank Water Heating Configuration | G67: per unit | H67: 8 | I67: 5 | J67: 3 | K67: 60223.86139 | L67: 0.3 | M67: 6022.386139 | N67: 0.1 | O67: 0.1 | P67: 5 | Q67: 276.4069444 | R67: 0 | T67: USD | U67: 276.4069444 | V67: 0 | W67: 0 | X67: 17 | Y67: RET | AA67: South Africa | AB67: 0
B68: Low flow faucet aerator-kitchen | C68: Low flow faucet aerator-kitchen | D68: Commercial | E68: Water Heating | F68: standard kitchen faucet areator | G68: per aerator | H68: 10 | I68: 1 | J68: 3 | K68: 60223.86139 | L68: 0.07247 | M68: 1454.807745 | N68: 0.02415666667 | O68: 0.02415666667 | P68: 1 | Q68: 5 | R68: 0 | T68: USD | U68: 5 | V68: 0 | W68: 0 | X68: 17 | Y68: RET | AA68: South Africa | AB68: 0
B69: Low flow Faucet aerator - bathroom | C69: Low flow Faucet aerator - bathroom | D69: Commercial | E69: Water Heating | F69: standard bath faucet areator | G69: per aerator | H69: 10 | I69: 1 | J69: 3 | K69: 60223.86139 | L69: 0.07247 | M69: 1454.807745 | N69: 0.02415666667 | O69: 0.02415666667 | P69: 1 | Q69: 5 | R69: 0 | T69: USD | U69: 5 | V69: 0 | W69: 0 | X69: 17 | Y69: RET | AA69: South Africa | AB69: =SUM(AA69=CountrySelect,AB68) -> 0
B70: Solar Hot Water Heater | C70: Solar Hot Water Heater | D70: Commercial | E70: Water heating | F70: standard water heater | G70: per heater | H70: 15 | I70: 2 | J70: 3 | K70: 60223.86139 | L70: 1.576692768 | M70: 45216.44131 | N70: 0.5255642561 | O70: 0.7508060801 | P70: 2 | Q70: 1229.166667 | R70: 1090.277778 | T70: USD | U70: 1229.166667 | V70: 1090.277778 | W70: 0 | X70: 17 | Y70: RET | AA70: South Africa | AB70: 0
B71: Drain Water Heat Recovery | C71: Drain Water Heat Recovery | D71: Commercial | E71: Water Heating | F71: No hot water heat recovery, electric resistance water heater | G71: per unit | H71: 25 | I71: 2 | J71: 3 | K71: 60223.86139 | L71: 0.063 | M71: 1806.715842 | N71: 0.021 | O71: 0.03 | P71: 2 | Q71: 770 | R71: 0 | T71: USD | U71: 770 | V71: 0 | W71: 0 | X71: 17 | Y71: RET | AA71: South Africa | AB71: 0
B72: Air Compressor Controls (demand) | C72: Compressed Air System - Setup compressors to load and unload accourding to the air demand from the plants | D72: Industrial | E72: Compressors | F72: Always operate compressors at full capacity | G72: per building | H72: 5 | I72: 6 | J72: 1465 | K72: 121988045.7 | L72: 190.45 | M72: 15858445.94 | N72: 0.13 | O72: 0.13 | P72: 6 | Q72: 20000 | R72: 0 | T72: USD | U72: 20000 | V72: 0 | W72: =IFERROR(S72/VLOOKUP(T72,CurrencyExchange,2,FALSE),0) -> 0 | X72: 17 | Y72: RET | AA72: South Africa | AB72: 0
B73: Alternate Compressor | C73: Installation of smaller capacity air compressor to supply weekend load | D73: Industrial | E73: Compressors | F73: Inefficient use of large capacity compressor to supply severly diminshed weekend load | G73: per building | H73: 10 | I73: 7 | J73: 14100 | K73: 1174082897 | L73: 840 | M73: 69945364.1 | N73: 0.05957446809 | O73: 0.05957446809 | P73: 7 | Q73: 62500 | R73: 0 | T73: USD | U73: 62500 | V73: 0 | W73: 0 | X73: 17 | Y73: RET | AA73: South Africa | AB73: 0
B74: VFD Compressor | C74: Variable speed air compressor, 40 hp | D74: Industrial | E74: Compressors | F74: Constant speed air compressor, 40 hp | G74: per compressor | H74: 15 | I74: 8 | J74: 22 | K74: 1831902.393 | L74: 6.578 | M74: 547738.8155 | N74: 0.299 | O74: 0.299 | P74: 8 | Q74: 8300 | R74: 0 | T74: USD | U74: 8300 | V74: 0 | W74: 0 | X74: 17 | Y74: RET | AA74: South Africa | AB74: 0
B75: Reduce Compressor Leaks to <10% | C75: Reduce Compressor Leaks to <10% | D75: Industrial | E75: Compressors | F75: >25% leakage | H75: 3 | I75: 9 | J75: 224 | K75: 18652097.09 | L75: 12.6173 | M75: 1050621.003 | N75: 0.05632723214 | O75: 0.05632723214 | P75: 9 | Q75: 8300 | R75: 0 | T75: USD | U75: 8300 | V75: 0 | W75: 0 | X75: 17 | AA75: South Africa | AB75: 0
B76: T8 Lighting Low Bay | C76: T8 Fluorescent Lighting (with electronic ballast) | D76: Industrial | E76: Lighting | F76: Magnetic Ballast Luminares | G76: per lamp | H76: 13 | I76: 1 | J76: 0.173 | K76: 14405.41427 | L76: 0.02249 | M76: 1872.703855 | N76: 0.13 | O76: 0.13 | P76: 1 | Q76: 8.15 | R76: 0 | T76: USD | U76: 8.15 | V76: 0 | W76: 0 | X76: 17 | Y76: RET | AA76: South Africa | AB76: 0
B77: T5 Lighting Low Bay | C77: T5 Fluorescent Lighting (with electronic ballast) | D77: Industrial | E77: Lighting | F77: T8 Magnetic Ballast Luminares | G77: per fixture | H77: 15 | I77: 1 | J77: 0.173 | K77: 14405.41427 | L77: 0.0594 | M77: 4946.136461 | N77: 0.3433526012 | O77: 0.3433526012 | P77: 1 | Q77: 107.6388889 | R77: 102.6388889 | T77: USD | U77: 107.6388889 | V77: 102.6388889 | W77: 0 | X77: 17 | AA77: South Africa | AB77: 0
B78: LED Fixture Lighting Low Bay | C78: 4 Lamp LED Fixture | D78: Industrial | E78: Lighting | F78: Metal Halide Fixture, Warehouse | G78: per fixture | H78: 20 | I78: 3 | J78: 0.173 | K78: 14405.41427 | L78: 0.098 | M78: 8160.292478 | N78: 0.5664739884 | O78: 0.5664739884 | P78: 3 | Q78: 55.69444444 | R78: 50.69444444 | T78: USD | U78: 55.69444444 | V78: 50.69444444 | W78: 0 | X78: 17 | Y78: RET | AA78: South Africa | AB78: 0
B79: LED Fixture Lighting High Bay | C79: 4 Lamp LED Fixture | D79: Industrial | E79: Lighting | F79: Metal Halide Fixture, Warehouse | G79: per fixture | H79: 20 | I79: 3 | J79: 0.173 | K79: 14405.41427 | L79: 0.098 | M79: 8160.292478 | N79: 0.5664739884 | O79: 0.5664739884 | P79: 3 | Q79: 55.69444444 | R79: 60.83333333 | T79: USD | U79: 55.69444444 | V79: 60.83333333 | W79: 0 | X79: 17 | Y79: RET | AA79: South Africa | AB79: 0
B80: Install Power Factor Optimizer | C80: Install Power Factor Optimizer | D80: Industrial | E80: Other | F80: No power optimizers | G80: per building | H80: 20 | I80: 3 | J80: 115.78 | K80: 787014.285 | L80: 8.1051 | M80: 55091 | N80: 0.07000431854 | O80: 0.07000000006 | P80: 3 | Q80: 34722.22222 | R80: 0 | T80: USD | U80: 34722.22222 | V80: 0 | W80: 0 | X80: 17 | Y80: RET | AA80: South Africa | AB80: 0
B81: Energy Management System - Cooling Plant Optimization | C81: Energy Management System - Cooling Plant Optimization | D81: Industrial | E81: Process Cooling | F81: Non-Optimized plant operation | G81: per building | H81: 15 | I81: 11 | K81: 2762935 | M81: 552587 | O81: 0.2 | P81: 11 | Q81: 5902.777778 | R81: 0 | T81: USD | U81: 5902.777778 | V81: 0 | W81: 0 | X81: 17 | Y81: RET | AA81: South Africa | AB81: 0
B82: Decomission Freon plant; use under-utilized glycol plant | C82: Decomission Freon plant; use under-utilized glycol plant | D82: Industrial | E82: Process Cooling | F82: Continue to operate the Freon plant | G82: per building | H82: 1 | I82: 11 | K82: 1497600 | M82: 74880 | O82: 0.05 | P82: 11 | Q82: 694.4444444 | R82: 0 | T82: USD | U82: 694.4444444 | V82: 0 | W82: 0 | X82: 17 | Y82: RET | AA82: South Africa | AB82: 0
B83: Process Heating Pipe Insulation (R-5 insulation) | C83: Process Heating Pipe Insulation (R-5 insulation) | D83: Industrial | E83: Process Heating | F83: Uninsulated piping | G83: per ft of pipe | H83: 15 | I83: 9 | J83: 0.138 | K83: 201 | L83: 0.0069 | M83: 10.05 | N83: 0.05 | O83: 0.05 | P83: 9 | Q83: 0 | R83: 9.5 | T83: USD | U83: =IFERROR(Q83/VLOOKUP(T83,CurrencyExchange,2,FALSE),0) -> 0 | V83: =IFERROR(R83/VLOOKUP(T83,CurrencyExchange,2,FALSE),0) -> 9.5 | W83: =IFERROR(S83/VLOOKUP(T83,CurrencyExchange,2,FALSE),0) -> 0 | X83: 17 | Y83: NC | AA83: South Africa | AB83: 0
B84: Process Heating - Automated Temperature Control | C84: Process Heating - Automated Temperature Control | D84: Industrial | E84: Process Heating | F84: Process Heating - Manual Temperature Control | G84: per plating tank | H84: 25 | I84: 12 | J84: 30 | K84: 203922.3443 | L84: 2.1 | M84: 14274.5641 | N84: 0.07 | O84: 0.07 | P84: 12 | Q84: 800 | R84: 0 | T84: USD | U84: 800 | V84: 0 | W84: 0 | X84: 17 | Y84: RET | AA84: South Africa | AB84: 0
B85: Heat Pumps for Process Water Heating | C85: Heat Pumps for Process Water Heating | D85: Industrial | E85: Process Heating | F85: Steam for process water heating | G85: per heat pump | H85: 13 | I85: 13 | K85: 26560 | M85: 2656 | O85: 0.1 | P85: 13 | Q85: 0 | R85: 1575 | T85: USD | U85: 0 | V85: 1575 | W85: 0 | X85: 17 | Y85: RET | AA85: South Africa | AB85: 0
B86: Heat Recovery from Condensate | C86: Heat Recovery from Condensate | D86: Industrial | E86: Process Heating | F86: Poaring condensate down the drain | G86: per heat rec unit | H86: 10 | I86: 13 | K86: 336900 | M86: 6738 | O86: 0.02 | P86: 13 | Q86: 3523 | R86: 0 | T86: USD | U86: 3523 | V86: 0 | W86: 0 | X86: 17 | Y86: RET | AA86: South Africa | AB86: 0
B87: Replacement of resistive heater coils with automated cycling controlled infrared lamps | C87: Replacement of resistive heater coils with infrared lamps and automated cycling control of infrared lamps during production | D87: Industrial | E87: Process Heating | F87: Resistive heater coils, left on constantly during production | H87: 15 | I87: 7 | J87: 72 | K87: 489413.6263 | L87: 9.0039 | M87: 61401 | N87: 0.1250541667 | O87: 0.1254582968 | P87: 7 | Q87: 4000 | R87: 0 | T87: USD | U87: 4000 | V87: 0 | W87: 0 | X87: 17 | AA87: South Africa | AB87: 0
B88: Variable Frequency Drive | C88: Variable Frequency Drive | D88: Industrial | E88: Motors | F88: Constant speed motors | G88: per HP | H88: 10 | I88: 1 | J88: 7.46 | K88: 621181.4478 | L88: 2.611 | M88: 310590.7239 | N88: 0.35 | O88: 0.5 | P88: 1 | Q88: 8666.666667 | R88: 0 | T88: USD | U88: 8666.666667 | V88: 0 | W88: 0 | X88: 17 | Y88: RET | AA88: South Africa | AB88: 0
B89: High Efficiency Motors | C89: High Efficiency Motors | D89: Industrial | E89: Motors | F89: Normal Efficiency / Rewound Motor | H89: 10 | I89: 14 | J89: 7.46 | K89: 621181.4478 | L89: 0.41776 | M89: 49694.51582 | N89: 0.056 | O89: 0.08 | P89: 14 | Q89: 0 | R89: 720.0392 | T89: USD | U89: 0 | V89: 720.0392 | W89: 0 | X89: 17 | AA89: South Africa | AB89: 0
B90: Properly Sized Motors and Optimized Drives | C90: Properly Sized Motors and Optimized Drives | D90: Industrial | E90: Motors | F90: Standard pump design | H90: 10 | I90: 14 | J90: 7.46 | K90: 621181.4478 | L90: 1.5666 | M90: 186354.4343 | N90: 0.21 | O90: 0.3 | P90: 14 | Q90: 273.6842105 | R90: 0 | T90: USD | U90: 273.6842105 | V90: 0 | W90: 0 | X90: 17 | AA90: South Africa | AB90: 0
B91: Commercial Heat Pump Hot Water Heater | C91: Heat Pump Hot Water Heater | D91: Residential | E91: Water Heating | F91: Electric resistance water heater | G91: per heater | H91: 15 | I91: 2 | J91: 3 | K91: 60223.86139 | L91: 1.320117457 | M91: 37858.36704 | N91: 0.4400391525 | O91: 0.6286273607 | P91: 2 | Q91: 486.1111111 | R91: 347.2222222 | T91: USD | U91: 486.1111111 | V91: 347.2222222 | W91: 0 | X91: 17 | Y91: RET | AA91: South Africa | AB91: 0
B92: Efficient Refrigerators - A+ | C92: A+ labeling compliant Refrigerator (250-300 L) | D92: Residential | E92: Appliances | F92: E Label -Typical inefficient appliance on the market | G92: per fridge | H92: 15 | I92: 2 | J92: 0.01911538983 | K92: 528 | L92: 0.007928542373 | M92: 219 | N92: 0.4147727273 | O92: 0.4147727273 | P92: 2 | Q92: 527.7777778 | R92: 306.9444444 | T92: USD | U92: 527.7777778 | V92: 306.9444444 | W92: 0 | X92: 17 | AA92: South Africa | AB92: 0
B93: Efficient Heat Pump | C93: Efficient Heat Pump | D93: Residential | E93: HVAC - Heating | F93: Existing inefficient AC | G93: per heat pump | H93: 10 | I93: 3 | J93: 1.917808219 | K93: 3500 | L93: 0.7123287671 | M93: 1300 | N93: 0.3714285714 | O93: 0.3714285714 | P93: 3 | Q93: 277.7777778 | R93: 69.44444444 | T93: USD | U93: 277.7777778 | V93: 69.44444444 | W93: 0 | X93: 17 | Y93: RET | AA93: South Africa | AB93: 0
B94: Efficient Heat Pump with VRF Technology | C94: Efficient Heat Pump with VRF Technology | D94: Residential | E94: HVAC - Cooling | F94: Existing inefficient AC | G94: per heat pump | H94: 10 | I94: 15 | J94: 1.917808219 | K94: 3500 | L94: 0.9315068493 | M94: 1700 | N94: 0.4857142857 | O94: 0.4857142857 | P94: 15 | Q94: 555.5555556 | R94: 347.2222222 | T94: USD | U94: 555.5555556 | V94: 347.2222222 | W94: 0 | X94: 17 | Y94: NC | AA94: South Africa | AB94: 0
B95: High Performance New Homes | C95: High Performance New Homes | D95: Residential | E95: HVAC - Cooling | F95: ~2.8 COP AC | G95: per unit | H95: 12 | I95: 15 | J95: 0.969841349 | K95: 26788.68895 | L95: 0.1018333416 | M95: 4018.303342 | N95: 0.105 | O95: 0.15 | P95: 15 | Q95: 0 | R95: 2000 | T95: USD | U95: 0 | V95: 2000 | W95: 0 | X95: 17 | Y95: NC | AA95: South Africa | AB95: 0
B96: Unitary (console) and Split Type AC (<7 kW) - COP >= 2.5 | C96: Unitary (console) and Split Type AC (<7 kW) - COP >= 2.5 | D96: Residential | E96: HVAC - Cooling | F96: Standard cooling equipment COP | I96: 2 | P96: 2 | Q96: 0 | R96: 0 | T96: USD | U96: 0 | V96: 0 | W96: 0 | X96: 17 | AA96: South Africa | AB96: 0
B97: Air Sealing - whole home | C97: Air sealing | D97: Residential | E97: Other | F97: 0.5 ACH | G97: per CFM | H97: 15 | I97: 9 | J97: 0.969841349 | K97: 26788.68895 | L97: 0.5976842105 | M97: 2121.078765 | N97: 0.07917814753 | O97: 0.07917814753 | P97: 9 | Q97: 0 | R97: 2000 | T97: USD | U97: 0 | V97: 2000 | W97: 0 | X97: 17 | Y97: RET | AA97: South Africa | AB97: 0
B98: Window Shade | C98: Window External Shading Mechanism | D98: Residential | E98: Other | F98: No window shading mechanism | G98: per sqft | H98: 10 | I98: 2 | J98: 0.969841349 | K98: 26788.68895 | L98: 0.0183300015 | M98: 723.2946015 | N98: 0.0189 | O98: 0.027 | P98: 2 | Q98: 3 | R98: 0 | T98: USD | U98: 3 | V98: 0 | W98: 0 | X98: 17 | Y98: RET | AA98: South Africa | AB98: 0
B99: Roof Insulation R-19 | C99: Roof Insulation - R-Value = 3.0 m2K/W | D99: Residential | E99: Other | F99: No roof insulation | G99: per sqft | H99: 25 | I99: 2 | J99: 0.969841349 | K99: 26788.68895 | L99: 0.06295152029 | M99: 2484.042066 | N99: 0.06490909091 | O99: 0.09272727273 | P99: 2 | Q99: 90.27777778 | R99: 0 | T99: USD | U99: 90.27777778 | V99: 0 | W99: 0 | X99: 17 | Y99: RET | AA99: South Africa | AB99: 0
B100: Double Glazed Windows U-Value = 3.41 W/m2K and SHGC = 0.27 | C100: Double Glazed Windows with aluminum/steel framing: U-Value = 3.41 W/m2K and SHGC = 0.27 | D100: Residential | E100: Other | F100: Single - Clear Windows: U-Value = 4.9 W/m2K and SHGC = 0.66 | G100: per sqft | H100: 25 | I100: 2 | J100: 0.969841349 | K100: 26788.68895 | L100: 0.1283100105 | M100: 5063.062211 | N100: 0.1323 | O100: 0.189 | P100: 2 | Q100: 112 | R100: 57 | T100: USD | U100: 112 | V100: 57 | W100: 0 | X100: 17 | Y100: RET | AA100: South Africa | AB100: 0
B101: Double Glazed Windows U-Value = 1.99 W/m2K and SHGC = 0.3 | C101: Double Glazed Windows with Timber/PVCu/Aluminum thermal break framing: U-Value = 1.99 W/m2K and SHGC = 0.3 | D101: Residential | E101: Other | F101: Single - Clear Windows: U-Value = 4.9 W/m2K and SHGC = 0.66 | G101: per sqft | H101: 25 | I101: 2 | J101: 0.969841349 | K101: 26788.68895 | L101: 0.09165000748 | M101: 3616.473008 | N101: 0.0945 | O101: 0.135 | P101: 2 | Q101: 123.2 | R101: 68.2 | T101: USD | U101: 123.2 | V101: 68.2 | W101: 0 | X101: 17 | Y101: RET | AA101: South Africa | AB101: 0
B102: Double Glazed Windows low E U-Value = 1.8 W/m2K and SHGC = 0.4 | C102: Double Glazed Windows with low E coating and Timber/PVCu/Aluminum thermal break framing: U-Value = 1.8 W/m2K and SHGC = 0.4 | D102: Residential | E102: Other | F102: Single - Clear Windows: U-Value = 4.9 W/m2K and SHGC = 0.66 | G102: per sqft | H102: 25 | I102: 2 | J102: 0.969841349 | K102: 26788.68895 | L102: 0.07332000598 | M102: 2893.178406 | N102: 0.0756 | O102: 0.108 | P102: 2 | Q102: 134.4 | R102: 79.4 | T102: USD | U102: 134.4 | V102: 79.4 | W102: 0 | X102: 17 | Y102: RET | AA102: South Africa | AB102: 0
B103: Res CFL Lighting | C103: Efficient Lighting Fixtures: CFLs | D103: Residential | E103: Lighting | F103: Incandescent | G103: per fixture | H103: 11 | I103: 3 | J103: 0.06 | K103: 87.6 | L103: 0.047 | M103: 68.62 | N103: 0.7833333333 | O103: 0.7833333333 | P103: 3 | Q103: 1.232 | R103: 0.982 | T103: USD | U103: 1.232 | V103: 0.982 | W103: 0 | X103: 17 | Y103: RET | AA103: South Africa | AB103: 0
B104: Res LED Lighting | C104: Efficient Lighting Fixtures: LEDs | D104: Residential | E104: Lighting | F104: Incandescent | G104: per bulb | H104: 20 | I104: 3 | J104: 0.06 | K104: 87.6 | L104: 0.051 | M104: 74.46 | N104: 0.85 | O104: 0.85 | P104: 3 | Q104: 5.187 | R104: 4.937 | T104: USD | U104: 5.187 | V104: 4.937 | W104: 0 | X104: 17 | Y104: RET | AA104: South Africa | AB104: 0
B105: Low Flow Showerhead | C105: Low-Flow Showerheads (1.5 GPM) | D105: Residential | E105: Water Heating | F105: Standard flow showerhead (2.67 GPM) | G105: per fixture | H105: 10 | I105: 16 | J105: 0.3772682847 | K105: 10420.8 | L105: 0.03019337748 | M105: 327.9599497 | N105: 0.08003158151 | O105: 0.03147166722 | P105: 16 | Q105: 0 | R105: 12 | T105: USD | U105: 0 | V105: 12 | W105: 0 | X105: 17 | Y105: RET | AA105: South Africa | AB105: 0
B106: Tankless Water Heater (in-line electric) | C106: Efficient Water Heater Electric EF => 0.95 | D106: Residential | E106: Water Heating | F106: electric storage water heater with 50 or more gallon capacity in input wattage between 12kW and 54kW. | G106: per gallon | H106: 15 | I106: 4 | J106: 0.3772682847 | K106: 10420.8 | L106: 0.009431707119 | M106: 260.52 | N106: 0.025 | O106: 0.025 | P106: 4 | Q106: 208.3333333 | R106: 69.44444444 | T106: USD | U106: 208.3333333 | V106: 69.44444444 | W106: 0 | X106: 17 | Y106: RET | AA106: South Africa | AB106: 0
B107: Drain Water Heat Recovery | C107: Drain Water Heat Recovery | D107: Residential | E107: Water Heating | F107: drain without heat recovery | G107: per unit | H107: 25 | I107: 2 | L107: N/A | M107: 1041.723512 | P107: 2 | Q107: 660 | R107: 0 | T107: USD | U107: 660 | V107: 0 | W107: 0 | X107: 17 | Y107: NC | AA107: South Africa | AB107: 0
B108: Solar Hot Water Heater with controller - Res | C108: Solar Hot Water Heater | D108: Residential | E108: Water Heating | F108: Electric resistance water heater | H108: 15 | I108: 2 | J108: 0.3772682847 | K108: 10420.8 | L108: 0.283255322 | M108: 7824 | N108: 0.7508060801 | O108: 0.7508060801 | P108: 2 | Q108: 1229.166667 | R108: 1090.277778 | T108: USD | U108: 1229.166667 | V108: 1090.277778 | W108: 0 | X108: 17 | Y108: RET | AA108: South Africa | AB108: 0
B109: Tank Insulation | C109: Hot Water Heater (Geyser) Tank Insulation - R-Value = 2.0 m2K/W | D109: Residential | E109: Water Heating | F109: Uninsulated hot water heater tank | G109: per ft insulation | H109: 5 | I109: 2 | J109: 0.3772682847 | K109: 10420.8 | L109: 0.009123254237 | M109: 360 | N109: 0.02418240442 | O109: 0.03454629203 | P109: 2 | Q109: 20.83333333 | R109: 0 | T109: USD | U109: 20.83333333 | V109: 0 | W109: 0 | X109: 17 | Y109: RET | AA109: South Africa | AB109: 0
B110: Heat Pump Hot Water Heater | C110: Heat Pump Hot Water Heater | D110: Residential | E110: Water Heating | F110: Electric resistance water heater | G110: per heater | H110: 15 | I110: 2 | J110: 0.3772682847 | K110: 10420.8 | L110: 0.2371611661 | M110: 6550.8 | N110: 0.6286273607 | O110: 0.6286273607 | P110: 2 | Q110: 486.1111111 | R110: 347.2222222 | T110: USD | U110: 486.1111111 | V110: 347.2222222 | W110: 0 | X110: 17 | Y110: RET | AA110: South Africa | AB110: 0
U111: 0 | V111: 0 | W111: 0 | AB111: 0
U112: 0 | V112: 0 | W112: 0 | AB112: 0
U113: 0 | V113: 0 | W113: 0 | AB113: 0
B114: Set Point Adjustment | C114: Adjustment of heating & cooling temperature setpoints during occupied hours to 24C in summer and 17C in winter | D114: Commercial | E114: HVAC - heating | F114: Standard heating and cooling setpoints 22C in summer and 20C in winter | H114: 1 | I114: 1 | J114: 0.003174157146 | K114: 63.72 | L114: 0.001110955001 | M114: 31.86 | N114: 0.35 | O114: 0.5 | P114: 1 | Q114: 0 | R114: 0.01023 | T114: USD | U114: 0 | V114: 0.01023 | W114: 0 | X114: 17 | AA114: Mozambique | AB114: 0
B115: New Construction Design Assistance | C115: New Construction Design Assistance Program | D115: Commercial | E115: HVAC - heating | F115: Standard heating and cooling setpoints 22C in summer and 20C in winter | H115: 25 | I115: 1 | J115: 0.003174157146 | K115: 63.72 | L115: 0.0003332865003 | M115: 9.558 | N115: 0.105 | O115: 0.15 | P115: 1 | Q115: 0 | R115: 0.372 | T115: USD | U115: 0 | V115: 0.372 | W115: 0 | X115: 17 | AA115: Mozambique | AB115: 0
B116: Preventative Maintenance | C116: Preventative maintenance program for HVAC equipment | D116: Commercial | E116: HVAC - heating | F116: Neglect HVAC maintenance | H116: 5 | I116: 1 | J116: 0.003174157146 | K116: 63.72 | L116: 0.0006665730006 | M116: 19.116 | N116: 0.21 | O116: 0.3 | P116: 1 | Q116: 0 | R116: 0.01023 | T116: USD | U116: 0 | V116: 0.01023 | W116: 0 | X116: 17 | AA116: Mozambique | AB116: 0
B117: Install Building Energy Management Systems | C117: Install Building Energy Management Systems | D117: Commercial | E117: HVAC - heating | F117: Maintain server room at the manufacturer recommended temperature | H117: 15 | I117: 1 | J117: 0.003174157146 | K117: 63.72 | L117: 0.0002221910002 | M117: 6.372 | N117: 0.07 | O117: 0.1 | P117: 1 | Q117: 0 | R117: 0.39525 | T117: USD | U117: 0 | V117: 0.39525 | W117: 0 | X117: 17 | AA117: Mozambique | AB117: 0
B118: VSD/VAV on Chiller System | C118: Variable Speed Drives (VSD) on chilled water pumps and fans and Variable Air Volume (VAV) dampers | D118: Commercial | E118: HVAC - Cooling | F118: Maintain server room at the manufacturer recommended temperature | H118: 10 | I118: 1 | J118: 0.003174157146 | K118: 63.72 | L118: 0.0004221629004 | M118: 12.1068 | N118: 0.133 | O118: 0.19 | P118: 1 | Q118: 0 | R118: 0.2325 | T118: USD | U118: 0 | V118: 0.2325 | W118: 0 | X118: 17 | AA118: Mozambique | AB118: 0
B119: Unitary (console) and Split Type AC (<7 kW) - COP >= 2.5 | C119: Unitary (console) and Split Type AC (<7 kW) - COP >= 2.5 | D119: Commercial | E119: HVAC - Cooling | F119: Standard cooling equipment COP | G119: per AC | H119: 15 | I119: 2 | J119: 1.384615385 | K119: 12492.94154 | L119: 0.0989010989 | M119: 832.7239819 | N119: 0.07142857143 | O119: 0.2352941176 | P119: 2 | Q119: 0 | R119: 359 | T119: USD | U119: 0 | V119: 359 | W119: 0 | X119: 17 | Y119: ROB | AA119: Mozambique | AB119: 0
B120: Packaged and Split Type AC (7-19 kW) - COP >=2.6 | C120: Packaged and Split Type AC (7-19 kW) - COP >=2.6 | D120: Commercial | E120: HVAC - Cooling | F120: Standard cooling equipment COP | G120: per AC | H120: 15 | I120: 2 | J120: 4.615384615 | K120: 41643.13846 | L120: 0.3296703297 | M120: 2775.746606 | N120: 0.07142857143 | O120: 0.2352941176 | P120: 2 | Q120: 0 | R120: 359 | T120: USD | U120: 0 | V120: 359 | W120: 0 | X120: 17 | Y120: ROB | AA120: Mozambique | AB120: 0
B121: Packaged and Split Type AC (10-40 kW) - COP >=2.96 | C121: Packaged and Split Type AC (10-40 kW) - COP >=2.96 | D121: Commercial | E121: HVAC - Cooling | F121: Standard cooling equipment COP | G121: per AC | H121: 15 | I121: 2 | J121: 8.727272727 | K121: 78743.38909 | L121: 0.7272727273 | M121: 5948.509091 | N121: 0.08333333333 | O121: 0.2666666667 | P121: 2 | Q121: 0 | R121: 145 | T121: USD | U121: 0 | V121: 145 | W121: 0 | X121: 17 | Y121: ROB | AA121: Mozambique | AB121: 0
B122: Packaged and Split Type AC (40-70 kW) - COP >=2.72 | C122: Packaged and Split Type AC (40-70 kW) - COP >=2.72 | D122: Commercial | E122: HVAC - Cooling | F122: Standard cooling equipment COP | G122: per AC | H122: 15 | I122: 2 | J122: 16.66666667 | K122: 150378 | L122: 1.412429379 | M122: 11928 | N122: 0.08474576271 | O122: 0.28 | P122: 2 | Q122: 0 | R122: 427 | T122: USD | U122: 0 | V122: 427 | W122: 0 | X122: 17 | Y122: ROB | AA122: Mozambique | AB122: 0
B123: Packaged and Split Type AC (>70 kW) - COP >=2.64 | C123: Packaged and Split Type AC (>70 kW) - COP >=2.64 | D123: Commercial | E123: HVAC - Cooling | F123: Standard cooling equipment COP | G123: per AC | H123: 15 | I123: 2 | J123: 48.97959184 | K123: 441927.1837 | L123: 4.535147392 | M123: 37557.55102 | N123: 0.09259259259 | O123: 0.3 | P123: 2 | Q123: 0 | R123: 203 | T123: USD | U123: 0 | V123: 203 | W123: 0 | X123: 17 | Y123: ROB | AA123: Mozambique | AB123: 0
B124: Packaged Terminal AC (<2 kW) | C124: Packaged Terminal AC (<2 kW) | D124: Commercial | E124: HVAC - Cooling | F124: Standard cooling equipment | G124: per PTAC | H124: 10 | I124: 2 | J124: 0.3384615385 | K124: 7928.923077 | L124: 0.02665051484 | M124: 103.2101757 | N124: 0.07874015748 | O124: 0.04594973574 | P124: 2 | Q124: 0 | R124: 113 | T124: USD | U124: 0 | V124: 113 | W124: 0 | X124: 17 | Y124: ROB | AA124: Mozambique | AB124: 0
B125: Dual Enthalpy Economizer | C125: Dual Enthalpy Economizer | D125: Commercial | E125: HVAC - Cooling | F125: No dual enthalpy economizer | G125: per economizer | H125: 10 | I125: 2 | J125: 0.003174157146 | K125: 224.9316 | L125: 0.0003332865003 | M125: 9.558 | N125: 0.105 | O125: 0.15 | P125: 2 | Q125: 0 | R125: 0.8602150538 | T125: USD | U125: 0 | V125: 0.8602150538 | W125: 0 | X125: 17 | Y125: RET | AA125: Mozambique | AB125: 0
B126: T8 Lighting | C126: T8 Fluorescent Lighting (with electronic ballast) | D126: Commercial | E126: Lighting | F126: Magnetic Ballast Luminares | G126: per lamp | H126: 13 | I126: 1 | J126: 0.173 | K126: 3472.90934 | L126: 0.015743 | M126: 451.4782143 | N126: 0.091 | O126: 0.13 | P126: 1 | Q126: 8.15 | R126: 0 | T126: USD | U126: 8.15 | V126: 0 | W126: 0 | X126: 17 | Y126: RET | AA126: Mozambique | AB126: 0
B127: T5 Lighting | C127: T5 Fluorescent Lighting (with electronic ballast) | D127: Commercial | E127: Lighting | F127: T8 Magnetic Ballast Luminares | G127: per fixture | H127: 15 | I127: 1 | J127: 0.173 | K127: 3472.90934 | L127: 0.0594 | M127: 1192.432456 | N127: 0.3433526012 | O127: 0.3433526012 | P127: 1 | Q127: 107.6388889 | R127: 102.6388889 | T127: USD | U127: 107.6388889 | V127: 102.6388889 | W127: 0 | X127: 17 | AA127: Mozambique | AB127: 0
B128: LED Down Lighting | C128: Efficient Lighting: LED Downlights | D128: Commercial | E128: Lighting | F128: Incandescent or halogen downlights | G128: per fixture | H128: 20 | I128: 1 | J128: 0.06 | K128: 1204.477228 | L128: 0.049 | M128: 983.6564028 | N128: 0.8166666667 | O128: 0.8166666667 | P128: 1 | Q128: 0 | R128: 5 | T128: USD | U128: 0 | V128: 5 | W128: 0 | X128: 17 | Y128: RET | AA128: Mozambique | AB128: 0
B129: LED Fixture Lighting | C129: 4 Lamp LED Fixture | D129: Commercial | E129: Lighting | F129: Metal Halide Fixture, Warehouse | G129: per fixture | H129: 20 | I129: 3 | J129: 0.173 | K129: 3472.90934 | L129: 0.098 | M129: 1967.312806 | N129: 0.5664739884 | O129: 0.5664739884 | P129: 3 | Q129: 55.69444444 | R129: 50.69444444 | T129: USD | U129: 55.69444444 | V129: 50.69444444 | W129: 0 | X129: 17 | Y129: RET | AA129: Mozambique | AB129: 0
B130: High Efficiency Fryer | C130: High Efficiency Electric Fryer 2.4 kW/hr | D130: Commercial | E130: Other | F130: 2.8 kW/hr | G130: per fryer | H130: 12 | I130: 4 | J130: 2.6412 | K130: 12852 | L130: 0.4402 | M130: 2142 | N130: 0.1666666667 | O130: 0.1666666667 | P130: 4 | Q130: 1344 | R130: 0 | T130: USD | U130: 1344 | V130: 0 | W130: 0 | X130: 17 | Y130: RET | AA130: Mozambique | AB130: 0
B131: High Efficiency Griddle | C131: High Efficiency electric Griddle | D131: Commercial | E131: Other | F131: griddle that's not Energy Star | G131: per griddle | H131: 12 | I131: 4 | J131: 1.445682451 | K131: 17312.85 | L131: 0.2168523677 | M131: 2596.9275 | N131: 0.15 | O131: 0.15 | P131: 4 | Q131: 0 | R131: 60 | T131: USD | U131: 0 | V131: 60 | W131: 0 | X131: 17 | Y131: NC | AA131: Mozambique | AB131: 0
B132: Hot Food Holding Cabinet | C132: Hot Food Holding Cabinet | D132: Commercial | E132: Other | F132: electric HFHC that’s not ENERGY STAR certified and at end of life | G132: per cubic foot | H132: 12 | I132: 4 | J132: 0.2040027379 | K132: 3104.625 | L132: 0.03060041068 | M132: 465.69375 | N132: 0.15 | O132: 0.15 | P132: 4 | Q132: 0 | R132: 60 | T132: USD | U132: 0 | V132: 60 | W132: 0 | X132: 17 | Y132: NC | AA132: Mozambique | AB132: 0
B133: Connectionless Steamer | C133: Connectionless Steamer 0.5 kW/hr | D133: Commercial | E133: Other | F133: 1 kW/hr | G133: per steamer | H133: 12 | I133: 4 | J133: 2.74 | K133: 15612 | L133: 1.37 | M133: 7806 | N133: 0.5 | O133: 0.5 | P133: 4 | Q133: 2490 | R133: 0 | T133: USD | U133: 2490 | V133: 0 | W133: 0 | X133: 17 | Y133: RET | AA133: Mozambique | AB133: =SUM(AA133=CountrySelect,AB132) -> 0
B134: High Efficiency Refrigerated Vending Machines | C134: High Efficiency Refrigerated Vending Machines | D134: Commercial | E134: Refrigeration | F134: standard unit | G134: per machine | H134: 14 | I134: 3 | J134: 0.1000018906 | K134: 2007.5 | L134: 0.05454648579 | M134: 1095 | N134: 0.5454545455 | O134: 0.5454545455 | P134: 3 | Q134: 2600 | R134: 400 | T134: USD | U134: 2600 | V134: 400 | W134: 0 | X134: 17 | Y134: NC | AA134: Mozambique | AB134: 0
B135: High Efficiency Multideck Cooler | C135: High Efficiency Multideck Cooler | D135: Commercial | E135: Refrigeration | F135: Walk-in Refrigeration without Economizer | G135: per HP | H135: 15 | I135: 3 | J135: 0.7454686392 | K135: 14965 | L135: 0.3818254006 | M135: 7665 | N135: 0.512195122 | O135: 0.512195122 | P135: 3 | Q135: 4000 | R135: 2600 | T135: USD | U135: 4000 | V135: 2600 | W135: 0 | X135: 17 | Y135: RET | AA135: Mozambique | AB135: 0
B136: High Efficiency Solid Door Freezer | C136: High Efficiency Solid Door Freezer | D136: Commercial | E136: Refrigeration | F136: Standard Efficiency Freezer | G136: per freezer | H136: 9 | I136: 3 | J136: 0.122729593 | K136: 2463.75 | L136: 0.06818310724 | M136: 1368.75 | N136: 0.5555555556 | O136: 0.5555555556 | P136: 3 | Q136: 1025 | R136: 200 | T136: USD | U136: 1025 | V136: 200 | W136: 0 | X136: 17 | Y136: RET | AA136: Mozambique | AB136: 0
B137: High Efficiency Reach-in Cooler | C137: High Efficiency Reach-in Cooler | D137: Commercial | E137: Refrigeration | F137: Standard Efficiency Cooler | G137: per cooler | H137: 9 | I137: 3 | J137: 0.6454667486 | K137: 12957.5 | L137: 0.09091080966 | M137: 1825 | N137: 0.1408450704 | O137: 0.1408450704 | P137: 3 | Q137: 4225 | R137: 200 | T137: USD | U137: 4225 | V137: 200 | W137: 0 | X137: 17 | Y137: RET | AA137: Mozambique | AB137: 0
B138: Hot Water Pipe Insulation | C138: Hot Water Heater Pipe Insulation (pipe dia <80mm) - R-Value = 1.0 | D138: Commercial | E138: Water Heating | F138: Uninsulated hot water heater pipe | G138: per ft of pipe | H138: 13 | I138: 2 | J138: 3 | K138: 60223.86139 | L138: 0.105 | M138: 3011.19307 | N138: 0.035 | O138: 0.05 | P138: 2 | Q138: 300 | R138: 0 | T138: USD | U138: 300 | V138: 0 | W138: 0 | X138: 17 | Y138: RET | AA138: Mozambique | AB138: 0
B139: Hot Water Heater Tank Insulation | C139: Hot Water Heater Tank (Geyser) Insulation - R-Value = 2.0 m2K/W | D139: Commercial | E139: Water Heating | F139: Uninsulated hot water heater tank | G139: per ft insulation | H139: 5 | I139: 2 | J139: 3 | K139: 60223.86139 | L139: 0.07254721327 | M139: 2080.511103 | N139: 0.02418240442 | O139: 0.03454629203 | P139: 2 | Q139: 20.83333333 | R139: 0 | T139: USD | U139: 20.83333333 | V139: 0 | W139: 0 | X139: 17 | Y139: RET | AA139: Mozambique | AB139: 0
B140: Tankless Water Heater | C140: In Line Water Heating Configuration | D140: Commercial | E140: Water Heating | F140: In Tank Water Heating Configuration | G140: per unit | H140: 8 | I140: 5 | J140: 3 | K140: 60223.86139 | L140: 0.3 | M140: 6022.386139 | N140: 0.1 | O140: 0.1 | P140: 5 | Q140: 276.4069444 | R140: 0 | T140: USD | U140: 276.4069444 | V140: 0 | W140: 0 | X140: 17 | Y140: RET | AA140: Mozambique | AB140: 0
B141: Low flow faucet aerator-kitchen | C141: Low flow faucet aerator-kitchen | D141: Commercial | E141: Water Heating | F141: standard kitchen faucet areator | G141: per aerator | H141: 10 | I141: 1 | J141: 3 | K141: 60223.86139 | L141: 0.07247 | M141: 1454.807745 | N141: 0.02415666667 | O141: 0.02415666667 | P141: 1 | Q141: 5 | R141: 0 | T141: USD | U141: 5 | V141: 0 | W141: 0 | X141: 17 | Y141: RET | AA141: Mozambique | AB141: 0
B142: Low flow Faucet aerator - bathroom | C142: Low flow Faucet aerator - bathroom | D142: Commercial | E142: Water Heating | F142: standard bath faucet areator | G142: per aerator | H142: 10 | I142: 1 | J142: 3 | K142: 60223.86139 | L142: 0.07247 | M142: 1454.807745 | N142: 0.02415666667 | O142: 0.02415666667 | P142: 1 | Q142: 5 | R142: 0 | T142: USD | U142: 5 | V142: 0 | W142: 0 | X142: 17 | Y142: RET | AA142: Mozambique | AB142: 0
B143: Solar Hot Water Heater | C143: Solar Hot Water Heater | D143: Commercial | E143: Water heating | F143: standard water heater | G143: per heater | H143: 15 | I143: 2 | J143: 3 | K143: 60223.86139 | L143: 1.576692768 | M143: 45216.44131 | N143: 0.5255642561 | O143: 0.7508060801 | P143: 2 | Q143: 1229.166667 | R143: 1090.277778 | T143: USD | U143: 1229.166667 | V143: 1090.277778 | W143: 0 | X143: 17 | Y143: RET | AA143: Mozambique | AB143: 0
B144: Drain Water Heat Recovery | C144: Drain Water Heat Recovery | D144: Commercial | E144: Water Heating | F144: No hot water heat recovery, electric resistance water heater | G144: per unit | H144: 25 | I144: 2 | J144: 3 | K144: 60223.86139 | L144: 0.063 | M144: 1806.715842 | N144: 0.021 | O144: 0.03 | P144: 2 | Q144: 770 | R144: 0 | T144: USD | U144: 770 | V144: 0 | W144: 0 | X144: 17 | Y144: RET | AA144: Mozambique | AB144: 0
B145: Air Compressor Controls (demand) | C145: Compressed Air System - Setup compressors to load and unload accourding to the air demand from the plants | D145: Industrial | E145: Compressors | F145: Always operate compressors at full capacity | G145: per building | H145: 5 | I145: 6 | J145: 1465 | K145: 121988045.7 | L145: 190.45 | M145: 15858445.94 | N145: 0.13 | O145: 0.13 | P145: 6 | Q145: 20000 | R145: 0 | T145: USD | U145: 20000 | V145: 0 | W145: 0 | X145: 17 | Y145: RET | AA145: Mozambique | AB145: 0
B146: Alternate Compressor | C146: Installation of smaller capacity air compressor to supply weekend load | D146: Industrial | E146: Compressors | F146: Inefficient use of large capacity compressor to supply severly diminshed weekend load | G146: per building | H146: 10 | I146: 7 | J146: 14100 | K146: 1174082897 | L146: 840 | M146: 69945364.1 | N146: 0.05957446809 | O146: 0.05957446809 | P146: 7 | Q146: 62500 | R146: 0 | T146: USD | U146: 62500 | V146: 0 | W146: 0 | X146: 17 | Y146: RET | AA146: Mozambique | AB146: 0
B147: VFD Compressor | C147: Variable speed air compressor, 40 hp | D147: Industrial | E147: Compressors | F147: Constant speed air compressor, 40 hp | G147: per compressor | H147: 15 | I147: 8 | J147: 22 | K147: 1831902.393 | L147: 6.578 | M147: 547738.8155 | N147: 0.299 | O147: 0.299 | P147: 8 | Q147: 8300 | R147: 0 | T147: USD | U147: =IFERROR(Q147/VLOOKUP(T147,CurrencyExchange,2,FALSE),0) -> 8300 | V147: =IFERROR(R147/VLOOKUP(T147,CurrencyExchange,2,FALSE),0) -> 0 | W147: =IFERROR(S147/VLOOKUP(T147,CurrencyExchange,2,FALSE),0) -> 0 | X147: 17 | Y147: RET | AA147: Mozambique | AB147: 0
B148: Reduce Compressor Leaks to <10% | C148: Reduce Compressor Leaks to <10% | D148: Industrial | E148: Compressors | F148: >25% leakage | H148: 3 | I148: 9 | J148: 224 | K148: 18652097.09 | L148: 12.6173 | M148: 1050621.003 | N148: 0.05632723214 | O148: 0.05632723214 | P148: 9 | Q148: 8300 | R148: 0 | T148: USD | U148: 8300 | V148: 0 | W148: 0 | X148: 17 | AA148: Mozambique | AB148: 0
B149: T8 Lighting Low Bay | C149: T8 Fluorescent Lighting (with electronic ballast) | D149: Industrial | E149: Lighting | F149: Magnetic Ballast Luminares | G149: per lamp | H149: 13 | I149: 1 | J149: 0.173 | K149: 14405.41427 | L149: 0.02249 | M149: 1872.703855 | N149: 0.13 | O149: 0.13 | P149: 1 | Q149: 8.15 | R149: 0 | T149: USD | U149: 8.15 | V149: 0 | W149: 0 | X149: 17 | Y149: RET | AA149: Mozambique | AB149: 0
B150: T5 Lighting Low Bay | C150: T5 Fluorescent Lighting (with electronic ballast) | D150: Industrial | E150: Lighting | F150: T8 Magnetic Ballast Luminares | G150: per fixture | H150: 15 | I150: 1 | J150: 0.173 | K150: 14405.41427 | L150: 0.0594 | M150: 4946.136461 | N150: 0.3433526012 | O150: 0.3433526012 | P150: 1 | Q150: 107.6388889 | R150: 102.6388889 | T150: USD | U150: 107.6388889 | V150: 102.6388889 | W150: 0 | X150: 17 | AA150: Mozambique | AB150: 0
B151: LED Fixture Lighting Low Bay | C151: 4 Lamp LED Fixture | D151: Industrial | E151: Lighting | F151: Metal Halide Fixture, Warehouse | G151: per fixture | H151: 20 | I151: 3 | J151: 0.173 | K151: 14405.41427 | L151: 0.098 | M151: 8160.292478 | N151: 0.5664739884 | O151: 0.5664739884 | P151: 3 | Q151: 55.69444444 | R151: 50.69444444 | T151: USD | U151: 55.69444444 | V151: 50.69444444 | W151: 0 | X151: 17 | Y151: RET | AA151: Mozambique | AB151: 0
B152: LED Fixture Lighting High Bay | C152: 4 Lamp LED Fixture | D152: Industrial | E152: Lighting | F152: Metal Halide Fixture, Warehouse | G152: per fixture | H152: 20 | I152: 3 | J152: 0.173 | K152: 14405.41427 | L152: 0.098 | M152: 8160.292478 | N152: 0.5664739884 | O152: 0.5664739884 | P152: 3 | Q152: 55.69444444 | R152: 60.83333333 | T152: USD | U152: 55.69444444 | V152: 60.83333333 | W152: 0 | X152: 17 | Y152: RET | AA152: Mozambique | AB152: 0
B153: Install Power Factor Optimizer | C153: Install Power Factor Optimizer | D153: Industrial | E153: Other | F153: No power optimizers | G153: per building | H153: 20 | I153: 3 | J153: 115.78 | K153: 787014.285 | L153: 8.1051 | M153: 55091 | N153: 0.07000431854 | O153: 0.07000000006 | P153: 3 | Q153: 34722.22222 | R153: 0 | T153: USD | U153: 34722.22222 | V153: 0 | W153: 0 | X153: 17 | Y153: RET | AA153: Mozambique | AB153: 0
B154: Energy Management System - Cooling Plant Optimization | C154: Energy Management System - Cooling Plant Optimization | D154: Industrial | E154: Process Cooling | F154: Non-Optimized plant operation | G154: per building | H154: 15 | I154: 11 | K154: 2762935 | M154: 552587 | O154: 0.2 | P154: 11 | Q154: 5902.777778 | R154: 0 | T154: USD | U154: 5902.777778 | V154: 0 | W154: 0 | X154: 17 | Y154: RET | AA154: Mozambique | AB154: 0
B155: Decomission Freon plant; use under-utilized glycol plant | C155: Decomission Freon plant; use under-utilized glycol plant | D155: Industrial | E155: Process Cooling | F155: Continue to operate the Freon plant | G155: per building | H155: 1 | I155: 11 | K155: 1497600 | M155: 74880 | O155: 0.05 | P155: 11 | Q155: 694.4444444 | R155: 0 | T155: USD | U155: 694.4444444 | V155: 0 | W155: 0 | X155: 17 | Y155: RET | AA155: Mozambique | AB155: 0
B156: Process Heating Pipe Insulation (R-5 insulation) | C156: Process Heating Pipe Insulation (R-5 insulation) | D156: Industrial | E156: Process Heating | F156: Uninsulated piping | G156: per ft of pipe | H156: 15 | I156: 9 | J156: 0.138 | K156: 201 | L156: 0.0069 | M156: 10.05 | N156: 0.05 | O156: 0.05 | P156: 9 | Q156: 0 | R156: 9.5 | T156: USD | U156: 0 | V156: 9.5 | W156: 0 | X156: 17 | Y156: NC | AA156: Mozambique | AB156: 0
B157: Process Heating - Automated Temperature Control | C157: Process Heating - Automated Temperature Control | D157: Industrial | E157: Process Heating | F157: Process Heating - Manual Temperature Control | G157: per plating tank | H157: 25 | I157: 12 | J157: 30 | K157: 203922.3443 | L157: 2.1 | M157: 14274.5641 | N157: 0.07 | O157: 0.07 | P157: 12 | Q157: 800 | R157: 0 | T157: USD | U157: 800 | V157: 0 | W157: 0 | X157: 17 | Y157: RET | AA157: Mozambique | AB157: 0
B158: Heat Pumps for Process Water Heating | C158: Heat Pumps for Process Water Heating | D158: Industrial | E158: Process Heating | F158: Steam for process water heating | G158: per heat pump | H158: 13 | I158: 13 | K158: 26560 | M158: 2656 | O158: 0.1 | P158: 13 | Q158: 0 | R158: 1575 | T158: USD | U158: 0 | V158: 1575 | W158: 0 | X158: 17 | Y158: RET | AA158: Mozambique | AB158: 0
B159: Heat Recovery from Condensate | C159: Heat Recovery from Condensate | D159: Industrial | E159: Process Heating | F159: Poaring condensate down the drain | G159: per heat rec unit | H159: 10 | I159: 13 | K159: 336900 | M159: 6738 | O159: 0.02 | P159: 13 | Q159: 3523 | R159: 0 | T159: USD | U159: 3523 | V159: 0 | W159: 0 | X159: 17 | Y159: RET | AA159: Mozambique | AB159: 0
B160: Replacement of resistive heater coils with automated cycling controlled infrared lamps | C160: Replacement of resistive heater coils with infrared lamps and automated cycling control of infrared lamps during production | D160: Industrial | E160: Process Heating | F160: Resistive heater coils, left on constantly during production | H160: 15 | I160: 7 | J160: 72 | K160: 489413.6263 | L160: 9.0039 | M160: 61401 | N160: 0.1250541667 | O160: 0.1254582968 | P160: 7 | Q160: 4000 | R160: 0 | T160: USD | U160: 4000 | V160: 0 | W160: 0 | X160: 17 | AA160: Mozambique | AB160: 0
B161: Variable Frequency Drive | C161: Variable Frequency Drive | D161: Industrial | E161: Motors | F161: Constant speed motors | G161: per HP | H161: 10 | I161: 1 | J161: 7.46 | K161: 621181.4478 | L161: 2.611 | M161: 310590.7239 | N161: 0.35 | O161: 0.5 | P161: 1 | Q161: 8666.666667 | R161: 0 | T161: USD | U161: 8666.666667 | V161: 0 | W161: 0 | X161: 17 | Y161: RET | AA161: Mozambique | AB161: 0
B162: High Efficiency Motors | C162: High Efficiency Motors | D162: Industrial | E162: Motors | F162: Normal Efficiency / Rewound Motor | H162: 10 | I162: 14 | J162: 7.46 | K162: 621181.4478 | L162: 0.41776 | M162: 49694.51582 | N162: 0.056 | O162: 0.08 | P162: 14 | Q162: 0 | R162: 720.0392 | T162: USD | U162: 0 | V162: 720.0392 | W162: 0 | X162: 17 | AA162: Mozambique | AB162: 0
B163: Properly Sized Motors and Optimized Drives | C163: Properly Sized Motors and Optimized Drives | D163: Industrial | E163: Motors | F163: Standard pump design | H163: 10 | I163: 14 | J163: 7.46 | K163: 621181.4478 | L163: 1.5666 | M163: 186354.4343 | N163: 0.21 | O163: 0.3 | P163: 14 | Q163: 273.6842105 | R163: 0 | T163: USD | U163: 273.6842105 | V163: 0 | W163: 0 | X163: 17 | AA163: Mozambique | AB163: 0
B164: Commercial Heat Pump Hot Water Heater | C164: Heat Pump Hot Water Heater | D164: Residential | E164: Water Heating | F164: Electric resistance water heater | G164: per heater | H164: 15 | I164: 2 | J164: 3 | K164: 60223.86139 | L164: 1.320117457 | M164: 37858.36704 | N164: 0.4400391525 | O164: 0.6286273607 | P164: 2 | Q164: 486.1111111 | R164: 347.2222222 | T164: USD | U164: 486.1111111 | V164: 347.2222222 | W164: 0 | X164: 17 | Y164: RET | AA164: Mozambique | AB164: 0
B165: Efficient Refrigerators - A+ | C165: A+ labeling compliant Refrigerator (250-300 L) | D165: Residential | E165: Appliances | F165: E Label -Typical inefficient appliance on the market | G165: per fridge | H165: 15 | I165: 2 | J165: 0.01911538983 | K165: 528 | L165: 0.007928542373 | M165: 219 | N165: 0.4147727273 | O165: 0.4147727273 | P165: 2 | Q165: 527.7777778 | R165: 306.9444444 | T165: USD | U165: 527.7777778 | V165: 306.9444444 | W165: 0 | X165: 17 | AA165: Mozambique | AB165: 0
B166: Efficient Heat Pump | C166: Efficient Heat Pump | D166: Residential | E166: HVAC - Heating | F166: Existing inefficient AC | G166: per heat pump | H166: 10 | I166: 3 | J166: 1.917808219 | K166: 3500 | L166: 0.7123287671 | M166: 1300 | N166: 0.3714285714 | O166: 0.3714285714 | P166: 3 | Q166: 277.7777778 | R166: 69.44444444 | T166: USD | U166: 277.7777778 | V166: 69.44444444 | W166: 0 | X166: 17 | Y166: RET | AA166: Mozambique | AB166: 0
B167: Efficient Heat Pump with VRF Technology | C167: Efficient Heat Pump with VRF Technology | D167: Residential | E167: HVAC - Cooling | F167: Existing inefficient AC | G167: per heat pump | H167: 10 | I167: 15 | J167: 1.917808219 | K167: 3500 | L167: 0.9315068493 | M167: 1700 | N167: 0.4857142857 | O167: 0.4857142857 | P167: 15 | Q167: 555.5555556 | R167: 347.2222222 | T167: USD | U167: 555.5555556 | V167: 347.2222222 | W167: 0 | X167: 17 | Y167: NC | AA167: Mozambique | AB167: 0
B168: High Performance New Homes | C168: High Performance New Homes | D168: Residential | E168: HVAC - Cooling | F168: ~2.8 COP AC | G168: per unit | H168: 12 | I168: 15 | J168: 0.969841349 | K168: 94564.07198 | L168: 0.1018333416 | M168: 4018.303342 | N168: 0.105 | O168: 0.15 | P168: 15 | Q168: 0 | R168: 2000 | T168: USD | U168: 0 | V168: 2000 | W168: 0 | X168: 17 | Y168: NC | AA168: Mozambique | AB168: 0
B169: Unitary (console) and Split Type AC (<7 kW) - COP >= 2.5 | C169: Unitary (console) and Split Type AC (<7 kW) - COP >= 2.5 | D169: Residential | E169: HVAC - Cooling | F169: Standard cooling equipment COP | I169: 2 | P169: 2 | Q169: 0 | R169: 0 | T169: USD | U169: 0 | V169: 0 | W169: 0 | X169: 17 | AA169: Mozambique | AB169: 0
B170: Air Sealing - whole home | C170: Air sealing | D170: Residential | E170: Other | F170: 0.5 ACH | G170: per CFM | H170: 15 | I170: 9 | J170: 0.969841349 | K170: 26788.68895 | L170: 0.5976842105 | M170: 2121.078765 | N170: 0.07917814753 | O170: 0.07917814753 | P170: 9 | Q170: 0 | R170: 2000 | T170: USD | U170: 0 | V170: 2000 | W170: 0 | X170: 17 | Y170: RET | AA170: Mozambique | AB170: 0
B171: Window Shade | C171: Window External Shading Mechanism | D171: Residential | E171: Other | F171: No window shading mechanism | G171: per sqft | H171: 10 | I171: 2 | J171: 0.969841349 | K171: 26788.68895 | L171: 0.0183300015 | M171: 723.2946015 | N171: 0.0189 | O171: 0.027 | P171: 2 | Q171: 3 | R171: 0 | T171: USD | U171: 3 | V171: 0 | W171: 0 | X171: 17 | Y171: RET | AA171: Mozambique | AB171: 0
B172: Roof Insulation R-19 | C172: Roof Insulation - R-Value = 3.0 m2K/W | D172: Residential | E172: Other | F172: No roof insulation | G172: per sqft | H172: 25 | I172: 2 | J172: 0.969841349 | K172: 26788.68895 | L172: 0.06295152029 | M172: 2484.042066 | N172: 0.06490909091 | O172: 0.09272727273 | P172: 2 | Q172: 90.27777778 | R172: 0 | T172: USD | U172: 90.27777778 | V172: 0 | W172: 0 | X172: 17 | Y172: RET | AA172: Mozambique | AB172: 0
B173: Double Glazed Windows U-Value = 3.41 W/m2K and SHGC = 0.27 | C173: Double Glazed Windows with aluminum/steel framing: U-Value = 3.41 W/m2K and SHGC = 0.27 | D173: Residential | E173: Other | F173: Single - Clear Windows: U-Value = 4.9 W/m2K and SHGC = 0.66 | G173: per sqft | H173: 25 | I173: 2 | J173: 0.969841349 | K173: 26788.68895 | L173: 0.1283100105 | M173: 5063.062211 | N173: 0.1323 | O173: 0.189 | P173: 2 | Q173: 112 | R173: 57 | T173: USD | U173: 112 | V173: 57 | W173: 0 | X173: 17 | Y173: RET | AA173: Mozambique | AB173: 0
B174: Double Glazed Windows U-Value = 1.99 W/m2K and SHGC = 0.3 | C174: Double Glazed Windows with Timber/PVCu/Aluminum thermal break framing: U-Value = 1.99 W/m2K and SHGC = 0.3 | D174: Residential | E174: Other | F174: Single - Clear Windows: U-Value = 4.9 W/m2K and SHGC = 0.66 | G174: per sqft | H174: 25 | I174: 2 | J174: 0.969841349 | K174: 26788.68895 | L174: 0.09165000748 | M174: 3616.473008 | N174: 0.0945 | O174: 0.135 | P174: 2 | Q174: 123.2 | R174: 68.2 | T174: USD | U174: 123.2 | V174: 68.2 | W174: 0 | X174: 17 | Y174: RET | AA174: Mozambique | AB174: 0
B175: Double Glazed Windows low E U-Value = 1.8 W/m2K and SHGC = 0.4 | C175: Double Glazed Windows with low E coating and Timber/PVCu/Aluminum thermal break framing: U-Value = 1.8 W/m2K and SHGC = 0.4 | D175: Residential | E175: Other | F175: Single - Clear Windows: U-Value = 4.9 W/m2K and SHGC = 0.66 | G175: per sqft | H175: 25 | I175: 2 | J175: 0.969841349 | K175: 26788.68895 | L175: 0.07332000598 | M175: 2893.178406 | N175: 0.0756 | O175: 0.108 | P175: 2 | Q175: 134.4 | R175: 79.4 | T175: USD | U175: 134.4 | V175: 79.4 | W175: 0 | X175: 17 | Y175: RET | AA175: Mozambique | AB175: 0
B176: Res CFL Lighting | C176: Efficient Lighting Fixtures: CFLs | D176: Residential | E176: Lighting | F176: Incandescent | G176: per fixture | H176: 11 | I176: 3 | J176: 0.06 | K176: 87.6 | L176: 0.047 | M176: 68.62 | N176: 0.7833333333 | O176: 0.7833333333 | P176: 3 | Q176: 1.232 | R176: 0.982 | T176: USD | U176: 1.232 | V176: 0.982 | W176: 0 | X176: 17 | Y176: RET | AA176: Mozambique | AB176: 0
B177: Res LED Lighting | C177: Efficient Lighting Fixtures: LEDs | D177: Residential | E177: Lighting | F177: Incandescent | G177: per bulb | H177: 20 | I177: 3 | J177: 0.06 | K177: 87.6 | L177: 0.051 | M177: 74.46 | N177: 0.85 | O177: 0.85 | P177: 3 | Q177: 5.187 | R177: 4.937 | T177: USD | U177: 5.187 | V177: 4.937 | W177: 0 | X177: 17 | Y177: RET | AA177: Mozambique | AB177: 0
B178: Low Flow Showerhead | C178: Low-Flow Showerheads (1.5 GPM) | D178: Residential | E178: Water Heating | F178: Standard flow showerhead (2.67 GPM) | G178: per fixture | H178: 10 | I178: 16 | J178: 0.3772682847 | K178: 10420.8 | L178: 0.03019337748 | M178: 327.9599497 | N178: 0.08003158151 | O178: 0.03147166722 | P178: 16 | Q178: 0 | R178: 12 | T178: USD | U178: 0 | V178: 12 | W178: 0 | X178: 17 | Y178: RET | AA178: Mozambique | AB178: 0
B179: Tankless Water Heater (in-line electric) | C179: Efficient Water Heater Electric EF => 0.95 | D179: Residential | E179: Water Heating | F179: electric storage water heater with 50 or more gallon capacity in input wattage between 12kW and 54kW. | G179: per gallon | H179: 15 | I179: 4 | J179: 0.3772682847 | K179: 10420.8 | L179: 0.009431707119 | M179: 260.52 | N179: 0.025 | O179: 0.025 | P179: 4 | Q179: 208.3333333 | R179: 69.44444444 | T179: USD | U179: 208.3333333 | V179: 69.44444444 | W179: 0 | X179: 17 | Y179: RET | AA179: Mozambique | AB179: 0
B180: Drain Water Heat Recovery | C180: Drain Water Heat Recovery | D180: Residential | E180: Water Heating | F180: drain without heat recovery | G180: per unit | H180: 25 | I180: 2 | L180: N/A | M180: 1041.723512 | P180: 2 | Q180: 660 | R180: 0 | T180: USD | U180: 660 | V180: 0 | W180: 0 | X180: 17 | Y180: NC | AA180: Mozambique | AB180: 0
B181: Solar Hot Water Heater with controller - Res | C181: Solar Hot Water Heater | D181: Residential | E181: Water Heating | F181: Electric resistance water heater | H181: 15 | I181: 2 | J181: 0.3772682847 | K181: 10420.8 | L181: 0.283255322 | M181: 7824 | N181: 0.7508060801 | O181: 0.7508060801 | P181: 2 | Q181: 1229.166667 | R181: 1090.277778 | T181: USD | U181: 1229.166667 | V181: 1090.277778 | W181: 0 | X181: 17 | Y181: RET | AA181: Mozambique | AB181: 0
B182: Tank Insulation | C182: Hot Water Heater (Geyser) Tank Insulation - R-Value = 2.0 m2K/W | D182: Residential | E182: Water Heating | F182: Uninsulated hot water heater tank | G182: per ft insulation | H182: 5 | I182: 2 | J182: 0.3772682847 | K182: 10420.8 | L182: 0.009123254237 | M182: 360 | N182: 0.02418240442 | O182: 0.03454629203 | P182: 2 | Q182: 20.83333333 | R182: 0 | T182: USD | U182: 20.83333333 | V182: 0 | W182: 0 | X182: 17 | Y182: RET | AA182: Mozambique | AB182: 0
B183: Heat Pump Hot Water Heater | C183: Heat Pump Hot Water Heater | D183: Residential | E183: Water Heating | F183: Electric resistance water heater | G183: per heater | H183: 15 | I183: 2 | J183: 0.3772682847 | K183: 10420.8 | L183: 0.2371611661 | M183: 6550.8 | N183: 0.6286273607 | O183: 0.6286273607 | P183: 2 | Q183: 486.1111111 | R183: 347.2222222 | T183: USD | U183: 486.1111111 | V183: 347.2222222 | W183: 0 | X183: 17 | Y183: RET | AA183: Mozambique | AB183: 0
U184: 0 | V184: 0 | W184: 0 | AB184: 0
U185: 0 | V185: 0 | W185: 0 | AB185: 0
U186: 0 | V186: 0 | W186: 0 | AB186: 0
B187: Efficient Lighting Fixtures: LEDs | D187: Residential | E187: Lighting | H187: 20 | I187: 77 | M187: 11 | O187: 0.35 | P187: 77 | R187: 2.34 | T187: USD | U187: 0 | V187: 2.34 | W187: 0 | X187: 77,93,94 | AA187: Kazakhstan | AB187: 0
B188: Solar Hot Water Heater | D188: Residential | E188: Water Heating | H188: 15 | I188: 76 | M188: 2162.321511 | O188: 0.7508060801 | P188: 76 | R188: 1222.354197 | T188: USD | U188: 0 | V188: 1222.354197 | W188: 0 | X188: 76,93,94 | AA188: Kazakhstan | AB188: 0
B189: Heat Pump Hot Water Heater | D189: Residential | E189: Water Heating | H189: 15 | I189: 76 | M189: 1810.446799 | O189: 0.6286273607 | P189: 76 | R189: 345.5067583 | T189: USD | U189: 0 | V189: 345.5067583 | W189: 0 | X189: 76,93,94 | AA189: Kazakhstan | AB189: 0
B190: Efficient Water Heater Electric EF => 0.95 | D190: Residential | E190: Water Heating | H190: 15 | I190: 78 | M190: 72 | O190: 0.025 | P190: 78 | R190: 77.85695523 | T190: USD | U190: 0 | V190: 77.85695523 | W190: 0 | X190: 78 | AA190: Kazakhstan | AB190: 0
B191: Low-Flow Showerheads (1.5 GPM) | D191: Residential | E191: Water Heating | H191: 10 | I191: 90 | M191: 90.63840159 | O191: 0.03147166722 | P191: 90 | R191: 9.562328036 | T191: USD | U191: 0 | V191: 9.562328036 | W191: 0 | X191: 90 | AA191: Kazakhstan | AB191: 0
B192: Hot Water Heater (Geyser) Tank Insulation - R-Value = 2.0 m2K/W | D192: Residential | E192: Water Heating | H192: 5 | I192: 76 | M192: 99.49332105 | O192: 0.03454629203 | P192: 76 | R192: 25.11464269 | T192: USD | U192: 0 | V192: 25.11464269 | W192: 0 | X192: 76 | AA192: Kazakhstan | AB192: 0
B193: Efficient Heat Pump | D193: Residential | E193: HVAC - Heating | H193: 10 | I193: 77 | M193: 6700.429269 | O193: 0.6204101175 | P193: 77 | R193: 475 | T193: USD | U193: 0 | V193: 475 | W193: 0 | X193: 77 | AA193: Kazakhstan | AB193: 0
B194: Efficient Heat Pump with VRF Technology | D194: Residential | E194: HVAC - Heating | H194: 10 | I194: 89 | M194: 6979.982829 | O194: 0.6462947064 | P194: 89 | R194: 875 | T194: USD | U194: 0 | V194: 875 | W194: 0 | X194: 89 | AA194: Kazakhstan | AB194: 0
B195: A+ labeling compliant Refrigerator (250-300 L) | D195: Residential | E195: Appliances | H195: 15 | I195: 76 | M195: 219 | O195: 0.4147727273 | P195: 76 | R195: 306.7161823 | T195: USD | U195: 0 | V195: 306.7161823 | W195: 0 | X195: 76 | AA195: Kazakhstan | AB195: 0
B196: Air Sealing - whole home | D196: Residential | E196: HVAC - Heating | H196: 15 | I196: 83 | M196: 2121 | O196: 0.08217430166 | P196: 83 | R196: 1584.934517 | T196: USD | U196: 0 | V196: 1584.934517 | W196: 0 | X196: 83 | AA196: Kazakhstan | AB196: 0
B197: Wall Insulation R-11 | D197: Residential | E197: HVAC - Heating | H197: 25 | I197: 76 | M197: 590.4314495 | O197: 0.02851320022 | P197: 76 | R197: 71.54218307 | T197: USD | U197: 0 | V197: 71.54218307 | W197: 0 | X197: 76 | AA197: Kazakhstan | AB197: =SUM(AA197=CountrySelect,AB196) -> 0
B198: Roof Insulation R-19 | D198: Residential | E198: HVAC - Heating | H198: 25 | I198: 76 | M198: 2484 | O198: 0.04717321786 | P198: 76 | R198: 71.54218307 | T198: USD | U198: 0 | V198: 71.54218307 | W198: 0 | X198: 76 | AA198: Kazakhstan | AB198: 0
B199: Double Glazed Windows low E U-Value = 1.8 W/m2K | D199: Residential | E199: HVAC - Heating | H199: 25 | I199: 76 | M199: 2893 | O199: 0.04829214339 | P199: 76 | R199: 122.6864729 | T199: USD | U199: 0 | V199: 122.6864729 | W199: 0 | X199: 76 | AA199: Kazakhstan | AB199: 0
B200: Install building level heat management and metering | D200: District Heating | E200: Residential | H200: 15 | I200: 92 | M200: 103938 | O200: 0.2 | P200: 92 | R200: 21000 | T200: USD | U200: 0 | V200: 21000 | W200: 0 | X200: 92 | AA200: Kazakhstan | AB200: 0
B201: Installation of balancing valves and thermostats on radiators | D201: District Heating | E201: Residential | I201: 92 | P201: 92 | T201: USD | U201: 0 | V201: 0 | W201: 0 | X201: 92 | AA201: Kazakhstan | AB201: 0
B202: T8 Lighting | D202: Commercial | E202: Lighting | H202: 13 | I202: 75 | M202: 181 | O202: 0.13 | P202: 75 | R202: 7.521297005 | T202: USD | U202: 0 | V202: 7.521297005 | W202: 0 | X202: 75 | AA202: Kazakhstan | AB202: 0
... 2048 more rows

Sheet Default AI – Country DB (hidden)
B2: Energy Efficiency Opportunity Assessment
C5: South Africa
C6: Technical Line Loss Rate | E6: 0.07
C7: Marginal Grid Electricity Emission Factor (gCO2e/kWh) | E7: 954.53
Q10: Residential Energy Use | AM10: Commercial Energy Use | BI10: Industrial Energy Use | CE10: Not Used Energy Use
C11: Price of Electricity | D11: USD/kWh | E11: End-User Discount Rate
C12: Residential | D12: 0.09 | E12: 0.07 | Q12: Annual Energy Data | R12: Units | S12: 2016 | T12: 2017 | U12: 2018 | V12: 2019 | W12: 2020 | X12: 2021 | Y12: 2022 | Z12: 2023 | AA12: 2024 | AB12: 2025 | AC12: 2026 | AD12: 2027 | AE12: 2028 | AF12: 2029 | AG12: 2030 | AM12: Annual Energy Data | AN12: Units | AO12: 2016 | AP12: 2017 | AQ12: 2018 | AR12: 2019 | AS12: 2020 | AT12: 2021 | AU12: 2022 | AV12: 2023 | AW12: 2024 | AX12: 2025 | AY12: 2026 | AZ12: 2027 | BA12: 2028 | BB12: 2029 | BC12: 2030 | BI12: Annual Energy Data | BJ12: Units | BK12: 2016 | BL12: 2017 | BM12: 2018 | BN12: 2019 | BO12: 2020 | BP12: 2021 | BQ12: 2022 | BR12: 2023 | BS12: 2024 | BT12: 2025 | BU12: 2026 | BV12: 2027 | BW12: 2028 | BX12: 2029 | BY12: 2030 | CE12: Annual Energy Data | CF12: Units | CG12: 2016 | CH12: 2017 | CI12: 2018 | CJ12: 2019 | CK12: 2020 | CL12: 2021 | CM12: 2022 | CN12: 2023 | CO12: 2024 | CP12: 2025 | CQ12: 2026 | CR12: 2027 | CS12: 2028 | CT12: 2029 | CU12: 2030
C13: Commercial | D13: 0.15 | E13: 0.07 | Q13: Total Consumption | R13: GWh | S13: 38645 | AM13: Total Consumption | AN13: GWh | AO13: 28086 | BI13: Total Consumption | BJ13: GWh | BK13: 116499 | CE13: Total Consumption | CF13: GWh
C14: Industrial | D14: 0.08 | E14: 0.07 | Q14: Peak Demand - Total | R14: MW | S14: 12241 | AM14: Peak Demand - Total | AN14: MW | AO14: 3497 | BI14: Peak Demand - Total | BJ14: MW | BK14: 17138 | CE14: Peak Demand - Total | CF14: MW
C15: Not Used
Q17: Residential Energy Use by End-Use | AM17: Commercial Energy Use by End-Use | BI17: Industrial Energy Use by End-Use | CE17: Not Used Energy Use by End-Use
C18: Payback Acceptance Assumptions
C19: Sector | E19: Residential | G19: Commercial | I19: Industrial | K19: Not Used | S19: Consumption % Share | AO19: Consumption % Share | BK19: Consumption % Share | CG19: Consumption % Share
D20: Payback Period | E20: Acceptance Rate | F20: Payback Period | G20: Acceptance Rate | H20: Payback Period | I20: Acceptance Rate | J20: Payback Period | K20: Acceptance Rate | Q20: End Use | R20: Coincidence Factor % | S20: 2016 | T20: 2017 | U20: 2018 | V20: 2019 | W20: 2020 | X20: 2021 | Y20: 2022 | Z20: 2023 | AA20: 2024 | AB20: 2025 | AC20: 2026 | AD20: 2027 | AE20: 2028 | AF20: 2029 | AG20: 2030 | AM20: End Use | AN20: Coincidence Factor % | AO20: 2016 | AP20: 2017 | AQ20: 2018 | AR20: 2019 | AS20: 2020 | AT20: 2021 | AU20: 2022 | AV20: 2023 | AW20: 2024 | AX20: 2025 | AY20: 2026 | AZ20: 2027 | BA20: 2028 | BB20: 2029 | BC20: 2030 | BI20: End Use | BJ20: Coincidence Factor % | BK20: 2016 | BL20: 2017 | BM20: 2018 | BN20: 2019 | BO20: 2020 | BP20: 2021 | BQ20: 2022 | BR20: 2023 | BS20: 2024 | BT20: 2025 | BU20: 2026 | BV20: 2027 | BW20: 2028 | BX20: 2029 | BY20: 2030 | CE20: End Use | CF20: Coincidence Factor % | CG20: 2016 | CH20: 2017 | CI20: 2018 | CJ20: 2019 | CK20: 2020 | CL20: 2021 | CM20: 2022 | CN20: 2023 | CO20: 2024 | CP20: 2025 | CQ20: 2026 | CR20: 2027 | CS20: 2028 | CT20: 2029 | CU20: 2030
Q21: Appliances | R21: 1 | S21: 0.101 | AM21: Appliances | AN21: 0.8419767142 | AO21: 0.184 | BI21: Appliances | BJ21: 0.6963505171 | BK21: 0.0637
Q22: HVAC - Cooling | R22: 0.9 | S22: 0 | AM22: HVAC - Cooling | AN22: 0.8429204486 | AO22: 0 | BI22: HVAC - Cooling | BJ22: 0.7503781953 | BK22: 0.0095
Q23: HVAC - Heating | R23: 0.8 | S23: 0.05 | AM23: HVAC - Heating | AN23: 0.8025089998 | AO23: 0.239 | BI23: HVAC - Heating | BJ23: 0.7836512645 | BK23: 0
Q24: Lighting | R24: 0.25 | S24: 0.168 | AM24: Lighting | AN24: 0.5061644083 | AO24: 0.286 | BI24: Lighting | BJ24: 0.7640142325 | BK24: 0.076
Q25: Other | R25: 1 | S25: 0.098 | AM25: Other | AN25: 0.9032427259 | AO25: 0.146 | BI25: Other | BJ25: 0.8302607165 | BK25: 0.1904
C26: Unit of Payback Period | Q26: Pumps | R26: 1 | S26: 0.024 | AM26: Pumps | AN26: 0.8926447293 | AO26: 0.004 | BI26: Pumps | BJ26: 0.7873057369 | BK26: 0.1311
Q27: Refrigeration | R27: 0.8 | S27: 0.17 | AM27: Refrigeration | AN27: 0.9136959946 | AO27: 0.104 | BI27: Refrigeration | BJ27: 0.7129729278 | BK27: 0
Q28: Water Heating | R28: 0.8 | S28: 0.389 | AM28: Water Heating | AN28: 1 | AO28: 0.037 | BI28: Water Heating | BJ28: 0.831789784 | BK28: 0.0112
C29: USD Exchange | D29: Exchange Rate | BI29: Compressors | BJ29: 0.6410063259 | BK29: 0.1212
C30: USD | D30: 1 | BI30: Fans | BJ30: 1 | BK30: 0
C31: EUR | D31: 0.95 | BI31: Motors | BJ31: 0.8791911715 | BK31: 0.1065
C32: RAND | D32: 14.4 | BI32: Plug Loads & Other | BJ32: 0.8012817882 | BK32: 0
C33: FRC | D33: 14.4 | BI33: Process Cooling | BJ33: 0 | BK33: 0.0915
C34: RCM | D34: 14.4 | BI34: Process Heating | BJ34: 0 | BK34: 0.1989
Q36: Total | R36: =SUM(R21:R35) -> 6.55 | S36: =SUM(S21:S35) -> 1 | T36: 0 | U36: 0 | V36: 0 | W36: 0 | X36: 0 | Y36: 0 | Z36: 0 | AA36: 0 | AB36: 0 | AC36: 0 | AD36: 0 | AE36: 0 | AF36: 0 | AG36: 0 | AM36: Total | AN36: =SUM(AN21:AN35) -> 6.703154021 | AO36: =SUM(AO21:AO35) -> 1 | AP36: 0 | AQ36: 0 | AR36: 0 | AS36: 0 | AT36: 0 | AU36: 0 | AV36: 0 | AW36: 0 | AX36: 0 | AY36: 0 | AZ36: 0 | BA36: 0 | BB36: 0 | BC36: 0 | BI36: Total | BJ36: =SUM(BJ21:BJ35) -> 9.47820266 | BK36: =SUM(BK21:BK35) -> 1 | BL36: 0 | BM36: 0 | BN36: 0 | BO36: 0 | BP36: 0 | BQ36: 0 | BR36: 0 | BS36: 0 | BT36: 0 | BU36: 0 | BV36: 0 | BW36: 0 | BX36: 0 | BY36: 0 | CE36: Total | CF36: =SUM(CF21:CF35) -> 0 | CG36: =SUM(CG21:CG35) -> 0 | CH36: 0 | CI36: 0 | CJ36: 0 | CK36: 0 | CL36: 0 | CM36: 0 | CN36: 0 | CO36: 0 | CP36: 0 | CQ36: 0 | CR36: 0 | CS36: 0 | CT36: 0 | CU36: 0
C41: Mozambique
C42: Technical Line Loss Rate | E42: 0.09
C43: Marginal Grid Electricity Emission Factor (gCO2e/kWh) | E43: 713.79
Q46: Residential Energy Use | AM46: Commercial Energy Use | BI46: Industrial Energy Use | CE46: Not Used Energy Use
C47: Price of Electricity | D47: USD/kWh | E47: End-User Discount Rate
C48: Residential | D48: 0.04 | E48: 0.07 | Q48: Annual Energy Data | R48: Units | S48: 2016 | T48: 2017 | U48: 2018 | V48: 2019 | W48: 2020 | X48: 2021 | Y48: 2022 | Z48: 2023 | AA48: 2024 | AB48: 2025 | AC48: 2026 | AD48: 2027 | AE48: 2028 | AF48: 2029 | AG48: 2030 | AM48: Annual Energy Data | AN48: Units | AO48: 2016 | AP48: 2017 | AQ48: 2018 | AR48: 2019 | AS48: 2020 | AT48: 2021 | AU48: 2022 | AV48: 2023 | AW48: 2024 | AX48: 2025 | AY48: 2026 | AZ48: 2027 | BA48: 2028 | BB48: 2029 | BC48: 2030 | BI48: Annual Energy Data | BJ48: Units | BK48: 2016 | BL48: 2017 | BM48: 2018 | BN48: 2019 | BO48: 2020 | BP48: 2021 | BQ48: 2022 | BR48: 2023 | BS48: 2024 | BT48: 2025 | BU48: 2026 | BV48: 2027 | BW48: 2028 | BX48: 2029 | BY48: 2030 | CE48: Annual Energy Data | CF48: Units | CG48: 2016 | CH48: 2017 | CI48: 2018 | CJ48: 2019 | CK48: 2020 | CL48: 2021 | CM48: 2022 | CN48: 2023 | CO48: 2024 | CP48: 2025 | CQ48: 2026 | CR48: 2027 | CS48: 2028 | CT48: 2029 | CU48: 2030
C49: Commercial | D49: 0.02 | E49: 0.07 | Q49: Total Consumption | R49: GWh | S49: 1233 | AM49: Total Consumption | AN49: GWh | AO49: 264 | BI49: Total Consumption | BJ49: GWh | BK49: 1175 | CE49: Total Consumption | CF49: GWh
C50: Industrial | D50: 0.02 | E50: 0.07 | Q50: Peak Demand - Total | R50: MW | S50: 319.4 | AM50: Peak Demand - Total | AN50: MW | AO50: 68.4 | BI50: Peak Demand - Total | BJ50: MW | BK50: 304.5 | CE50: Peak Demand - Total | CF50: MW
C51: Not Used
Q53: Residential Energy Use by End-Use | AM53: Commercial Energy Use by End-Use | BI53: Industrial Energy Use by End-Use | CE53: Not Used Energy Use by End-Use
C54: Payback Acceptance Assumptions
C55: Sector | E55: Residential | G55: Commercial | I55: Industrial | K55: Not Used | S55: Consumption % Share | AO55: Consumption % Share | BK55: Consumption % Share | CG55: Consumption % Share
D56: Payback Period | E56: Acceptance Rate | F56: Payback Period | G56: Acceptance Rate | H56: Payback Period | I56: Acceptance Rate | J56: Payback Period | K56: Acceptance Rate | Q56: End Use | R56: Coincidence Factor % | S56: 2016 | T56: 2017 | U56: 2018 | V56: 2019 | W56: 2020 | X56: 2021 | Y56: 2022 | Z56: 2023 | AA56: 2024 | AB56: 2025 | AC56: 2026 | AD56: 2027 | AE56: 2028 | AF56: 2029 | AG56: 2030 | AM56: End Use | AN56: Coincidence Factor % | AO56: 2016 | AP56: 2017 | AQ56: 2018 | AR56: 2019 | AS56: 2020 | AT56: 2021 | AU56: 2022 | AV56: 2023 | AW56: 2024 | AX56: 2025 | AY56: 2026 | AZ56: 2027 | BA56: 2028 | BB56: 2029 | BC56: 2030 | BI56: End Use | BJ56: Coincidence Factor % | BK56: 2016 | BL56: 2017 | BM56: 2018 | BN56: 2019 | BO56: 2020 | BP56: 2021 | BQ56: 2022 | BR56: 2023 | BS56: 2024 | BT56: 2025 | BU56: 2026 | BV56: 2027 | BW56: 2028 | BX56: 2029 | BY56: 2030 | CE56: End Use | CF56: Coincidence Factor % | CG56: 2016 | CH56: 2017 | CI56: 2018 | CJ56: 2019 | CK56: 2020 | CL56: 2021 | CM56: 2022 | CN56: 2023 | CO56: 2024 | CP56: 2025 | CQ56: 2026 | CR56: 2027 | CS56: 2028 | CT56: 2029 | CU56: 2030
Q57: Appliances | R57: 0.6963505171 | S57: 0.101 | AM57: Appliances | AN57: 0.6963505171 | AO57: 0.184 | BI57: Appliances | BJ57: 0.6963505171 | BK57: 0.0637
Q58: HVAC - Cooling | R58: 0.7503781953 | S58: 0 | AM58: HVAC - Cooling | AN58: 0.7503781953 | AO58: 0 | BI58: HVAC - Cooling | BJ58: 0.7503781953 | BK58: 0.0095
Q59: HVAC - Heating | R59: 0.7836512645 | S59: 0.05 | AM59: HVAC - Heating | AN59: 0.7836512645 | AO59: 0.239 | BI59: HVAC - Heating | BJ59: 0.7836512645 | BK59: 0
Q60: Lighting | R60: 0.7640142325 | S60: 0.168 | AM60: Lighting | AN60: 0.7640142325 | AO60: 0.286 | BI60: Lighting | BJ60: 0.7640142325 | BK60: 0.076
Q61: Other | R61: 0.8302607165 | S61: 0.098 | AM61: Other | AN61: 0.8302607165 | AO61: 0.146 | BI61: Other | BJ61: 0.8302607165 | BK61: 0.1904
C62: Unit of Payback Period | Q62: Pumps | R62: 0.7873057369 | S62: 0.024 | AM62: Pumps | AN62: 0.7873057369 | AO62: 0.004 | BI62: Pumps | BJ62: 0.7873057369 | BK62: 0.1311
Q63: Refrigeration | R63: 0.7129729278 | S63: 0.17 | AM63: Refrigeration | AN63: 0.7129729278 | AO63: 0.104 | BI63: Refrigeration | BJ63: 0.7129729278 | BK63: 0
Q64: Water Heating | R64: 0.831789784 | S64: 0.389 | AM64: Water Heating | AN64: 0.831789784 | AO64: 0.037 | BI64: Water Heating | BJ64: 0.831789784 | BK64: 0.0112
C65: USD Exchange | D65: Exchange Rate | BI65: Compressors | BJ65: 0.6410063259 | BK65: 0.1212
C66: USD | D66: 1 | BI66: Fans | BJ66: 1 | BK66: 0
C67: EUR | D67: 0.95 | BI67: Motors | BJ67: 0.8791911715 | BK67: 0.1065
C68: RAND | D68: 14.4 | BI68: Plug Loads & Other | BJ68: 0.8012817882 | BK68: 0
C69: FRC | D69: 14.4 | BI69: Process Cooling | BJ69: 0 | BK69: 0.0915
C70: RCM | D70: 14.4 | BI70: Process Heating | BJ70: 0 | BK70: 0.1989
Q72: Total | R72: =SUM(R57:R71) -> 6.156723375 | S72: =SUM(S57:S71) -> 1 | T72: 0 | U72: 0 | V72: 0 | W72: 0 | X72: 0 | Y72: 0 | Z72: 0 | AA72: 0 | AB72: 0 | AC72: 0 | AD72: 0 | AE72: 0 | AF72: 0 | AG72: 0 | AM72: Total | AN72: =SUM(AN57:AN71) -> 6.156723375 | AO72: =SUM(AO57:AO71) -> 1 | AP72: 0 | AQ72: 0 | AR72: 0 | AS72: 0 | AT72: 0 | AU72: 0 | AV72: 0 | AW72: 0 | AX72: 0 | AY72: 0 | AZ72: 0 | BA72: 0 | BB72: 0 | BC72: 0 | BI72: Total | BJ72: =SUM(BJ57:BJ71) -> 9.47820266 | BK72: =SUM(BK57:BK71) -> 1 | BL72: 0 | BM72: 0 | BN72: 0 | BO72: 0 | BP72: 0 | BQ72: 0 | BR72: 0 | BS72: 0 | BT72: 0 | BU72: 0 | BV72: 0 | BW72: 0 | BX72: 0 | BY72: 0 | CE72: Total | CF72: =SUM(CF57:CF71) -> 0 | CG72: =SUM(CG57:CG71) -> 0 | CH72: 0 | CI72: 0 | CJ72: 0 | CK72: 0 | CL72: 0 | CM72: 0 | CN72: 0 | CO72: 0 | CP72: 0 | CQ72: 0 | CR72: 0 | CS72: 0 | CT72: 0 | CU72: 0
C77: Uganda
C78: Technical Line Loss Rate | E78: 0.13
C79: Marginal Grid Electricity Emission Factor (gCO2e/kWh)
Q82: OGU Res Energy Use | AM82: OGR Res Energy Use | BI82: Commercial Energy Use | CE82: Industrial Energy Use
C83: Price of Electricity | D83: USD/kWh | E83: End-User Discount Rate
C84: OGU Res | D84: 0.18 | E84: 0.07 | Q84: Annual Energy Data | R84: Units | S84: 2016 | T84: 2017 | U84: 2018 | V84: 2019 | W84: 2020 | X84: 2021 | Y84: 2022 | Z84: 2023 | AA84: 2024 | AB84: 2025 | AC84: 2026 | AD84: 2027 | AE84: 2028 | AF84: 2029 | AG84: 2030 | AM84: Annual Energy Data | AN84: Units | AO84: 2016 | AP84: 2017 | AQ84: 2018 | AR84: 2019 | AS84: 2020 | AT84: 2021 | AU84: 2022 | AV84: 2023 | AW84: 2024 | AX84: 2025 | AY84: 2026 | AZ84: 2027 | BA84: 2028 | BB84: 2029 | BC84: 2030 | BI84: Annual Energy Data | BJ84: Units | BK84: 2016 | BL84: 2017 | BM84: 2018 | BN84: 2019 | BO84: 2020 | BP84: 2021 | BQ84: 2022 | BR84: 2023 | BS84: 2024 | BT84: 2025 | BU84: 2026 | BV84: 2027 | BW84: 2028 | BX84: 2029 | BY84: 2030 | CE84: Annual Energy Data | CF84: Units | CG84: 2016 | CH84: 2017 | CI84: 2018 | CJ84: 2019 | CK84: 2020 | CL84: 2021 | CM84: 2022 | CN84: 2023 | CO84: 2024 | CP84: 2025 | CQ84: 2026 | CR84: 2027 | CS84: 2028 | CT84: 2029 | CU84: 2030
C85: OGR Res | D85: 0.18 | E85: 0.07 | Q85: Total Consumption | R85: GWh | S85: 508.2379931 | T85: 511.2602559 | U85: 562.2701979 | V85: 618.1418682 | W85: 679.3257847 | X85: 746.3128627 | Y85: 819.6379532 | Z85: 899.8836856 | AA85: 987.6846402 | AB85: 1083.73188 | AC85: 1188.777872 | AD85: 1303.641825 | AE85: 1429.215492 | AF85: 1566.469465 | AG85: 1716.460005 | AM85: Total Consumption | AN85: GWh | AO85: 83 | AP85: 93.85134219 | AQ85: 107.930365 | AR85: 123.5230174 | AS85: 140.769562 | AT85: 159.822838 | AU85: 180.8493639 | AV85: 204.0305328 | AW85: 229.5639123 | AX85: 257.6646552 | AY85: 288.5670308 | AZ85: 322.5260887 | BA85: 359.8194633 | BB85: 400.7493344 | BC85: 445.644554 | BI85: Total Consumption | BJ85: GWh | BK85: 658.0654989 | BL85: 716.0813489 | BM85: 780.7275818 | BN85: 830.4554533 | BO85: 881.8409205 | BP85: 938.1991748 | BQ85: 996.2150248 | BR85: 1054.230875 | BS85: 1112.246725 | BT85: 1171.920171 | BU85: 1231.593616 | BV85: 1292.924658 | BW85: 1354.255699 | BX85: 1417.244336 | BY85: 1480.232974 | CE85: Total Consumption | CF85: GWh | CG85: 1407.966008 | CH85: 1532.093994 | CI85: 1670.408035 | CJ85: 1776.803451 | CK85: 1886.745381 | CL85: 2007.326853 | CM85: 2131.454838 | CN85: 2255.582824 | CO85: 2379.710809 | CP85: 2507.385309 | CQ85: 2635.059808 | CR85: 2766.280822 | CS85: 2897.501835 | CT85: 3032.269362 | CU85: 3167.036889
C86: Commercial | D86: 0.14 | E86: 0.07 | Q86: Peak Demand - Total | R86: MW | S86: 89.25851653 | T86: 89.85241755 | U86: 98.81725798 | V86: 108.6365322 | W86: 119.3894173 | X86: 131.1621903 | Y86: 144.0488494 | Z86: 158.1517901 | AA86: 173.5825378 | AB86: 190.4625449 | AC86: 208.9240548 | AD86: 229.1110412 | AE86: 251.180227 | AF86: 275.3021907 | AG86: 301.6625668 | AM86: Peak Demand - Total | AN86: MW | AO86: 18 | AP86: 21.42724707 | AQ86: 24.64163584 | AR86: 28.20160216 | AS86: 32.1391694 | AT86: 36.48923243 | AU86: 41.2898091 | AV86: 46.58231342 | AW86: 52.41185213 | AX86: 58.82754685 | AY86: 65.88288376 | AZ86: 73.6360933 | BA86: 82.15056239 | BB86: 91.49528182 | BC86: 101.745332 | BI86: Peak Demand - Total | BJ86: MW | BK86: 107.3166176 | BL86: 116.7777803 | BM86: 127.3202188 | BN86: 135.4297869 | BO86: 143.8096739 | BP86: 153.0005177 | BQ86: 162.4616805 | BR86: 171.9228433 | BS86: 181.384006 | BT86: 191.1154877 | BU86: 200.8469694 | BV86: 210.84877 | BW86: 220.8505707 | BX86: 231.1226902 | BY86: 241.3948098 | CE86: Peak Demand - Total | CF86: MW | CG86: 178.5852369 | CH86: 194.3295273 | CI86: 211.8731652 | CJ86: 225.3682713 | CK86: 239.3132142 | CL86: 254.6076678 | CM86: 270.3519582 | CN86: 286.0962486 | CO86: 301.840539 | CP86: 318.0346663 | CQ86: 334.2287935 | CR86: 350.8727577 | CS86: 367.5167218 | CT86: 384.6105229 | CU86: 401.7043239
C87: Industrial | D87: 0.11 | E87: 0.07
Q89: OGU Res Energy Use by End-Use | AM89: OGR Res Energy Use by End-Use | BI89: Commercial Energy Use by End-Use | CE89: Industrial Energy Use by End-Use
C90: Payback Acceptance Assumptions
C91: Sector | E91: OGU Res | G91: OGR Res | I91: Commercial | K91: Industrial | S91: Consumption % Share | AO91: Consumption % Share | BK91: Consumption % Share | CG91: Consumption % Share
D92: Payback Period | E92: Acceptance Rate | F92: Payback Period | G92: Acceptance Rate | H92: Payback Period | I92: Acceptance Rate | J92: Payback Period | K92: Acceptance Rate | Q92: End Use | R92: Coincidence Factor % | S92: 2016 | T92: 2017 | U92: 2018 | V92: 2019 | W92: 2020 | X92: 2021 | Y92: 2022 | Z92: 2023 | AA92: 2024 | AB92: 2025 | AC92: 2026 | AD92: 2027 | AE92: 2028 | AF92: 2029 | AG92: 2030 | AM92: End Use | AN92: Coincidence Factor % | AO92: 2016 | AP92: 2017 | AQ92: 2018 | AR92: 2019 | AS92: 2020 | AT92: 2021 | AU92: 2022 | AV92: 2023 | AW92: 2024 | AX92: 2025 | AY92: 2026 | AZ92: 2027 | BA92: 2028 | BB92: 2029 | BC92: 2030 | BI92: End Use | BJ92: Coincidence Factor % | BK92: 2016 | BL92: 2017 | BM92: 2018 | BN92: 2019 | BO92: 2020 | BP92: 2021 | BQ92: 2022 | BR92: 2023 | BS92: 2024 | BT92: 2025 | BU92: 2026 | BV92: 2027 | BW92: 2028 | BX92: 2029 | BY92: 2030 | CE92: End Use | CF92: Coincidence Factor % | CG92: 2016 | CH92: 2017 | CI92: 2018 | CJ92: 2019 | CK92: 2020 | CL92: 2021 | CM92: 2022 | CN92: 2023 | CO92: 2024 | CP92: 2025 | CQ92: 2026 | CR92: 2027 | CS92: 2028 | CT92: 2029 | CU92: 2030
Q93: Lighting | R93: 0.8 | S93: 0.3368069365 | T93: 0.3368069365 | U93: 0.3299676531 | V93: 0.3231283697 | W93: 0.3162890863 | X93: 0.309449803 | Y93: 0.3026105196 | Z93: 0.2957712362 | AA93: 0.2889319528 | AB93: 0.2820926694 | AC93: 0.2752533861 | AD93: 0.2684141027 | AE93: 0.2615748193 | AF93: 0.2547355359 | AG93: 0.2478962525 | AM93: Lighting | AN93: 0.8 | AO93: 0.4248252007 | AP93: 0.4248252007 | AQ93: 0.4181021597 | AR93: 0.4113791187 | AS93: 0.4046560777 | AT93: 0.3979330368 | AU93: 0.3912099958 | AV93: 0.3844869548 | AW93: 0.3777639139 | AX93: 0.3710408729 | AY93: 0.3643178319 | AZ93: 0.3575947909 | BA93: 0.35087175 | BB93: 0.344148709 | BC93: 0.337425668 | BI93: Commercial Air Conditioning | BJ93: 0.1 | BK93: 0.09534448618 | BL93: 0.09534448618 | BM93: 0.09907633692 | BN93: 0.1028081877 | BO93: 0.1065400384 | BP93: 0.1102718891 | BQ93: 0.1140037399 | BR93: 0.1177355906 | BS93: 0.1214674414 | BT93: 0.1251992921 | BU93: 0.1289311428 | BV93: 0.1326629936 | BW93: 0.1363948443 | BX93: 0.1401266951 | BY93: 0.1438585458 | CE93: Electro-Chemical Processes | CF93: 0.15 | CG93: 0.01786383247 | CH93: 0.01786383247 | CI93: 0.01786383247 | CJ93: 0.01786383247 | CK93: 0.01786383247 | CL93: 0.01786383247 | CM93: 0.01786383247 | CN93: 0.01786383247 | CO93: 0.01786383247 | CP93: 0.01786383247 | CQ93: 0.01786383247 | CR93: 0.01786383247 | CS93: 0.01786383247 | CT93: 0.01786383247 | CU93: 0.01786383247
Q94: TV | R94: 0.8 | S94: 0.1142543747 | T94: 0.1142543747 | U94: 0.1133212488 | V94: 0.1123881229 | W94: 0.111454997 | X94: 0.1105218711 | Y94: 0.1095887451 | Z94: 0.1086556192 | AA94: 0.1077224933 | AB94: 0.1067893674 | AC94: 0.1058562415 | AD94: 0.1049231156 | AE94: 0.1039899896 | AF94: 0.1030568637 | AG94: 0.1021237378 | AM94: TV | AN94: 0.8 | AO94: 0.1289559681 | AP94: 0.1289559681 | AQ94: 0.1280407427 | AR94: 0.1271255173 | AS94: 0.1262102918 | AT94: 0.1252950664 | AU94: 0.1243798409 | AV94: 0.1234646155 | AW94: 0.12254939 | AX94: 0.1216341646 | AY94: 0.1207189392 | AZ94: 0.1198037137 | BA94: 0.1188884883 | BB94: 0.1179732628 | BC94: 0.1170580374 | BI94: Commercial Appliances/Other | BJ94: 0.2 | BK94: 0.07650209414 | BL94: 0.07650209414 | BM94: 0.07596716371 | BN94: 0.07543223329 | BO94: 0.07489730286 | BP94: 0.07436237244 | BQ94: 0.07382744201 | BR94: 0.07329251159 | BS94: 0.07275758116 | BT94: 0.07222265074 | BU94: 0.07168772031 | BV94: 0.07115278989 | BW94: 0.07061785946 | BX94: 0.07008292904 | BY94: 0.06954799861 | CE94: HVAC | CF94: 0.15 | CG94: 0.05254050151 | CH94: 0.05254050151 | CI94: 0.05254050151 | CJ94: 0.05254050151 | CK94: 0.05254050151 | CL94: 0.05254050151 | CM94: 0.05254050151 | CN94: 0.05254050151 | CO94: 0.05254050151 | CP94: 0.05254050151 | CQ94: 0.05254050151 | CR94: 0.05254050151 | CS94: 0.05254050151 | CT94: 0.05254050151 | CU94: 0.05254050151
Q95: Refrigeration | R95: 0.25 | S95: 0.2029035725 | T95: 0.2029035725 | U95: 0.2057179678 | V95: 0.208532363 | W95: 0.2113467583 | X95: 0.2141611536 | Y95: 0.2169755488 | Z95: 0.2197899441 | AA95: 0.2226043393 | AB95: 0.2254187346 | AC95: 0.2282331299 | AD95: 0.2310475251 | AE95: 0.2338619204 | AF95: 0.2366763156 | AG95: 0.2394907109 | AM95: Refrigeration | AN95: 0.25 | AO95: 0.1658264408 | AP95: 0.1658264408 | AQ95: 0.1690278395 | AR95: 0.1722292381 | AS95: 0.1754306368 | AT95: 0.1786320354 | AU95: 0.1818334341 | AV95: 0.1850348327 | AW95: 0.1882362314 | AX95: 0.19143763 | AY95: 0.1946390286 | AZ95: 0.1978404273 | BA95: 0.2010418259 | BB95: 0.2042432246 | BC95: 0.2074446232 | BI95: Commercial Computer Equipment | BJ95: 0.15 | BK95: 0.1457651465 | BL95: 0.1457651465 | BM95: 0.1445862659 | BN95: 0.1434073852 | BO95: 0.1422285045 | BP95: 0.1410496238 | BQ95: 0.1398707431 | BR95: 0.1386918624 | BS95: 0.1375129817 | BT95: 0.1363341011 | BU95: 0.1351552204 | BV95: 0.1339763397 | BW95: 0.132797459 | BX95: 0.1316185783 | BY95: 0.1304396976 | CE95: Industrial Lighting | CF95: 0.15 | CG95: 0.04924516302 | CH95: 0.04924516302 | CI95: 0.04924516302 | CJ95: 0.04924516302 | CK95: 0.04924516302 | CL95: 0.04924516302 | CM95: 0.04924516302 | CN95: 0.04924516302 | CO95: 0.04924516302 | CP95: 0.04924516302 | CQ95: 0.04924516302 | CR95: 0.04924516302 | CS95: 0.04924516302 | CT95: 0.04924516302 | CU95: 0.04924516302
Q96: Radio | R96: 0.6 | S96: 0.06082511922 | T96: 0.06082511922 | U96: 0.06008195041 | V96: 0.05933878159 | W96: 0.05859561277 | X96: 0.05785244396 | Y96: 0.05710927514 | Z96: 0.05636610632 | AA96: 0.0556229375 | AB96: 0.05487976869 | AC96: 0.05413659987 | AD96: 0.05339343105 | AE96: 0.05265026224 | AF96: 0.05190709342 | AG96: 0.0511639246 | AM96: Radio | AN96: 0.6 | AO96: 0.06904857535 | AP96: 0.06904857535 | AQ96: 0.06862548784 | AR96: 0.06820240032 | AS96: 0.06777931281 | AT96: 0.0673562253 | AU96: 0.06693313779 | AV96: 0.06651005028 | AW96: 0.06608696277 | AX96: 0.06566387526 | AY96: 0.06524078775 | AZ96: 0.06481770024 | BA96: 0.06439461272 | BB96: 0.06397152521 | BC96: 0.0635484377 | BI96: Commercial Cooking | BJ96: 0.4 | BK96: 0.1096753318 | BL96: 0.1096753318 | BM96: 0.1085526708 | BN96: 0.1074300099 | BO96: 0.106307349 | BP96: 0.1051846881 | BQ96: 0.1040620272 | BR96: 0.1029393663 | BS96: 0.1018167053 | BT96: 0.1006940444 | BU96: 0.09957138351 | BV96: 0.09844872259 | BW96: 0.09732606168 | BX96: 0.09620340076 | BY96: 0.09508073984 | CE96: Industrial Motors | CF96: 0.15 | CG96: 0.5122268288 | CH96: 0.5122268288 | CI96: 0.5122268288 | CJ96: 0.5122268288 | CK96: 0.5122268288 | CL96: 0.5122268288 | CM96: 0.5122268288 | CN96: 0.5122268288 | CO96: 0.5122268288 | CP96: 0.5122268288 | CQ96: 0.5122268288 | CR96: 0.5122268288 | CS96: 0.5122268288 | CT96: 0.5122268288 | CU96: 0.5122268288
